Workbook

Sheet Simulador
J2: Parametros | N2: Tarifario Vigente al 20/02/16 | V2: Periodo de gracia | W2: Días | X2: Nro de cuotas
C3: SIMULADOR FINANCIERO - VRAEM / Profundización Financiera | J3: Tipo de Cambio | K3: 3.5 | V3: Ninguno | W3: 0 | X3: 1
J4: ITF | K4: 5e-05 | Q4: CP | R4: MP | S4: LP | V4: 1 mes | W4: 30 | X4: 2
J5: Costo de Portes (S/.) | K5: 6.84 | N5: Soles | P5: Tasa | Q5: (<=1 Año) | R5: (<=3 Año) | S5: (<=3 Año) | V5: 2 meses | W5: 60 | X5: 3
J6: Moneda (Soles=1, Dolares=2) | K6: 1 | M6: 1 | N6: 0 | O6: 10000 | P6: Min | Q6: 0.155 | R6: 0.155 | S6: 0.155 | V6: 3 meses | W6: 90 | X6: 4
C7: Moneda | J7: Tipo persona (Natural=1, Juridica=2) | K7: 1 | M7: =M6+1 -> 2 | P7: Max | Q7: 0.155 | R7: 0.155 | S7: 0.155 | V7: 4 meses | W7: 120 | X7: 5
J8: Opción de Portes (Si=1, No=2) | K8: 2 | M8: =M7+1 -> 3 | N8: 10001 | O8: 50000 | P8: Min | Q8: 0.155 | R8: 0.155 | S8: 0.155 | V8: 5 meses | W8: 150 | X8: 6
J9: UIT | K9: 3950 | M9: 4 | P9: Max | Q9: 0.155 | R9: 0.155 | S9: 0.155 | V9: 6 meses | W9: 180 | X9: 7
C10: Parámetros Crediticios | F10: Mínimo | G10: Máximo | J10: Seguro de Desgravamen | K10: 0.00045 | M10: 5 | N10: =O8+1 -> 50001 | O10: =O8+50000 -> 100000 | P10: Min | Q10: 0.155 | R10: 0.155 | S10: 0.155 | V10: 7 meses | W10: 210 | X10: 8
C11: Tasa Efectiva Anual (T.E.A.) compensatoria 1/ | F11: =+IF(K6=1,MIN(Q6:S15),MIN(Q19:S28)) -> 0.155 | G11: =IF(K6=1,MAX(Q6:S15),MAX(Q19:S28)) -> 0.155 | J11: Elaboración de Minuta (S/.) | K11: 97 | M11: 6 | P11: Max | Q11: 0.155 | R11: 0.155 | S11: 0.155 | V11: 8 meses | W11: 240 | X11: 9
C12: Tasa Efectiva Anual (T.E.A.) moratoria | F12: 0.16 | M12: 7 | N12: =O10+1 -> 100001 | O12: 500000 | P12: Min | Q12: 0.155 | R12: 0.155 | S12: 0.155 | V12: 9 meses | W12: 270 | X12: 10
C13: Comisiones y gastos | J13: Dias Fijos | M13: 8 | P13: Max | Q13: 0.155 | R13: 0.155 | S13: 0.155 | V13: 10 meses | W13: 300 | X13: 11
C14: Gasto por Operador de créditos (Por hectárea) | F14: 0 | G14: =+G38 -> 0.02 | J14: =+C19 -> Fecha de desembolso | K14: =+G19 -> 2017-12-17 | M14: 9 | N14: 500000 | P14: Min | Q14: 0.155 | R14: 0.155 | S14: 0.155 | V14: 11 meses | W14: 330 | X14: 12
C15: Seguro de desgravamen (Tasa Bruta Mensual) | F15: =K10 -> 0.00045 | J15: Periodo Gracia (meses) | K15: =+VLOOKUP(G25,$V$3:$W$15,2,FALSE)/30 -> 0 | M15: 10 | P15: Max | Q15: 0.155 | R15: 0.155 | S15: 0.155 | V15: 12 meses | W15: 360 | X15: 13
J16: Periodicidad de Pago | K16: =+VLOOKUP(G27,$V$17:$W$29,2,FALSE)/30 -> 1 | X16: 14
C17: Resumen crediticio | J17: Fecha Primera Cuota | K17: =+EDATE(K14,K15+K16) -> 2018-01-17 | Q17: CP | R17: MP | S17: LP | V17: Amortizacion | W17: Días | X17: 15
J18: Fecha Ultima Cuota a Pagar | K18: =+EDATE(K14,K15+K16*G26) -> 2018-12-17 | N18: Dolares | P18: Tasa | Q18: (<=1 Año) | R18: (<=3 Año) | S18: (<=3 Año) | V18: 1 mes | W18: 30 | X18: 16
C19: Fecha de desembolso | G19: 2017-12-17 | M19: 1 | N19: 0 | O19: 3000 | P19: Min | Q19: 0.155 | R19: 0.155 | S19: 0.155 | V19: 2 meses | W19: 60
C20: Sistema de Pagos | G20: Dias Fijos | J20: Gastos Judiciales | M20: =M19+1 -> 2 | P20: Max | Q20: 0.155 | R20: 0.155 | S20: 0.155 | V20: 3 meses | W20: 90 | X20: Tipo de Pago
C21: Fecha de primera cuota a pagar | G21: =+'Cronograma Referencial'!J4 -> 2018-01-17 | J21: Monto a Financiar | K21: =+G34 -> 3500 | M21: =M20+1 -> 3 | N21: =O19+1 -> 3001 | O21: 15000 | P21: Min | Q21: 0.155 | R21: 0.155 | S21: 0.155 | V21: 4 meses | W21: 120 | X21: Sistema de pagos
C22: Fecha de última cuota a pagar | G22: =+VLOOKUP(G26,'Cronograma Referencial'!$H$3:$J$418,3,FALSE) -> 2018-12-17 | J22: Tipo de Persona | K22: =+IF(K7=2,"Jurídica","Natural") -> Natural | M22: 4 | P22: Max | Q22: 0.155 | R22: 0.155 | S22: 0.155 | V22: 5 meses | W22: 150 | X22: Dias Fijos
C23: Plazo del financiamiento | D23: =+IF(K33>365,"El plazo máximo de financiamiento es "&365&" dias","") ->  | G23: =+K33&" dias" -> 365 dias | J23: UITs | K23: 6 | M23: 5 | N23: =O21+1 -> 15001 | O23: 30000 | P23: Min | Q23: 0.155 | R23: 0.155 | S23: 0.155 | V23: 6 meses | W23: 180 | X23: Dias Variables
J24: UIT | K24: 3950 | M24: 6 | P24: Max | Q24: 0.155 | R24: 0.155 | S24: 0.155 | V24: 7 meses | W24: 210
C25: Periodo de gracia 2/ | G25: Ninguno | J25: Elaboración Minuta | K25: =IF(OR(AND(K7=1,K21<K23*K24),AND(K7=1,K21<K23*K24/K3)),0,IF(K6=1, 97,97/K3)) -> 0 | M25: 7 | N25: =O23+1 -> 30001 | O25: 150000 | P25: Min | Q25: 0.155 | R25: 0.155 | S25: 0.155 | V25: 8 meses | W25: 240 | X25: % G. Operador
C26: Nro de cuotas | G26: 12 | M26: 8 | P26: Max | Q26: 0.155 | R26: 0.155 | S26: 0.155 | V26: 9 meses | W26: 270 | X26: 0
C27: Periodicidad de pago 2/ | G27: 1 mes | J27: Cronorgama Referencial | M27: 9 | N27: =O25+1 -> 150001 | P27: Min | Q27: 0.155 | R27: 0.155 | S27: 0.155 | V27: 10 meses | W27: 300 | X27: 0.01
J28: Fecha de primera cuota a pagar | K28: =+IF(G20="Dias Fijos",K17,G19+VLOOKUP(G25,V3:W15,2, FALSE)+VLOOKUP(G27,V18:W29,2,FALSE)) -> 2018-01-17 | M28: 10 | P28: Max | Q28: 0.155 | R28: 0.155 | S28: 0.155 | V28: 11 meses | W28: 330 | X28: 0.02
C29: T.E.A. compensatoria 3/ | G29: 0.155 | J29: Fecha de última cuota a pagar | K29: =+IF(G20="Dias Fijos",K18,G19+VLOOKUP(G25,V3:W15,2, FALSE)+G26*VLOOKUP(G27,V18:W29,2,FALSE)) -> 2018-12-17 | V29: 12 meses | W29: 360 | X29: 0.03
C30: Hectáreas del terreno | G30: 1
C31: Costo de producción, inversión o comercialización a financiar (por Hectárea) | G31: 5000 | J31: Meses (Entero) | K31: =+INT(ROUND(K33/W18,3)) -> 12 | N31: Configuración | Q31: Lista Tasas
C32: % del Costo de producción a financiar | G32: 0.7 | N32: Monto | O32: =G47+G34 -> 3770.812387 | Q32: =O37 -> 0.155
J33: Plazo total | K33: =(G22-G19) -> 365 | N33: Plazo | O33: =K33 -> 365 | Q33: =IF((IF(MID(Q32,5,1)<"5",MID(TEXT(Q32,"0.0000"),3,2)/100+0.5%,MID(TEXT(Q32,"0.0000"),3,2)/100+1%))<$O$38,IF(MID(Q32,5,1)<"5",MID(TEXT(Q32,"0.0000"),3,2)/100+0.5%,MID(TEXT(Q32,"0.0000"),3,2)/100+1%),$O$38) -> 0.155
C34: Monto Solicitado | F34: =+IF(K6=1,"S/.","US$") -> S/. | G34: =+G30*G31*G32 -> 3500 | J34: Periodo de gracia (días) | K34: =+VLOOKUP(G25,V3:W15,2, FALSE) -> 0 | N34: Moneda | O34: =K6 -> 1 | Q34: =IF((IF(MID(Q33,5,1)<"5",MID(TEXT(Q33,"0.0000"),3,2)/100+0.5%,MID(TEXT(Q33,"0.0000"),3,2)/100+1%))<$O$38,IF(MID(Q33,5,1)<"5",MID(TEXT(Q33,"0.0000"),3,2)/100+0.5%,MID(TEXT(Q33,"0.0000"),3,2)/100+1%),$O$38) -> 0.155
J35: Periodicidad de pago | K35: =+VLOOKUP(G27,V18:W29,2, FALSE) -> 30 | N35: Rango Monto | O35: =IF(O34=1,IF(O32<=10000,1,IF(O32<=50000,3,IF(O32<=100000,5,IF(O32<=500000,7,9)))),IF(O32<=3000,1,IF(O32<=15000,3,IF(O32<=30000,5,IF(O32<=150000,7,9))))) -> 1 | Q35: 0.155
C36: Cuota del crédito 9/ | G36: =+Cronograma!H12 -> 315.4562555 | J36: Nro de cuotas | K36: =+VLOOKUP(G26,X3:X18,1, FALSE) -> 12 | N36: Rango Plazo | O36: =IF(O33<=365,1,IF(O33<=3*365,2,3))+4 -> 5 | Q36: 0.155
N37: Min | O37: =IF(O34=1,VLOOKUP(O35,M6:S15,O36),VLOOKUP(O35,M19:S28,O36)) -> 0.155 | Q37: 0.155
C38: Gasto por Gestor de Negocio (sobre el costo de producción por hectárea) | G38: 0.02 | J38: Redondeo ITF | N38: Max | O38: =IF(O34=1,VLOOKUP(O35+1,M6:S15,O36),VLOOKUP(O35+1,M18:S28,O36)) -> 0.155 | Q38: 0.155
C39: Gestor de Negocio 4/ | G39: =+G30*G31*G38 -> 100 | J39: ITF Bruto | K39: =+Cronograma!$H$12*K4 -> 0.01577281277 | N39: Nro Max Lista | O39: =MATCH(O38,Q32:Q53,0) -> 1 | Q39: 0.155
C40: Seguro de desgravamen 5/ | G40: =IF(K7=1,(G34+G39+G41+G42)*((F15)*(K31))/(1-(F15)*(K31)),0) -> 20.36238689 | J40: Pos. "." Dec. | K40: =+FIND(".",K39) -> 2 | N40: Pos. Lista | O40: =O39+31 -> 32 | Q40: 0.155
C41: Reportes Legales (estudio de poderes, de titulos y elaboración de la minuta respectiva) 6/ | G41: =+K25 -> 0 | J41: ITF Ajustado | K41: =IF(MID(K39,K40+2,1)*1>=5,0.05,0)+MID(K39,1,K40+1)*1 -> 0 | N41: Rango Variable | O41: =CONCATENATE("Q32:Q",O40) -> Q32:Q32 | Q41: 0.155
C42: Seguro Agrícola 7/ | G42: =IF($K$51=2,(G31*G30+G39)*2.95%,0) -> 150.45 | Q42: 0.155
C43: I.T.F. por desembolso del crédito (0.005%) | G43: =IF($K$43=1,K46,0) -> 0 | J43: Redondeo ITF del Desembolso | K43: 2 | Q43: 0.155
C44: Portes (envío físico) | G44: =IF($K$8=1, K5,0) -> 0 | J44: ITF Bruto | K44: =+(G34+G39+G40+G41)*K4 -> 0.1810181193 | Q44: 0.155
C45: I.T.F. por cuota del crédito (0.005%) 10/ | G45: =+K41 -> 0 | J45: Pos. "." Dec. | K45: =+FIND(".",K44) -> 2 | Q45: 0.155
J46: ITF Ajustado | K46: =IF(MID(K44,K45+2,1)*1>=5,0.05,0)+MID(K44,1,K45+1)*1 -> 0.15 | Q46: 0.155
C47: Comisiones / Gastos | F47: =+IF(K6=1,"S/.","US$") -> S/. | G47: =G39+G40+G41+G43+G42+G44+G45 -> 270.8123869 | Q47: 0.155
Q48: =IF((IF(MID(Q47,5,1)<"5",MID(TEXT(Q47,"0.0000"),3,2)/100+0.5%,MID(TEXT(Q47,"0.0000"),3,2)/100+1%))<$O$38,IF(MID(Q47,5,1)<"5",MID(TEXT(Q47,"0.0000"),3,2)/100+0.5%,MID(TEXT(Q47,"0.0000"),3,2)/100+1%),$O$38) -> 0.155
C49: Monto del Crédito 8/ | F49: =++IF(K6=1,"S/.","US$") -> S/. | G49: =+G34+G47 -> 3770.812387
C51: Cuota a pagar 11/ | F51: =+IF(K6=1,"S/.","US$") -> S/. | G51: =+Cronograma!O12 -> 338.0239544 | J51: Seguro Agrícola (Si=2, No=3) | K51: 2 | Q51: =IF((IF(MID(Q48,5,1)<"5",MID(TEXT(Q48,"0.0000"),3,2)/100+0.5%,MID(TEXT(Q48,"0.0000"),3,2)/100+1%))<$O$38,IF(MID(Q48,5,1)<"5",MID(TEXT(Q48,"0.0000"),3,2)/100+0.5%,MID(TEXT(Q48,"0.0000"),3,2)/100+1%),$O$38) -> 0.155
Q52: 0.155
C53: Cantidad total a pagar | D53: =+IF(K6=1,"S/.","US$") -> S/. | E53: =+Cronograma!O60 -> 4056.287453 | F53: T.E.A. | G53: =+G29 -> 0.155 | Q53: 0.155
C54: Total intereses | D54: =+IF(K6=1,"S/.","US$") -> S/. | E54: =+Cronograma!G60 -> 285.4750658 | F54: T.C.E.A. | G54: =+Cronograma!P6 -> 0.3150195034
B59: 1/ | C59: Sujeto a evaluación crediticia, de acuerdo al destino (VRAEM / Profudización Financiera).
B60: 2/ | C60: El periodo de gracia y la periodicidad de pago se expresan en meses de 30 días.
B61: 3/ | C61: La tasa de interés es efectiva anual de un año de 360 días.
B62: 4/ | C62: El gasto por Gestor de Negocio se cobra por hectárea y está sujeto a negociación con la zona productiva.
B63: 5/ | C63: El Seguro de desgravamen aplica para personas naturales y su Tasa Bruta Mensual normalmente es de 0.045%
C64: El monto de cobertura es igual al monto del crédito otorgado al asegurado.
B65: 6/ | C65: Aplicable dependiendo de la garantía exigida por el Banco, según el monto de credito final aprobado.
B66: 7/ | C66: Se denomina Seguro Agrícola, al seguro que cobertura los riesgos no controlables ni previsibles (riesgo climático) que afectan
C67: el rendimiento de la producción agrícola. Se considera una tasa bruta de seguro agrícola de 2.95%.
B68: 8/ | C68: El Monto del crédito es igual al Monto a financiar, incluyendo el gasto por Operador de créditos, el Seguro de | Z68: =+Cronograma!U11+Cronograma!X10+Cronograma!AI10+Cronograma!AT10+Cronograma!BE10 -> 6.989711787e-08
C69: Desgravamen y Reportes Legales.
B70: 9/ | C70: La cuota del crédito es constante y se calcula en base al Monto del crédito, la T.E.A, el periodo de gracia,
C71: el número de cuotas y la periodicidad de pago de estas.
B72: 10/ | C72: El I.T.F. es el Impuesto a las Transacciones Financieras y su tasa es de 0.005%. Se calcula sobre la cuota del crédito.
B73: 11/ | C73: La cuota a pagar es la suma de la cuota del crédito más el I.T.F.
C75: T.E.A. : Tasa Efectiva Anual | E75: T.C.E.A. : Tasa Costo Efectiva Anual
C77: Nota: Este documento no constituye aprobación del crédito. Asimismo, el simulador es referencial. Para mayor información consulte el Tarifario ubicado en nuestras oficinas a nivel nacional o ingrese a la página web: www. Agrobanco.com.pe

Sheet Cronograma (hidden)
S1: =+COLUMN() -> 19 | T1: 20 | U1: 21 | V1: 22 | W1: 23 | X1: =+COLUMN() -> 24
B2: CRONOGRAMA DE CUOTAS - CREDITO CADENAS PRODUCTIVAS
B5: Moneda | D5: =+IF(Simulador!K6=1,"Soles","Dólares") -> Soles | E5: Cuota del crédito | G5: =+Simulador!G36 -> 315.4562555 | H5: Op. de Créditos | K5: =+Simulador!F14 -> 0 | L5: Tasa Efectiva Anual (T.E.A) compensatoria | P5: =+Simulador!G53 -> 0.155
B6: Monto solicitado | D6: =+Simulador!G34 -> 3500 | E6: Cuota a pagar | G6: =+Simulador!G51 -> 338.0239544 | H6: Desgravamen | K6: =+Simulador!F15 -> 0.00045 | L6: Tasa Costo Efectiva Anual (T.C.E.A) | P6: =+U6 -> 0.3150195034 | U6: =+(1+U10)^360-1 -> 0.3150195034 | W6: Principal | AH6: Operador de Creditos | AS6: Seguro Desgravamen | BD6: Reportes Legales | BO6: ITF por Desembolso | BZ6: Seguro Agrícola
B7: Nº de cuotas | D7: =+Simulador!K36 -> 12 | E7: Total intereses | G7: =+G60 -> 285.4750658 | H7: ITF | K7: =+Simulador!K4 -> 5e-05 | L7: Fecha de desembolso | P7: =+Simulador!G19 -> 2017-12-17 | W7: TED | X7: =+(1+P5)^((1)/360)-1 -> 0.0004003588555
W8: Cuota | X8: VA | AH8: Cuota | AI8: VA | AS8: Cuota | AT8: VA | BD8: Cuota | BE8: VA | BO8: Cuota | BP8: VA | BZ8: Cuota | CA8: VA
B9: Nro. | C9: Fecha | D9: Saldo del monto | E9: Monto | F9: Principal | G9: Intereses | H9: Cuota del | I9: Operador | J9: Seguro de | K9: Reportes | L9: Seguro | M9: Portes | N9: ITF | O9: Cuota | P9: Total | U9: TCEA | AS9: Tasa Diaria | AT9: =+K6*12/365 -> 1.479452055e-05
B10: de cuota | C10: de pago | D10: del crédito | E10: a financiar | H10: crédito | I10: de Créditos | J10: desgravamen | K10: Legales | L10: Agrícola | O10: a pagar | P10: deuda | U10: 0.0007609880074 | W10: 315.4562555 | X10: =+SUM(X11:X59) -> 1.136868377e-13 | Z10: Saldo K | AA10: Cuota | AB10: K | AC10: I | AD10: Icalc | AE10: Saldo In | AF10: Saldo Deudor | AH10: 8.333333333 | AI10: =+SUM(AI11:AI59) -> 5.684341886e-14 | AK10: Saldo K | AL10: Cuota | AM10: K | AN10: I | AO10: Icalc | AP10: Saldo In | AQ10: Saldo Deudor | AS10: 1.696865574 | AT10: =+SUM(AT11:AT59) -> 4.440892099e-16 | AV10: Saldo K | AW10: Cuota | AX10: K | AY10: I | AZ10: Icalc | BA10: Saldo In | BB10: Saldo Deudor | BD10: 4.440892099e-16 | BE10: =+SUM(BE11:BE59) -> 5.329070518e-15 | BG10: Saldo K | BH10: Cuota | BI10: K | BJ10: I | BK10: Icalc | BL10: Saldo In | BM10: Saldo Deudor | BO10: 0 | BP10: =+SUM(BP11:BP59) -> 0 | BR10: Saldo K | BS10: Cuota | BT10: K | BU10: I | BV10: Icalc | BW10: Saldo In | BX10: Saldo Deudor | BZ10: 12.5375 | CA10: =+SUM(CA11:CA59) -> -8.171241461e-14 | CC10: Saldo K | CD10: Cuota | CE10: K | CF10: I | CG10: Icalc | CH10: Saldo In | CI10: Saldo Deudor
D11: (a) | E11: (b) | F11: (c) | G11: (d) | H11: (e) = (b) + (c) | I11: (f) | J11: (g) | K11: (h) | L11: (i) | M11: (j) | N11: (k) | O11: (l) = (e)+(f)+(g)+(h)+(i)+(j)+(k) | P11: (m) = (a) + (h) | T11: =+$P$7 -> 2017-12-17 | U11: =+SUM(U12:U59)-Simulador!G34 -> 6.989694157e-08 | W11: =-Z11 -> -3500 | X11: =+W11/POWER(1+$X$7,(T11-$T$11)) -> -3500 | Z11: =+Simulador!G34 -> 3500 | AH11: =-AK11 -> -100 | AI11: =+AH11/POWER(1+0%,(T11-$T$11)) -> -100 | AK11: =+Simulador!G39 -> 100 | AS11: =-AV11 -> -20.36238689 | AT11: =+AS11/POWER(1+0%,($T11-$T$11)) -> -20.36238689 | AV11: =+Simulador!G40 -> 20.36238689 | BD11: =-BG11 -> 0 | BE11: =+BD11/POWER(1+0%,($T11-$T$11)) -> 0 | BG11: =+Simulador!G41 -> 0 | BO11: =-BR11 -> 0 | BP11: =+BO11/POWER(1+0%,($T11-$T$11)) -> 0 | BR11: =Simulador!G43 -> 0 | BZ11: =-CC11 -> -150.45 | CA11: =+BZ11/POWER(1+0%,($T11-$T$11)) -> -150.45 | CC11: =Simulador!G42 -> 150.45
B12: 1 | C12: =+IF(B12<=Simulador!$G$26,'Cronograma Referencial'!J4,"") -> 2018-01-17 | D12: =+D6 -> 3500 | E12: =+AB12 -> 271.7554398 | F12: =+SUM(E12:E12) -> 271.7554398 | G12: =+AC12 -> 43.70081569 | H12: =+F12+G12 -> 315.4562555 | I12: =+AM12 -> 8.333333333 | J12: =+AX12 -> 1.696865574 | K12: =+BI12 -> 4.440892099e-16 | L12: =CE12 -> 12.5375 | M12: =IF($H12>0,Simulador!$G$44,0) -> 0 | N12: =+IF(C12="",0,Simulador!$G$45) -> 0 | O12: =SUM(H12:N12) -> 338.0239544 | P12: =+D12+G12 -> 3543.700816 | T12: =+IF(C12="",0,C12) -> 2018-01-17 | U12: =+IF(C12="",0,(AA12+AL12+AW12+BH12+M12+BS12+CD12)/(1+$U$10)^(T12-$T$11)) -> 330.1460417 | W12: =+IF(T12>0,$W$10,0) -> 315.4562555 | X12: 311.5660581 | Z12: =+Z11-AB12 -> 3228.24456 | AA12: =+IF(T12>0,$W$10,0) -> 315.4562555 | AB12: =+AA12-AC12 -> 271.7554398 | AC12: =+IF(AA12>=AD12,AD12,AA12) -> 43.70081569 | AD12: =+IF($C12="",0,Z11*((1+$X$7)^(T12-T11)-1)) -> 43.70081569 | AE12: =+AD12-AC12 -> 0 | AF12: =+Z11+AE12-AB12 -> 3228.24456 | AH12: =+IF($T12>0,$AH$10,0) -> 8.333333333 | AI12: =+AH12/POWER(1+0%,(T12-$T$11)) -> 8.333333333 | AK12: =+AK11-AM12 -> 91.66666667 | AL12: =+IF($T12>0,$AH$10,0) -> 8.333333333 | AM12: =+AL12-AN12 -> 8.333333333 | AN12: =+IF(AL12>=AO12,AO12,AL12) -> 0 | AO12: =+IF($C12="",0,AK11*((1+0%)^($T12-$T11)-1)) -> 0 | AP12: =+AO12-AN12 -> 0 | AQ12: =+AK11+AP12-AM12 -> 91.66666667 | AS12: =+IF($T12>0,$AS$10,0) -> 1.696865574 | AT12: =+AS12/POWER(1+0%,($T12-$T$11)) -> 1.696865574 | AV12: =+AV11-AX12 -> 18.66552132 | AW12: =+IF($T12>0,$AS$10,0) -> 1.696865574 | AX12: =+AW12-AY12 -> 1.696865574 | AY12: =+IF(AW12>=AZ12,AZ12,AW12) -> 0 | AZ12: =+IF($C12="",0,AV11*((1+0%)^($T12-$T11)-1)) -> 0 | BA12: =+AZ12-AY12 -> 0 | BB12: =+AV11+BA12-AX12 -> 18.66552132 | BC12: =+$AT$9*(T12-T11)*(Z11+AK11+BG11) -> 1.651068493 | BD12: =+IF($T12>0,$BD$10,0) -> 4.440892099e-16 | BE12: =+BD12/POWER(1+0%,($T12-$T$11)) -> 4.440892099e-16 | BG12: =+BG11-BI12 -> -4.440892099e-16 | BH12: =+IF($T12>0,$BD$10,0) -> 4.440892099e-16 | BI12: =+BH12-BJ12 -> 4.440892099e-16 | BJ12: =+IF(BH12>=BK12,BK12,BH12) -> 0 | BK12: =+IF($C12="",0,BG11*((1+0%)^($T12-$T11)-1)) -> 0 | BL12: =+BK12-BJ12 -> 0 | BM12: =+BG11+BL12-BI12 -> -4.440892099e-16 | BO12: =+IF($T12>0,$BO$10,0) -> 0 | BP12: =+BO12/POWER(1+0%,($T12-$T$11)) -> 0 | BR12: =+BR11-BT12 -> 0 | BS12: =+IF($T12>0,$BO$10,0) -> 0 | BT12: =+BS12-BU12 -> 0 | BU12: =+IF(BS12>=BV12,BV12,BS12) -> 0 | BV12: =+IF($C12="",0,BR11*((1+0%)^($T12-$T11)-1)) -> 0 | BW12: =+BV12-BU12 -> 0 | BX12: =+BR11+BW12-BT12 -> 0 | BZ12: =+IF($T12>0,$BZ$10,0) -> 12.5375 | CA12: =+BZ12/POWER(1+0%,($T12-$T$11)) -> 12.5375 | CC12: =+CC11-CE12 -> 137.9125 | CD12: =+IF($T12>0,$BZ$10,0) -> 12.5375 | CE12: =+CD12-CF12 -> 12.5375 | CF12: =+IF(CD12>=CG12,CG12,CD12) -> 0 | CG12: =+IF($C12="",0,CC11*((1+0%)^($T12-$T11)-1)) -> 0 | CH12: =+CG12-CF12 -> 0 | CI12: =+CC11+CH12-CE12 -> 137.9125
B13: 2 | C13: =+IF(B13<=Simulador!$G$26,'Cronograma Referencial'!J5,"") -> 2018-02-19 | D13: =IF(C13="",0,$D$12-SUM(E$12:E12)) -> 3228.24456 | E13: 272.5308523 | F13: =+SUM(E13:E13) -> 272.5308523 | G13: =+AC13 -> 42.92540316 | H13: =+F13+G13 -> 315.4562555 | I13: 8.333333333 | J13: 1.696865574 | K13: =+BI13 -> 4.440892099e-16 | L13: =CE13 -> 12.5375 | M13: =IF($H13>0,Simulador!$G$44,0) -> 0 | N13: =+IF(C13="",0,Simulador!$G$45) -> 0 | O13: =SUM(H13:N13) -> 338.0239544 | P13: 3271.169963 | T13: 2018-02-19 | U13: 321.9615258 | W13: =+IF(T13>0,$W$10,0) -> 315.4562555 | X13: 307.4775825 | Z13: =+Z12-AB13 -> 2955.713708 | AA13: =+IF(T13>0,$W$10,0) -> 315.4562555 | AB13: =+AA13-AC13 -> 272.5308523 | AC13: =+IF(AA13>=AD13,AD13,AA13) -> 42.92540316 | AD13: =+IF($C13="",0,AF12*((1+$X$7)^(T13-T12)-1)) -> 42.92540316 | AE13: =+AD13-AC13 -> 0 | AF13: =+Z12+AE13-AB13 -> 2955.713708 | AH13: 8.333333333 | AI13: =+AH13/POWER(1+0%,(T13-$T$11)) -> 8.333333333 | AK13: =+AK12-AM13 -> 83.33333333 | AL13: 8.333333333 | AM13: =+AL13-AN13 -> 8.333333333 | AN13: =+IF(AL13>=AO13,AO13,AL13) -> 0 | AO13: =+IF($C13="",0,AK12*((1+0%)^($T13-$T12)-1)) -> 0 | AP13: =+AO13-AN13 -> 0 | AQ13: =+AK12+AP13-AM13 -> 83.33333333 | AS13: =+IF($T13>0,$AS$10,0) -> 1.696865574 | AT13: =+AS13/POWER(1+0%,($T13-$T$11)) -> 1.696865574 | AV13: =+AV12-AX13 -> 16.96865574 | AW13: =+IF($T13>0,$AS$10,0) -> 1.696865574 | AX13: =+AW13-AY13 -> 1.696865574 | AY13: =+IF(AW13>=AZ13,AZ13,AW13) -> 0 | AZ13: =+IF($C13="",0,AV12*((1+0%)^($T13-$T12)-1)) -> 0 | BA13: =+AZ13-AY13 -> 0 | BB13: =+AV12+BA13-AX13 -> 16.96865574 | BC13: =+$AT$9*(T13-T12)*(Z12+AK12+BG12) -> 1.62084433 | BD13: =+IF($T13>0,$BD$10,0) -> 4.440892099e-16 | BE13: =+BD13/POWER(1+0%,($T13-$T$11)) -> 4.440892099e-16 | BG13: =+BG12-BI13 -> -8.881784197e-16 | BH13: =+IF($T13>0,$BD$10,0) -> 4.440892099e-16 | BI13: =+BH13-BJ13 -> 4.440892099e-16 | BJ13: =+IF(BH13>=BK13,BK13,BH13) -> 0 | BK13: =+IF($C13="",0,BG12*((1+0%)^($T13-$T12)-1)) -> 0 | BL13: =+BK13-BJ13 -> 0 | BM13: =+BG12+BL13-BI13 -> -8.881784197e-16 | BO13: =+IF($T13>0,$BO$10,0) -> 0 | BP13: =+BO13/POWER(1+0%,($T13-$T$11)) -> 0 | BR13: =+BR12-BT13 -> 0 | BS13: =+IF($T13>0,$BO$10,0) -> 0 | BT13: =+BS13-BU13 -> 0 | BU13: =+IF(BS13>=BV13,BV13,BS13) -> 0 | BV13: =+IF($C13="",0,BR12*((1+0%)^($T13-$T12)-1)) -> 0 | BW13: =+BV13-BU13 -> 0 | BX13: =+BR12+BW13-BT13 -> 0 | BZ13: =+IF($T13>0,$BZ$10,0) -> 12.5375 | CA13: =+BZ13/POWER(1+0%,($T13-$T$11)) -> 12.5375 | CC13: =+CC12-CE13 -> 125.375 | CD13: =+IF($T13>0,$BZ$10,0) -> 12.5375 | CE13: =+CD13-CF13 -> 12.5375 | CF13: =+IF(CD13>=CG13,CG13,CD13) -> 0 | CG13: =+IF($C13="",0,CC12*((1+0%)^($T13-$T12)-1)) -> 0 | CH13: =+CG13-CF13 -> 0 | CI13: =+CC12+CH13-CE13 -> 125.375
B14: 3 | C14: =+IF(B14<=Simulador!$G$26,'Cronograma Referencial'!J6,"") -> 2018-03-19 | D14: =IF(C14="",0,$D$12-SUM(E$12:E13)) -> 2955.713708 | E14: 282.1428577 | F14: 282.1428577 | G14: 33.31339779 | H14: 315.4562555 | I14: 8.333333333 | J14: 1.696865574 | K14: 4.440892099e-16 | L14: 12.5375 | M14: =IF($H14>0,Simulador!$G$44,0) -> 0 | N14: =+IF(C14="",0,Simulador!$G$45) -> 0 | O14: 338.0239544 | P14: 2989.027106 | T14: 2018-03-19 | U14: 315.1764033 | W14: 315.4562555 | X14: 304.0506738 | Z14: =+Z13-AB14 -> 2673.57085 | AA14: 315.4562555 | AB14: 282.1428577 | AC14: =+IF(AA14>=AD14,AD14,AA14) -> 33.31339779 | AD14: 33.31339779 | AE14: 0 | AF14: 2673.57085 | AH14: 8.333333333 | AI14: 8.333333333 | AK14: 75 | AL14: 8.333333333 | AM14: 8.333333333 | AN14: 0 | AO14: =+IF($C14="",0,AK13*((1+0%)^($T14-$T13)-1)) -> 0 | AP14: 0 | AQ14: 75 | AS14: 1.696865574 | AT14: 1.696865574 | AV14: 15.27179017 | AW14: 1.696865574 | AX14: 1.696865574 | AY14: 0 | AZ14: 0 | BA14: 0 | BB14: 15.27179017 | BC14: 1.258914829 | BD14: 4.440892099e-16 | BE14: 4.440892099e-16 | BG14: -1.33226763e-15 | BH14: 4.440892099e-16 | BI14: 4.440892099e-16 | BJ14: 0 | BK14: 0 | BL14: 0 | BM14: -1.33226763e-15 | BO14: 0 | BP14: 0 | BR14: 0 | BS14: 0 | BT14: 0 | BU14: 0 | BV14: 0 | BW14: 0 | BX14: 0 | BZ14: 12.5375 | CA14: 12.5375 | CC14: 112.8375 | CD14: 12.5375 | CE14: 12.5375 | CF14: 0 | CG14: 0 | CH14: 0 | CI14: 112.8375
B15: 4 | C15: =+IF(B15<=Simulador!$G$26,'Cronograma Referencial'!J7,"") -> 2018-04-17 | D15: =IF(C15="",0,$D$12-SUM(E$12:E14)) -> 2673.57085 | E15: 284.2403948 | F15: 284.2403948 | G15: 31.21586068 | H15: 315.4562555 | I15: 8.333333333 | J15: 1.696865574 | K15: 4.440892099e-16 | L15: 12.5375 | M15: =IF($H15>0,Simulador!$G$44,0) -> 0 | N15: =+IF(C15="",0,Simulador!$G$45) -> 0 | O15: 338.0239544 | P15: 2704.786711 | T15: 2018-04-17 | U15: 308.2996603 | W15: 315.4562555 | X15: 300.5416342 | Z15: =+Z14-AB15 -> 2389.330455 | AA15: 315.4562555 | AB15: 284.2403948 | AC15: 31.21586068 | AD15: 31.21586068 | AE15: 0 | AF15: 2389.330455 | AH15: 8.333333333 | AI15: 8.333333333 | AK15: 66.66666667 | AL15: 8.333333333 | AM15: 8.333333333 | AN15: 0 | AO15: 0 | AP15: 0 | AQ15: 66.66666667 | AS15: 1.696865574 | AT15: 1.696865574 | AV15: 13.57492459 | AW15: 1.696865574 | AX15: 1.696865574 | AY15: 0 | AZ15: 0 | BA15: 0 | BB15: 13.57492459 | BC15: 1.17924985 | BD15: 4.440892099e-16 | BE15: 4.440892099e-16 | BG15: -1.776356839e-15 | BH15: 4.440892099e-16 | BI15: 4.440892099e-16 | BJ15: 0 | BK15: 0 | BL15: 0 | BM15: -1.776356839e-15 | BO15: 0 | BP15: 0 | BR15: 0 | BS15: 0 | BT15: 0 | BU15: 0 | BV15: 0 | BW15: 0 | BX15: 0 | BZ15: 12.5375 | CA15: 12.5375 | CC15: 100.3 | CD15: 12.5375 | CE15: 12.5375 | CF15: 0 | CG15: 0 | CH15: 0 | CI15: 100.3
B16: 5 | C16: =+IF(B16<=Simulador!$G$26,'Cronograma Referencial'!J8,"") -> 2018-05-17 | D16: =IF(C16="",0,$D$12-SUM(E$12:E15)) -> 2389.330455 | E16: 286.5913472 | F16: 286.5913472 | G16: 28.86490831 | H16: 315.4562555 | I16: 8.333333333 | J16: 1.696865574 | K16: 4.440892099e-16 | L16: 12.5375 | M16: =IF($H16>0,Simulador!$G$44,0) -> 0 | N16: =+IF(C16="",0,Simulador!$G$45) -> 0 | O16: 338.0239544 | P16: 2418.195364 | T16: 2018-05-17 | U16: 301.3436401 | W16: 315.4562555 | X16: 296.9542042 | Z16: =+Z15-AB16 -> 2102.739108 | AA16: 315.4562555 | AB16: 286.5913472 | AC16: 28.86490831 | AD16: 28.86490831 | AE16: 0 | AF16: 2102.739108 | AH16: 8.333333333 | AI16: 8.333333333 | AK16: 58.33333333 | AL16: 8.333333333 | AM16: 8.333333333 | AN16: 0 | AO16: 0 | AP16: 0 | AQ16: 58.33333333 | AS16: 1.696865574 | AT16: 1.696865574 | AV16: 11.87805902 | AW16: 1.696865574 | AX16: 1.696865574 | AY16: 0 | AZ16: 0 | BA16: 0 | BB16: 11.87805902 | BC16: 1.090058997 | BD16: 4.440892099e-16 | BE16: 4.440892099e-16 | BG16: -2.220446049e-15 | BH16: 4.440892099e-16 | BI16: 4.440892099e-16 | BJ16: 0 | BK16: 0 | BL16: 0 | BM16: -2.220446049e-15 | BO16: 0 | BP16: 0 | BR16: 0 | BS16: 0 | BT16: 0 | BU16: 0 | BV16: 0 | BW16: 0 | BX16: 0 | BZ16: 12.5375 | CA16: 12.5375 | CC16: 87.7625 | CD16: 12.5375 | CE16: 12.5375 | CF16: 0 | CG16: 0 | CH16: 0 | CI16: 87.7625
B17: 6 | C17: =+IF(B17<=Simulador!$G$26,'Cronograma Referencial'!J9,"") -> 2018-06-18 | D17: =IF(C17="",0,$D$12-SUM(E$12:E16)) -> 2102.739108 | E17: 288.3492042 | F17: 288.3492042 | G17: 27.10705129 | H17: 315.4562555 | I17: 8.333333333 | J17: 1.696865574 | K17: 4.440892099e-16 | L17: 12.5375 | M17: =IF($H17>0,Simulador!$G$44,0) -> 0 | N17: =+IF(C17="",0,Simulador!$G$45) -> 0 | O17: 338.0239544 | P17: 2129.846159 | T17: 2018-06-18 | U17: 294.0967867 | W17: 315.4562555 | X17: 293.1747984 | Z17: 1814.389904 | AA17: 315.4562555 | AB17: 288.3492042 | AC17: 27.10705129 | AD17: 27.10705129 | AE17: 0 | AF17: 1814.389904 | AH17: 8.333333333 | AI17: 8.333333333 | AK17: 50 | AL17: 8.333333333 | AM17: 8.333333333 | AN17: 0 | AO17: 0 | AP17: 0 | AQ17: 50 | AS17: 1.696865574 | AT17: 1.696865574 | AV17: 10.18119344 | AW17: 1.696865574 | AX17: 1.696865574 | AY17: 0 | AZ17: 0 | BA17: 0 | BB17: 10.18119344 | BC17: 1.023104981 | BD17: 4.440892099e-16 | BE17: 4.440892099e-16 | BG17: -2.664535259e-15 | BH17: 4.440892099e-16 | BI17: 4.440892099e-16 | BJ17: 0 | BK17: 0 | BL17: 0 | BM17: -2.664535259e-15 | BO17: 0 | BP17: 0 | BR17: 0 | BS17: 0 | BT17: 0 | BU17: 0 | BV17: 0 | BW17: 0 | BX17: 0 | BZ17: 12.5375 | CA17: 12.5375 | CC17: 75.225 | CD17: 12.5375 | CE17: 12.5375 | CF17: 0 | CG17: 0 | CH17: 0 | CI17: 75.225
B18: 7 | C18: =+IF(B18<=Simulador!$G$26,'Cronograma Referencial'!J10,"") -> 2018-07-17 | D18: =IF(C18="",0,$D$12-SUM(E$12:E17)) -> 1814.389904 | E18: 294.2719497 | F18: 294.2719497 | G18: 21.1843058 | H18: 315.4562555 | I18: 8.333333333 | J18: 1.696865574 | K18: 4.440892099e-16 | L18: 12.5375 | M18: =IF($H18>0,Simulador!$G$44,0) -> 0 | N18: =+IF(C18="",0,Simulador!$G$45) -> 0 | O18: 338.0239544 | P18: 1835.57421 | T18: 2018-07-17 | U18: 287.6799738 | W18: 315.4562555 | X18: 289.791277 | Z18: 1520.117954 | AA18: 315.4562555 | AB18: 294.2719497 | AC18: 21.1843058 | AD18: 21.1843058 | AE18: 0 | AF18: 1520.117954 | AH18: 8.333333333 | AI18: 8.333333333 | AK18: 41.66666667 | AL18: 8.333333333 | AM18: 8.333333333 | AN18: 0 | AO18: 0 | AP18: 0 | AQ18: 41.66666667 | AS18: 1.696865574 | AT18: 1.696865574 | AV18: 8.484327871 | AW18: 1.696865574 | AX18: 1.696865574 | AY18: 0 | AZ18: 0 | BA18: 0 | BB18: 8.484327871 | BC18: 0.7998998876 | BD18: 4.440892099e-16 | BE18: 4.440892099e-16 | BG18: -3.108624469e-15 | BH18: 4.440892099e-16 | BI18: 4.440892099e-16 | BJ18: 0 | BK18: 0 | BL18: 0 | BM18: -3.108624469e-15 | BO18: 0 | BP18: 0 | BR18: 0 | BS18: 0 | BT18: 0 | BU18: 0 | BV18: 0 | BW18: 0 | BX18: 0 | BZ18: 12.5375 | CA18: 12.5375 | CC18: 62.6875 | CD18: 12.5375 | CE18: 12.5375 | CF18: 0 | CG18: 0 | CH18: 0 | CI18: 62.6875
B19: 8 | C19: =+IF(B19<=Simulador!$G$26,'Cronograma Referencial'!J11,"") -> 2018-08-17 | D19: =IF(C19="",0,$D$12-SUM(E$12:E18)) -> 1520.117954 | E19: 296.4761428 | F19: 296.4761428 | G19: 18.98011273 | H19: 315.4562555 | I19: 8.333333333 | J19: 1.696865574 | K19: 4.440892099e-16 | L19: 12.5375 | M19: =IF($H19>0,Simulador!$G$44,0) -> 0 | N19: =+IF(C19="",0,Simulador!$G$45) -> 0 | O19: 338.0239544 | P19: 1539.098067 | T19: 2018-08-17 | U19: 280.975367 | W19: 315.4562555 | X19: 286.2175794 | Z19: 1223.641812 | AA19: 315.4562555 | AB19: 296.4761428 | AC19: 18.98011273 | AD19: 18.98011273 | AE19: 0 | AF19: 1223.641812 | AH19: 8.333333333 | AI19: 8.333333333 | AK19: 33.33333333 | AL19: 8.333333333 | AM19: 8.333333333 | AN19: 0 | AO19: 0 | AP19: 0 | AQ19: 33.33333333 | AS19: 1.696865574 | AT19: 1.696865574 | AV19: 6.787462296 | AW19: 1.696865574 | AX19: 1.696865574 | AY19: 0 | AZ19: 0 | BA19: 0 | BB19: 6.787462296 | BC19: 0.7162814947 | BD19: 4.440892099e-16 | BE19: 4.440892099e-16 | BG19: -3.552713679e-15 | BH19: 4.440892099e-16 | BI19: 4.440892099e-16 | BJ19: 0 | BK19: 0 | BL19: 0 | BM19: -3.552713679e-15 | BO19: 0 | BP19: 0 | BR19: 0 | BS19: 0 | BT19: 0 | BU19: 0 | BV19: 0 | BW19: 0 | BX19: 0 | BZ19: 12.5375 | CA19: 12.5375 | CC19: 50.15 | CD19: 12.5375 | CE19: 12.5375 | CF19: 0 | CG19: 0 | CH19: 0 | CI19: 50.15
B20: 9 | C20: =+IF(B20<=Simulador!$G$26,'Cronograma Referencial'!J12,"") -> 2018-09-17 | D20: =IF(C20="",0,$D$12-SUM(E$12:E19)) -> 1223.641812 | E20: 300.1779283 | F20: 300.1779283 | G20: 15.27832722 | H20: 315.4562555 | I20: 8.333333333 | J20: 1.696865574 | K20: 4.440892099e-16 | L20: 12.5375 | M20: =IF($H20>0,Simulador!$G$44,0) -> 0 | N20: =+IF(C20="",0,Simulador!$G$45) -> 0 | O20: 338.0239544 | P20: 1238.920139 | T20: 2018-09-17 | U20: 274.4270163 | W20: 315.4562555 | X20: 282.6879525 | Z20: 923.4638833 | AA20: 315.4562555 | AB20: 300.1779283 | AC20: 15.27832722 | AD20: 15.27832722 | AE20: 0 | AF20: 923.4638833 | AH20: 8.333333333 | AI20: 8.333333333 | AK20: 25 | AL20: 8.333333333 | AM20: 8.333333333 | AN20: 0 | AO20: 0 | AP20: 0 | AQ20: 25 | AS20: 1.696865574 | AT20: 1.696865574 | AV20: 5.090596722 | AW20: 1.696865574 | AX20: 1.696865574 | AY20: 0 | AZ20: 0 | BA20: 0 | BB20: 5.090596722 | BC20: 0.5764866829 | BD20: 4.440892099e-16 | BE20: 4.440892099e-16 | BG20: -3.996802889e-15 | BH20: 4.440892099e-16 | BI20: 4.440892099e-16 | BJ20: 0 | BK20: 0 | BL20: 0 | BM20: -3.996802889e-15 | BO20: 0 | BP20: 0 | BR20: 0 | BS20: 0 | BT20: 0 | BU20: 0 | BV20: 0 | BW20: 0 | BX20: 0 | BZ20: 12.5375 | CA20: 12.5375 | CC20: 37.6125 | CD20: 12.5375 | CE20: 12.5375 | CF20: 0 | CG20: 0 | CH20: 0 | CI20: 37.6125
B21: 10 | C21: =+IF(B21<=Simulador!$G$26,'Cronograma Referencial'!J13,"") -> 2018-10-17 | D21: =IF(C21="",0,$D$12-SUM(E$12:E20)) -> 923.4638833 | E21: 304.3001175 | F21: 304.3001175 | G21: 11.15613801 | H21: 315.4562555 | I21: 8.333333333 | J21: 1.696865574 | K21: 4.440892099e-16 | L21: 12.5375 | M21: =IF($H21>0,Simulador!$G$44,0) -> 0 | N21: =+IF(C21="",0,Simulador!$G$45) -> 0 | O21: 338.0239544 | P21: 934.6200213 | T21: 2018-10-17 | U21: 268.2352486 | W21: 315.4562555 | X21: 279.3136338 | Z21: 619.1637658 | AA21: 315.4562555 | AB21: 304.3001175 | AC21: 11.15613801 | AD21: 11.15613801 | AE21: 0 | AF21: 619.1637658 | AH21: 8.333333333 | AI21: 8.333333333 | AK21: 16.66666667 | AL21: 8.333333333 | AM21: 8.333333333 | AN21: 0 | AO21: 0 | AP21: 0 | AQ21: 16.66666667 | AS21: 1.696865574 | AT21: 1.696865574 | AV21: 3.393731148 | AW21: 1.696865574 | AX21: 1.696865574 | AY21: 0 | AZ21: 0 | BA21: 0 | BB21: 3.393731148 | BC21: 0.4209620523 | BD21: 4.440892099e-16 | BE21: 4.440892099e-16 | BG21: -4.440892099e-15 | BH21: 4.440892099e-16 | BI21: 4.440892099e-16 | BJ21: 0 | BK21: 0 | BL21: 0 | BM21: -4.440892099e-15 | BO21: 0 | BP21: 0 | BR21: 0 | BS21: 0 | BT21: 0 | BU21: 0 | BV21: 0 | BW21: 0 | BX21: 0 | BZ21: 12.5375 | CA21: 12.5375 | CC21: 25.075 | CD21: 12.5375 | CE21: 12.5375 | CF21: 0 | CG21: 0 | CH21: 0 | CI21: 25.075
B22: 11 | C22: =+IF(B22<=Simulador!$G$26,'Cronograma Referencial'!J14,"") -> 2018-11-19 | D22: =IF(C22="",0,$D$12-SUM(E$12:E21)) -> 619.1637658 | E22: 307.2233432 | F22: 307.2233432 | G22: 8.232912276 | H22: 315.4562555 | I22: 8.333333333 | J22: 1.696865574 | K22: 4.440892099e-16 | L22: 12.5375 | M22: =IF($H22>0,Simulador!$G$44,0) -> 0 | N22: =+IF(C22="",0,Simulador!$G$45) -> 0 | O22: 338.0239544 | P22: 627.3966781 | T22: 2018-11-19 | U22: 261.5855379 | W22: 315.4562555 | X22: 275.6483855 | Z22: 311.9404226 | AA22: 315.4562555 | AB22: 307.2233432 | AC22: 8.232912276 | AD22: 8.232912276 | AE22: 0 | AF22: 311.9404226 | AH22: 8.333333333 | AI22: 8.333333333 | AK22: 8.333333333 | AL22: 8.333333333 | AM22: 8.333333333 | AN22: 0 | AO22: 0 | AP22: 0 | AQ22: 8.333333333 | AS22: 1.696865574 | AT22: 1.696865574 | AV22: 1.696865574 | AW22: 1.696865574 | AX22: 1.696865574 | AY22: 0 | AZ22: 0 | BA22: 0 | BB22: 1.696865574 | BC22: 0.3104246112 | BD22: 4.440892099e-16 | BE22: 4.440892099e-16 | BG22: -4.884981308e-15 | BH22: 4.440892099e-16 | BI22: 4.440892099e-16 | BJ22: 0 | BK22: 0 | BL22: 0 | BM22: -4.884981308e-15 | BO22: 0 | BP22: 0 | BR22: 0 | BS22: 0 | BT22: 0 | BU22: 0 | BV22: 0 | BW22: 0 | BX22: 0 | BZ22: 12.5375 | CA22: 12.5375 | CC22: 12.5375 | CD22: 12.5375 | CE22: 12.5375 | CF22: 0 | CG22: 0 | CH22: 0 | CI22: 12.5375
B23: 12 | C23: =+IF(B23<=Simulador!$G$26,'Cronograma Referencial'!J15,"") -> 2018-12-17 | D23: =IF(C23="",0,$D$12-SUM(E$12:E22)) -> 311.9404226 | E23: 311.9404226 | F23: 311.9404226 | G23: 3.515832863 | H23: 315.4562555 | I23: 8.333333333 | J23: 1.696865574 | K23: 4.440892099e-16 | L23: 12.5375 | M23: =IF($H23>0,Simulador!$G$44,0) -> 0 | N23: =+IF(C23="",0,Simulador!$G$45) -> 0 | O23: 338.0239544 | P23: 315.4562555 | T23: 2018-12-17 | U23: 256.0727987 | W23: 315.4562555 | X23: 272.5762205 | Z23: -7.389644452e-13 | AA23: 315.4562555 | AB23: 311.9404226 | AC23: 3.515832863 | AD23: 3.515832863 | AE23: 0 | AF23: -7.389644452e-13 | AH23: 8.333333333 | AI23: 8.333333333 | AK23: -5.684341886e-14 | AL23: 8.333333333 | AM23: 8.333333333 | AN23: 0 | AO23: 0 | AP23: 0 | AQ23: -5.684341886e-14 | AS23: 1.696865574 | AT23: 1.696865574 | AV23: 0 | AW23: 1.696865574 | AX23: 1.696865574 | AY23: 0 | AZ23: 0 | BA23: 0 | BB23: 0 | BC23: 0.1326723066 | BD23: 4.440892099e-16 | BE23: 4.440892099e-16 | BG23: -5.329070518e-15 | BH23: 4.440892099e-16 | BI23: 4.440892099e-16 | BJ23: 0 | BK23: 0 | BL23: 0 | BM23: -5.329070518e-15 | BO23: 0 | BP23: 0 | BR23: 0 | BS23: 0 | BT23: 0 | BU23: 0 | BV23: 0 | BW23: 0 | BX23: 0 | BZ23: 12.5375 | CA23: 12.5375 | CC23: 8.171241461e-14 | CD23: 12.5375 | CE23: 12.5375 | CF23: 0 | CG23: 0 | CH23: 0 | CI23: 8.171241461e-14
B24: 13 | C24: =+IF(B24<=Simulador!$G$26,'Cronograma Referencial'!J16,"") ->  | D24: =IF(C24="",0,$D$12-SUM(E$12:E23)) -> 0 | E24: 0 | F24: 0 | G24: 0 | H24: 0 | I24: 0 | J24: 0 | K24: 0 | L24: 0 | M24: =IF($H24>0,Simulador!$G$44,0) -> 0 | N24: =+IF(C24="",0,Simulador!$G$45) -> 0 | O24: 0 | P24: 0 | T24: 00:00:00 | U24: 0 | W24: 0 | X24: 0 | Z24: -7.389644452e-13 | AA24: 0 | AB24: 0 | AC24: 0 | AD24: 0 | AE24: 0 | AF24: -7.389644452e-13 | AH24: 0 | AI24: 0 | AK24: -5.684341886e-14 | AL24: 0 | AM24: 0 | AN24: 0 | AO24: 0 | AP24: 0 | AQ24: -5.684341886e-14 | AS24: 0 | AT24: 0 | AV24: 0 | AW24: 0 | AX24: 0 | AY24: 0 | AZ24: 0 | BA24: 0 | BB24: 0 | BC24: 5.150002331e-13 | BD24: 0 | BE24: 0 | BG24: -5.329070518e-15 | BH24: 0 | BI24: 0 | BJ24: 0 | BK24: 0 | BL24: 0 | BM24: -5.329070518e-15 | BO24: 0 | BP24: 0 | BR24: 0 | BS24: 0 | BT24: 0 | BU24: 0 | BV24: 0 | BW24: 0 | BX24: 0 | BZ24: 0 | CA24: 0 | CC24: 8.171241461e-14 | CD24: 0 | CE24: 0 | CF24: 0 | CG24: 0 | CH24: 0 | CI24: 8.171241461e-14
B25: 14 | C25: =+IF(B25<=Simulador!$G$26,'Cronograma Referencial'!J17,"") ->  | D25: =IF(C25="",0,$D$12-SUM(E$12:E24)) -> 0 | E25: 0 | F25: 0 | G25: 0 | H25: 0 | I25: 0 | J25: 0 | K25: 0 | L25: 0 | M25: =IF($H25>0,Simulador!$G$44,0) -> 0 | N25: =+IF(C25="",0,Simulador!$G$45) -> 0 | O25: 0 | P25: 0 | T25: 00:00:00 | U25: 0 | W25: 0 | X25: 0 | Z25: -7.389644452e-13 | AA25: 0 | AB25: 0 | AC25: 0 | AD25: 0 | AE25: 0 | AF25: -7.389644452e-13 | AH25: 0 | AI25: 0 | AK25: -5.684341886e-14 | AL25: 0 | AM25: 0 | AN25: 0 | AO25: 0 | AP25: 0 | AQ25: -5.684341886e-14 | AS25: 0 | AT25: 0 | AV25: 0 | AW25: 0 | AX25: 0 | AY25: 0 | AZ25: 0 | BA25: 0 | BB25: 0 | BC25: 0 | BD25: 0 | BE25: 0 | BG25: -5.329070518e-15 | BH25: 0 | BI25: 0 | BJ25: 0 | BK25: 0 | BL25: 0 | BM25: -5.329070518e-15 | BO25: 0 | BP25: 0 | BR25: 0 | BS25: 0 | BT25: 0 | BU25: 0 | BV25: 0 | BW25: 0 | BX25: 0 | BZ25: 0 | CA25: 0 | CC25: 8.171241461e-14 | CD25: 0 | CE25: 0 | CF25: 0 | CG25: 0 | CH25: 0 | CI25: 8.171241461e-14
B26: 15 | C26: =+IF(B26<=Simulador!$G$26,'Cronograma Referencial'!J18,"") ->  | D26: =IF(C26="",0,$D$12-SUM(E$12:E25)) -> 0 | E26: 0 | F26: 0 | G26: 0 | H26: 0 | I26: 0 | J26: 0 | K26: 0 | L26: 0 | M26: =IF($H26>0,Simulador!$G$44,0) -> 0 | N26: =+IF(C26="",0,Simulador!$G$45) -> 0 | O26: 0 | P26: 0 | T26: 00:00:00 | U26: 0 | W26: 0 | X26: 0 | Z26: -7.389644452e-13 | AA26: 0 | AB26: 0 | AC26: 0 | AD26: 0 | AE26: 0 | AF26: -7.389644452e-13 | AH26: 0 | AI26: 0 | AK26: -5.684341886e-14 | AL26: 0 | AM26: 0 | AN26: 0 | AO26: 0 | AP26: 0 | AQ26: -5.684341886e-14 | AS26: 0 | AT26: 0 | AV26: 0 | AW26: 0 | AX26: 0 | AY26: 0 | AZ26: 0 | BA26: 0 | BB26: 0 | BC26: 0 | BD26: 0 | BE26: 0 | BG26: -5.329070518e-15 | BH26: 0 | BI26: 0 | BJ26: 0 | BK26: 0 | BL26: 0 | BM26: -5.329070518e-15 | BO26: 0 | BP26: 0 | BR26: 0 | BS26: 0 | BT26: 0 | BU26: 0 | BV26: 0 | BW26: 0 | BX26: 0 | BZ26: 0 | CA26: 0 | CC26: 8.171241461e-14 | CD26: 0 | CE26: 0 | CF26: 0 | CG26: 0 | CH26: 0 | CI26: 8.171241461e-14
B27: 16 | C27: =+IF(B27<=Simulador!$G$26,'Cronograma Referencial'!J19,"") ->  | D27: =IF(C27="",0,$D$12-SUM(E$12:E26)) -> 0 | E27: 0 | F27: 0 | G27: 0 | H27: 0 | I27: 0 | J27: 0 | K27: 0 | L27: 0 | M27: =IF($H27>0,Simulador!$G$44,0) -> 0 | N27: =+IF(C27="",0,Simulador!$G$45) -> 0 | O27: 0 | P27: 0 | T27: 00:00:00 | U27: 0 | W27: 0 | X27: 0 | Z27: -7.389644452e-13 | AA27: 0 | AB27: 0 | AC27: 0 | AD27: 0 | AE27: 0 | AF27: -7.389644452e-13 | AH27: 0 | AI27: 0 | AK27: -5.684341886e-14 | AL27: 0 | AM27: 0 | AN27: 0 | AO27: 0 | AP27: 0 | AQ27: -5.684341886e-14 | AS27: 0 | AT27: 0 | AV27: 0 | AW27: 0 | AX27: 0 | AY27: 0 | AZ27: 0 | BA27: 0 | BB27: 0 | BC27: 0 | BD27: 0 | BE27: 0 | BG27: -5.329070518e-15 | BH27: 0 | BI27: 0 | BJ27: 0 | BK27: 0 | BL27: 0 | BM27: -5.329070518e-15 | BO27: 0 | BP27: 0 | BR27: 0 | BS27: 0 | BT27: 0 | BU27: 0 | BV27: 0 | BW27: 0 | BX27: 0 | BZ27: 0 | CA27: 0 | CC27: 8.171241461e-14 | CD27: 0 | CE27: 0 | CF27: 0 | CG27: 0 | CH27: 0 | CI27: 8.171241461e-14
B28: 17 | C28: =+IF(B28<=Simulador!$G$26,'Cronograma Referencial'!J20,"") ->  | D28: =IF(C28="",0,$D$12-SUM(E$12:E27)) -> 0 | E28: 0 | F28: 0 | G28: 0 | H28: 0 | I28: 0 | J28: 0 | K28: 0 | L28: 0 | M28: =IF($H28>0,Simulador!$G$44,0) -> 0 | N28: =+IF(C28="",0,Simulador!$G$45) -> 0 | O28: 0 | P28: 0 | T28: 00:00:00 | U28: 0 | W28: 0 | X28: 0 | Z28: -7.389644452e-13 | AA28: 0 | AB28: 0 | AC28: 0 | AD28: 0 | AE28: 0 | AF28: -7.389644452e-13 | AH28: 0 | AI28: 0 | AK28: -5.684341886e-14 | AL28: 0 | AM28: 0 | AN28: 0 | AO28: 0 | AP28: 0 | AQ28: -5.684341886e-14 | AS28: 0 | AT28: 0 | AV28: 0 | AW28: 0 | AX28: 0 | AY28: 0 | AZ28: 0 | BA28: 0 | BB28: 0 | BC28: 0 | BD28: 0 | BE28: 0 | BG28: -5.329070518e-15 | BH28: 0 | BI28: 0 | BJ28: 0 | BK28: 0 | BL28: 0 | BM28: -5.329070518e-15 | BO28: 0 | BP28: 0 | BR28: 0 | BS28: 0 | BT28: 0 | BU28: 0 | BV28: 0 | BW28: 0 | BX28: 0 | BZ28: 0 | CA28: 0 | CC28: 8.171241461e-14 | CD28: 0 | CE28: 0 | CF28: 0 | CG28: 0 | CH28: 0 | CI28: 8.171241461e-14
B29: 18 | C29: =+IF(B29<=Simulador!$G$26,'Cronograma Referencial'!J21,"") ->  | D29: =IF(C29="",0,$D$12-SUM(E$12:E28)) -> 0 | E29: 0 | F29: 0 | G29: 0 | H29: 0 | I29: 0 | J29: 0 | K29: 0 | L29: 0 | M29: =IF($H29>0,Simulador!$G$44,0) -> 0 | N29: =+IF(C29="",0,Simulador!$G$45) -> 0 | O29: 0 | P29: 0 | T29: 00:00:00 | U29: 0 | W29: 0 | X29: 0 | Z29: -7.389644452e-13 | AA29: 0 | AB29: 0 | AC29: 0 | AD29: 0 | AE29: 0 | AF29: -7.389644452e-13 | AH29: 0 | AI29: 0 | AK29: -5.684341886e-14 | AL29: 0 | AM29: 0 | AN29: 0 | AO29: 0 | AP29: 0 | AQ29: -5.684341886e-14 | AS29: 0 | AT29: 0 | AV29: 0 | AW29: 0 | AX29: 0 | AY29: 0 | AZ29: 0 | BA29: 0 | BB29: 0 | BC29: 0 | BD29: 0 | BE29: 0 | BG29: -5.329070518e-15 | BH29: 0 | BI29: 0 | BJ29: 0 | BK29: 0 | BL29: 0 | BM29: -5.329070518e-15 | BO29: 0 | BP29: 0 | BR29: 0 | BS29: 0 | BT29: 0 | BU29: 0 | BV29: 0 | BW29: 0 | BX29: 0 | BZ29: 0 | CA29: 0 | CC29: 8.171241461e-14 | CD29: 0 | CE29: 0 | CF29: 0 | CG29: 0 | CH29: 0 | CI29: 8.171241461e-14
B30: 19 | C30: =+IF(B30<=Simulador!$G$26,'Cronograma Referencial'!J22,"") ->  | D30: =IF(C30="",0,$D$12-SUM(E$12:E29)) -> 0 | E30: 0 | F30: 0 | G30: 0 | H30: 0 | I30: 0 | J30: 0 | K30: 0 | L30: 0 | M30: =IF($H30>0,Simulador!$G$44,0) -> 0 | N30: =+IF(C30="",0,Simulador!$G$45) -> 0 | O30: 0 | P30: 0 | T30: 00:00:00 | U30: 0 | W30: 0 | X30: 0 | Z30: -7.389644452e-13 | AA30: 0 | AB30: 0 | AC30: 0 | AD30: 0 | AE30: 0 | AF30: -7.389644452e-13 | AH30: 0 | AI30: 0 | AK30: -5.684341886e-14 | AL30: 0 | AM30: 0 | AN30: 0 | AO30: 0 | AP30: 0 | AQ30: -5.684341886e-14 | AS30: 0 | AT30: 0 | AV30: 0 | AW30: 0 | AX30: 0 | AY30: 0 | AZ30: 0 | BA30: 0 | BB30: 0 | BC30: 0 | BD30: 0 | BE30: 0 | BG30: -5.329070518e-15 | BH30: 0 | BI30: 0 | BJ30: 0 | BK30: 0 | BL30: 0 | BM30: -5.329070518e-15 | BO30: 0 | BP30: 0 | BR30: 0 | BS30: 0 | BT30: 0 | BU30: 0 | BV30: 0 | BW30: 0 | BX30: 0 | BZ30: 0 | CA30: 0 | CC30: 8.171241461e-14 | CD30: 0 | CE30: 0 | CF30: 0 | CG30: 0 | CH30: 0 | CI30: 8.171241461e-14
B31: 20 | C31: =+IF(B31<=Simulador!$G$26,'Cronograma Referencial'!J23,"") ->  | D31: =IF(C31="",0,$D$12-SUM(E$12:E30)) -> 0 | E31: 0 | F31: 0 | G31: 0 | H31: 0 | I31: 0 | J31: 0 | K31: 0 | L31: 0 | M31: =IF($H31>0,Simulador!$G$44,0) -> 0 | N31: =+IF(C31="",0,Simulador!$G$45) -> 0 | O31: 0 | P31: 0 | T31: 00:00:00 | U31: 0 | W31: 0 | X31: 0 | Z31: -7.389644452e-13 | AA31: 0 | AB31: 0 | AC31: 0 | AD31: 0 | AE31: 0 | AF31: -7.389644452e-13 | AH31: 0 | AI31: 0 | AK31: -5.684341886e-14 | AL31: 0 | AM31: 0 | AN31: 0 | AO31: 0 | AP31: 0 | AQ31: -5.684341886e-14 | AS31: 0 | AT31: 0 | AV31: 0 | AW31: 0 | AX31: 0 | AY31: 0 | AZ31: 0 | BA31: 0 | BB31: 0 | BC31: 0 | BD31: 0 | BE31: 0 | BG31: -5.329070518e-15 | BH31: 0 | BI31: 0 | BJ31: 0 | BK31: 0 | BL31: 0 | BM31: -5.329070518e-15 | BO31: 0 | BP31: 0 | BR31: 0 | BS31: 0 | BT31: 0 | BU31: 0 | BV31: 0 | BW31: 0 | BX31: 0 | BZ31: 0 | CA31: 0 | CC31: 8.171241461e-14 | CD31: 0 | CE31: 0 | CF31: 0 | CG31: 0 | CH31: 0 | CI31: 8.171241461e-14
B32: 21 | C32: =+IF(B32<=Simulador!$G$26,'Cronograma Referencial'!J24,"") ->  | D32: =IF(C32="",0,$D$12-SUM(E$12:E31)) -> 0 | E32: 0 | F32: 0 | G32: 0 | H32: 0 | I32: 0 | J32: 0 | K32: 0 | L32: 0 | M32: =IF($H32>0,Simulador!$G$44,0) -> 0 | N32: =+IF(C32="",0,Simulador!$G$45) -> 0 | O32: 0 | P32: 0 | T32: 00:00:00 | U32: 0 | W32: 0 | X32: 0 | Z32: -7.389644452e-13 | AA32: 0 | AB32: 0 | AC32: 0 | AD32: 0 | AE32: 0 | AF32: -7.389644452e-13 | AH32: 0 | AI32: 0 | AK32: -5.684341886e-14 | AL32: 0 | AM32: 0 | AN32: 0 | AO32: 0 | AP32: 0 | AQ32: -5.684341886e-14 | AS32: 0 | AT32: 0 | AV32: 0 | AW32: 0 | AX32: 0 | AY32: 0 | AZ32: 0 | BA32: 0 | BB32: 0 | BC32: 0 | BD32: 0 | BE32: 0 | BG32: -5.329070518e-15 | BH32: 0 | BI32: 0 | BJ32: 0 | BK32: 0 | BL32: 0 | BM32: -5.329070518e-15 | BO32: 0 | BP32: 0 | BR32: 0 | BS32: 0 | BT32: 0 | BU32: 0 | BV32: 0 | BW32: 0 | BX32: 0 | BZ32: 0 | CA32: 0 | CC32: 8.171241461e-14 | CD32: 0 | CE32: 0 | CF32: 0 | CG32: 0 | CH32: 0 | CI32: 8.171241461e-14
B33: 22 | C33: =+IF(B33<=Simulador!$G$26,'Cronograma Referencial'!J25,"") ->  | D33: =IF(C33="",0,$D$12-SUM(E$12:E32)) -> 0 | E33: 0 | F33: 0 | G33: 0 | H33: 0 | I33: 0 | J33: 0 | K33: 0 | L33: 0 | M33: =IF($H33>0,Simulador!$G$44,0) -> 0 | N33: =+IF(C33="",0,Simulador!$G$45) -> 0 | O33: 0 | P33: 0 | T33: 00:00:00 | U33: 0 | W33: 0 | X33: 0 | Z33: -7.389644452e-13 | AA33: 0 | AB33: 0 | AC33: 0 | AD33: 0 | AE33: 0 | AF33: -7.389644452e-13 | AH33: 0 | AI33: 0 | AK33: -5.684341886e-14 | AL33: 0 | AM33: 0 | AN33: 0 | AO33: 0 | AP33: 0 | AQ33: -5.684341886e-14 | AS33: 0 | AT33: 0 | AV33: 0 | AW33: 0 | AX33: 0 | AY33: 0 | AZ33: 0 | BA33: 0 | BB33: 0 | BC33: 0 | BD33: 0 | BE33: 0 | BG33: -5.329070518e-15 | BH33: 0 | BI33: 0 | BJ33: 0 | BK33: 0 | BL33: 0 | BM33: -5.329070518e-15 | BO33: 0 | BP33: 0 | BR33: 0 | BS33: 0 | BT33: 0 | BU33: 0 | BV33: 0 | BW33: 0 | BX33: 0 | BZ33: 0 | CA33: 0 | CC33: 8.171241461e-14 | CD33: 0 | CE33: 0 | CF33: 0 | CG33: 0 | CH33: 0 | CI33: 8.171241461e-14
B34: 23 | C34: =+IF(B34<=Simulador!$G$26,'Cronograma Referencial'!J26,"") ->  | D34: =IF(C34="",0,$D$12-SUM(E$12:E33)) -> 0 | E34: 0 | F34: 0 | G34: 0 | H34: 0 | I34: 0 | J34: 0 | K34: 0 | L34: 0 | M34: =IF($H34>0,Simulador!$G$44,0) -> 0 | N34: =+IF(C34="",0,Simulador!$G$45) -> 0 | O34: 0 | P34: 0 | T34: 00:00:00 | U34: 0 | W34: 0 | X34: 0 | Z34: -7.389644452e-13 | AA34: 0 | AB34: 0 | AC34: 0 | AD34: 0 | AE34: 0 | AF34: -7.389644452e-13 | AH34: 0 | AI34: 0 | AK34: -5.684341886e-14 | AL34: 0 | AM34: 0 | AN34: 0 | AO34: 0 | AP34: 0 | AQ34: -5.684341886e-14 | AS34: 0 | AT34: 0 | AV34: 0 | AW34: 0 | AX34: 0 | AY34: 0 | AZ34: 0 | BA34: 0 | BB34: 0 | BC34: 0 | BD34: 0 | BE34: 0 | BG34: -5.329070518e-15 | BH34: 0 | BI34: 0 | BJ34: 0 | BK34: 0 | BL34: 0 | BM34: -5.329070518e-15 | BO34: 0 | BP34: 0 | BR34: 0 | BS34: 0 | BT34: 0 | BU34: 0 | BV34: 0 | BW34: 0 | BX34: 0 | BZ34: 0 | CA34: 0 | CC34: 8.171241461e-14 | CD34: 0 | CE34: 0 | CF34: 0 | CG34: 0 | CH34: 0 | CI34: 8.171241461e-14
B35: 24 | C35: =+IF(B35<=Simulador!$G$26,'Cronograma Referencial'!J27,"") ->  | D35: =IF(C35="",0,$D$12-SUM(E$12:E34)) -> 0 | E35: 0 | F35: 0 | G35: 0 | H35: 0 | I35: 0 | J35: 0 | K35: 0 | L35: 0 | M35: =IF($H35>0,Simulador!$G$44,0) -> 0 | N35: =+IF(C35="",0,Simulador!$G$45) -> 0 | O35: 0 | P35: 0 | T35: 00:00:00 | U35: 0 | W35: 0 | X35: 0 | Z35: -7.389644452e-13 | AA35: 0 | AB35: 0 | AC35: 0 | AD35: 0 | AE35: 0 | AF35: -7.389644452e-13 | AH35: 0 | AI35: 0 | AK35: -5.684341886e-14 | AL35: 0 | AM35: 0 | AN35: 0 | AO35: 0 | AP35: 0 | AQ35: -5.684341886e-14 | AS35: 0 | AT35: 0 | AV35: 0 | AW35: 0 | AX35: 0 | AY35: 0 | AZ35: 0 | BA35: 0 | BB35: 0 | BC35: 0 | BD35: 0 | BE35: 0 | BG35: -5.329070518e-15 | BH35: 0 | BI35: 0 | BJ35: 0 | BK35: 0 | BL35: 0 | BM35: -5.329070518e-15 | BO35: 0 | BP35: 0 | BR35: 0 | BS35: 0 | BT35: 0 | BU35: 0 | BV35: 0 | BW35: 0 | BX35: 0 | BZ35: 0 | CA35: 0 | CC35: 8.171241461e-14 | CD35: 0 | CE35: 0 | CF35: 0 | CG35: 0 | CH35: 0 | CI35: 8.171241461e-14
B36: 25 | C36: =+IF(B36<=Simulador!$G$26,'Cronograma Referencial'!J28,"") ->  | D36: =IF(C36="",0,$D$12-SUM(E$12:E35)) -> 0 | E36: 0 | F36: 0 | G36: 0 | H36: 0 | I36: 0 | J36: 0 | K36: 0 | L36: 0 | M36: =IF($H36>0,Simulador!$G$44,0) -> 0 | N36: =+IF(C36="",0,Simulador!$G$45) -> 0 | O36: 0 | P36: 0 | T36: 00:00:00 | U36: 0 | W36: 0 | X36: 0 | Z36: -7.389644452e-13 | AA36: 0 | AB36: 0 | AC36: 0 | AD36: 0 | AE36: 0 | AF36: -7.389644452e-13 | AH36: 0 | AI36: 0 | AK36: -5.684341886e-14 | AL36: 0 | AM36: 0 | AN36: 0 | AO36: 0 | AP36: 0 | AQ36: -5.684341886e-14 | AS36: 0 | AT36: 0 | AV36: 0 | AW36: 0 | AX36: 0 | AY36: 0 | AZ36: 0 | BA36: 0 | BB36: 0 | BC36: 0 | BD36: 0 | BE36: 0 | BG36: -5.329070518e-15 | BH36: 0 | BI36: 0 | BJ36: 0 | BK36: 0 | BL36: 0 | BM36: -5.329070518e-15 | BO36: 0 | BP36: 0 | BR36: 0 | BS36: 0 | BT36: 0 | BU36: 0 | BV36: 0 | BW36: 0 | BX36: 0 | BZ36: 0 | CA36: 0 | CC36: 8.171241461e-14 | CD36: 0 | CE36: 0 | CF36: 0 | CG36: 0 | CH36: 0 | CI36: 8.171241461e-14
B37: 26 | C37: =+IF(B37<=Simulador!$G$26,'Cronograma Referencial'!J29,"") ->  | D37: =IF(C37="",0,$D$12-SUM(E$12:E36)) -> 0 | E37: 0 | F37: 0 | G37: 0 | H37: 0 | I37: 0 | J37: 0 | K37: 0 | L37: 0 | M37: =IF($H37>0,Simulador!$G$44,0) -> 0 | N37: =+IF(C37="",0,Simulador!$G$45) -> 0 | O37: 0 | P37: 0 | T37: 00:00:00 | U37: 0 | W37: 0 | X37: 0 | Z37: -7.389644452e-13 | AA37: 0 | AB37: 0 | AC37: 0 | AD37: 0 | AE37: 0 | AF37: -7.389644452e-13 | AH37: 0 | AI37: 0 | AK37: -5.684341886e-14 | AL37: 0 | AM37: 0 | AN37: 0 | AO37: 0 | AP37: 0 | AQ37: -5.684341886e-14 | AS37: 0 | AT37: 0 | AV37: 0 | AW37: 0 | AX37: 0 | AY37: 0 | AZ37: 0 | BA37: 0 | BB37: 0 | BC37: 0 | BD37: 0 | BE37: 0 | BG37: -5.329070518e-15 | BH37: 0 | BI37: 0 | BJ37: 0 | BK37: 0 | BL37: 0 | BM37: -5.329070518e-15 | BO37: 0 | BP37: 0 | BR37: 0 | BS37: 0 | BT37: 0 | BU37: 0 | BV37: 0 | BW37: 0 | BX37: 0 | BZ37: 0 | CA37: 0 | CC37: 8.171241461e-14 | CD37: 0 | CE37: 0 | CF37: 0 | CG37: 0 | CH37: 0 | CI37: 8.171241461e-14
B38: 27 | C38: =+IF(B38<=Simulador!$G$26,'Cronograma Referencial'!J30,"") ->  | D38: =IF(C38="",0,$D$12-SUM(E$12:E37)) -> 0 | E38: 0 | F38: 0 | G38: 0 | H38: 0 | I38: 0 | J38: 0 | K38: 0 | L38: 0 | M38: =IF($H38>0,Simulador!$G$44,0) -> 0 | N38: =+IF(C38="",0,Simulador!$G$45) -> 0 | O38: 0 | P38: 0 | T38: 00:00:00 | U38: 0 | W38: 0 | X38: 0 | Z38: -7.389644452e-13 | AA38: 0 | AB38: 0 | AC38: 0 | AD38: 0 | AE38: 0 | AF38: -7.389644452e-13 | AH38: 0 | AI38: 0 | AK38: -5.684341886e-14 | AL38: 0 | AM38: 0 | AN38: 0 | AO38: 0 | AP38: 0 | AQ38: -5.684341886e-14 | AS38: 0 | AT38: 0 | AV38: 0 | AW38: 0 | AX38: 0 | AY38: 0 | AZ38: 0 | BA38: 0 | BB38: 0 | BC38: 0 | BD38: 0 | BE38: 0 | BG38: -5.329070518e-15 | BH38: 0 | BI38: 0 | BJ38: 0 | BK38: 0 | BL38: 0 | BM38: -5.329070518e-15 | BO38: 0 | BP38: 0 | BR38: 0 | BS38: 0 | BT38: 0 | BU38: 0 | BV38: 0 | BW38: 0 | BX38: 0 | BZ38: 0 | CA38: 0 | CC38: 8.171241461e-14 | CD38: 0 | CE38: 0 | CF38: 0 | CG38: 0 | CH38: 0 | CI38: 8.171241461e-14
B39: 28 | C39: =+IF(B39<=Simulador!$G$26,'Cronograma Referencial'!J31,"") ->  | D39: =IF(C39="",0,$D$12-SUM(E$12:E38)) -> 0 | E39: 0 | F39: 0 | G39: 0 | H39: 0 | I39: 0 | J39: 0 | K39: 0 | L39: 0 | M39: =IF($H39>0,Simulador!$G$44,0) -> 0 | N39: =+IF(C39="",0,Simulador!$G$45) -> 0 | O39: 0 | P39: 0 | T39: 00:00:00 | U39: 0 | W39: 0 | X39: 0 | Z39: -7.389644452e-13 | AA39: 0 | AB39: 0 | AC39: 0 | AD39: 0 | AE39: 0 | AF39: -7.389644452e-13 | AH39: 0 | AI39: 0 | AK39: -5.684341886e-14 | AL39: 0 | AM39: 0 | AN39: 0 | AO39: 0 | AP39: 0 | AQ39: -5.684341886e-14 | AS39: 0 | AT39: 0 | AV39: 0 | AW39: 0 | AX39: 0 | AY39: 0 | AZ39: 0 | BA39: 0 | BB39: 0 | BC39: 0 | BD39: 0 | BE39: 0 | BG39: -5.329070518e-15 | BH39: 0 | BI39: 0 | BJ39: 0 | BK39: 0 | BL39: 0 | BM39: -5.329070518e-15 | BO39: 0 | BP39: 0 | BR39: 0 | BS39: 0 | BT39: 0 | BU39: 0 | BV39: 0 | BW39: 0 | BX39: 0 | BZ39: 0 | CA39: 0 | CC39: 8.171241461e-14 | CD39: 0 | CE39: 0 | CF39: 0 | CG39: 0 | CH39: 0 | CI39: 8.171241461e-14
B40: 29 | C40: =+IF(B40<=Simulador!$G$26,'Cronograma Referencial'!J32,"") ->  | D40: =IF(C40="",0,$D$12-SUM(E$12:E39)) -> 0 | E40: 0 | F40: 0 | G40: 0 | H40: 0 | I40: 0 | J40: 0 | K40: 0 | L40: 0 | M40: =IF($H40>0,Simulador!$G$44,0) -> 0 | N40: =+IF(C40="",0,Simulador!$G$45) -> 0 | O40: 0 | P40: 0 | T40: 00:00:00 | U40: 0 | W40: 0 | X40: 0 | Z40: -7.389644452e-13 | AA40: 0 | AB40: 0 | AC40: 0 | AD40: 0 | AE40: 0 | AF40: -7.389644452e-13 | AH40: 0 | AI40: 0 | AK40: -5.684341886e-14 | AL40: 0 | AM40: 0 | AN40: 0 | AO40: 0 | AP40: 0 | AQ40: -5.684341886e-14 | AS40: 0 | AT40: 0 | AV40: 0 | AW40: 0 | AX40: 0 | AY40: 0 | AZ40: 0 | BA40: 0 | BB40: 0 | BC40: 0 | BD40: 0 | BE40: 0 | BG40: -5.329070518e-15 | BH40: 0 | BI40: 0 | BJ40: 0 | BK40: 0 | BL40: 0 | BM40: -5.329070518e-15 | BO40: 0 | BP40: 0 | BR40: 0 | BS40: 0 | BT40: 0 | BU40: 0 | BV40: 0 | BW40: 0 | BX40: 0 | BZ40: 0 | CA40: 0 | CC40: 8.171241461e-14 | CD40: 0 | CE40: 0 | CF40: 0 | CG40: 0 | CH40: 0 | CI40: 8.171241461e-14
B41: 30 | C41: =+IF(B41<=Simulador!$G$26,'Cronograma Referencial'!J33,"") ->  | D41: =IF(C41="",0,$D$12-SUM(E$12:E40)) -> 0 | E41: 0 | F41: 0 | G41: 0 | H41: 0 | I41: 0 | J41: 0 | K41: 0 | L41: 0 | M41: =IF($H41>0,Simulador!$G$44,0) -> 0 | N41: =+IF(C41="",0,Simulador!$G$45) -> 0 | O41: 0 | P41: 0 | T41: 00:00:00 | U41: 0 | W41: 0 | X41: 0 | Z41: -7.389644452e-13 | AA41: 0 | AB41: 0 | AC41: 0 | AD41: 0 | AE41: 0 | AF41: -7.389644452e-13 | AH41: 0 | AI41: 0 | AK41: -5.684341886e-14 | AL41: 0 | AM41: 0 | AN41: 0 | AO41: 0 | AP41: 0 | AQ41: -5.684341886e-14 | AS41: 0 | AT41: 0 | AV41: 0 | AW41: 0 | AX41: 0 | AY41: 0 | AZ41: 0 | BA41: 0 | BB41: 0 | BC41: 0 | BD41: 0 | BE41: 0 | BG41: -5.329070518e-15 | BH41: 0 | BI41: 0 | BJ41: 0 | BK41: 0 | BL41: 0 | BM41: -5.329070518e-15 | BO41: 0 | BP41: 0 | BR41: 0 | BS41: 0 | BT41: 0 | BU41: 0 | BV41: 0 | BW41: 0 | BX41: 0 | BZ41: 0 | CA41: 0 | CC41: 8.171241461e-14 | CD41: 0 | CE41: 0 | CF41: 0 | CG41: 0 | CH41: 0 | CI41: 8.171241461e-14
B42: 31 | C42: =+IF(B42<=Simulador!$G$26,'Cronograma Referencial'!J34,"") ->  | D42: =IF(C42="",0,$D$12-SUM(E$12:E41)) -> 0 | E42: 0 | F42: 0 | G42: 0 | H42: 0 | I42: 0 | J42: 0 | K42: 0 | L42: 0 | M42: =IF($H42>0,Simulador!$G$44,0) -> 0 | N42: =+IF(C42="",0,Simulador!$G$45) -> 0 | O42: 0 | P42: 0 | T42: 00:00:00 | U42: 0 | W42: 0 | X42: 0 | Z42: -7.389644452e-13 | AA42: 0 | AB42: 0 | AC42: 0 | AD42: 0 | AE42: 0 | AF42: -7.389644452e-13 | AH42: 0 | AI42: 0 | AK42: -5.684341886e-14 | AL42: 0 | AM42: 0 | AN42: 0 | AO42: 0 | AP42: 0 | AQ42: -5.684341886e-14 | AS42: 0 | AT42: 0 | AV42: 0 | AW42: 0 | AX42: 0 | AY42: 0 | AZ42: 0 | BA42: 0 | BB42: 0 | BC42: 0 | BD42: 0 | BE42: 0 | BG42: -5.329070518e-15 | BH42: 0 | BI42: 0 | BJ42: 0 | BK42: 0 | BL42: 0 | BM42: -5.329070518e-15 | BO42: 0 | BP42: 0 | BR42: 0 | BS42: 0 | BT42: 0 | BU42: 0 | BV42: 0 | BW42: 0 | BX42: 0 | BZ42: 0 | CA42: 0 | CC42: 8.171241461e-14 | CD42: 0 | CE42: 0 | CF42: 0 | CG42: 0 | CH42: 0 | CI42: 8.171241461e-14
B43: 32 | C43: =+IF(B43<=Simulador!$G$26,'Cronograma Referencial'!J35,"") ->  | D43: =IF(C43="",0,$D$12-SUM(E$12:E42)) -> 0 | E43: 0 | F43: 0 | G43: 0 | H43: 0 | I43: 0 | J43: 0 | K43: 0 | L43: 0 | M43: =IF($H43>0,Simulador!$G$44,0) -> 0 | N43: =+IF(C43="",0,Simulador!$G$45) -> 0 | O43: 0 | P43: 0 | T43: 00:00:00 | U43: 0 | W43: 0 | X43: =+W43/POWER(1+$X$7,(T43-$T$11)) -> 0 | Z43: -7.389644452e-13 | AA43: 0 | AB43: 0 | AC43: 0 | AD43: 0 | AE43: 0 | AF43: -7.389644452e-13 | AH43: 0 | AI43: 0 | AK43: -5.684341886e-14 | AL43: 0 | AM43: 0 | AN43: 0 | AO43: 0 | AP43: 0 | AQ43: -5.684341886e-14 | AS43: 0 | AT43: 0 | AV43: 0 | AW43: 0 | AX43: 0 | AY43: 0 | AZ43: 0 | BA43: 0 | BB43: 0 | BC43: 0 | BD43: 0 | BE43: 0 | BG43: -5.329070518e-15 | BH43: 0 | BI43: 0 | BJ43: 0 | BK43: 0 | BL43: 0 | BM43: -5.329070518e-15 | BO43: 0 | BP43: 0 | BR43: 0 | BS43: 0 | BT43: 0 | BU43: 0 | BV43: 0 | BW43: 0 | BX43: 0 | BZ43: 0 | CA43: 0 | CC43: 8.171241461e-14 | CD43: 0 | CE43: 0 | CF43: 0 | CG43: 0 | CH43: 0 | CI43: 8.171241461e-14
B44: 33 | C44: =+IF(B44<=Simulador!$G$26,'Cronograma Referencial'!J36,"") ->  | D44: =IF(C44="",0,$D$12-SUM(E$12:E43)) -> 0 | E44: 0 | F44: 0 | G44: 0 | H44: 0 | I44: 0 | J44: 0 | K44: 0 | L44: 0 | M44: =IF($H44>0,Simulador!$G$44,0) -> 0 | N44: =+IF(C44="",0,Simulador!$G$45) -> 0 | O44: 0 | P44: 0 | T44: 00:00:00 | U44: 0 | W44: 0 | X44: 0 | Z44: -7.389644452e-13 | AA44: 0 | AB44: 0 | AC44: 0 | AD44: 0 | AE44: 0 | AF44: -7.389644452e-13 | AH44: 0 | AI44: 0 | AK44: -5.684341886e-14 | AL44: 0 | AM44: 0 | AN44: 0 | AO44: 0 | AP44: 0 | AQ44: -5.684341886e-14 | AS44: 0 | AT44: 0 | AV44: 0 | AW44: 0 | AX44: 0 | AY44: 0 | AZ44: 0 | BA44: 0 | BB44: 0 | BC44: 0 | BD44: 0 | BE44: 0 | BG44: -5.329070518e-15 | BH44: 0 | BI44: 0 | BJ44: 0 | BK44: 0 | BL44: 0 | BM44: -5.329070518e-15 | BO44: 0 | BP44: 0 | BR44: 0 | BS44: 0 | BT44: 0 | BU44: 0 | BV44: 0 | BW44: 0 | BX44: 0 | BZ44: 0 | CA44: 0 | CC44: 8.171241461e-14 | CD44: 0 | CE44: 0 | CF44: 0 | CG44: 0 | CH44: 0 | CI44: 8.171241461e-14
B45: 34 | C45: =+IF(B45<=Simulador!$G$26,'Cronograma Referencial'!J37,"") ->  | D45: =IF(C45="",0,$D$12-SUM(E$12:E44)) -> 0 | E45: 0 | F45: 0 | G45: 0 | H45: 0 | I45: 0 | J45: 0 | K45: 0 | L45: 0 | M45: =IF($H45>0,Simulador!$G$44,0) -> 0 | N45: =+IF(C45="",0,Simulador!$G$45) -> 0 | O45: 0 | P45: 0 | T45: 00:00:00 | U45: 0 | W45: 0 | X45: 0 | Z45: -7.389644452e-13 | AA45: 0 | AB45: 0 | AC45: 0 | AD45: 0 | AE45: 0 | AF45: -7.389644452e-13 | AH45: 0 | AI45: 0 | AK45: -5.684341886e-14 | AL45: 0 | AM45: 0 | AN45: 0 | AO45: 0 | AP45: 0 | AQ45: -5.684341886e-14 | AS45: 0 | AT45: 0 | AV45: 0 | AW45: 0 | AX45: 0 | AY45: 0 | AZ45: 0 | BA45: 0 | BB45: 0 | BC45: 0 | BD45: 0 | BE45: 0 | BG45: -5.329070518e-15 | BH45: 0 | BI45: 0 | BJ45: 0 | BK45: 0 | BL45: 0 | BM45: -5.329070518e-15 | BO45: 0 | BP45: 0 | BR45: 0 | BS45: 0 | BT45: 0 | BU45: 0 | BV45: 0 | BW45: 0 | BX45: 0 | BZ45: 0 | CA45: 0 | CC45: 8.171241461e-14 | CD45: 0 | CE45: 0 | CF45: 0 | CG45: 0 | CH45: 0 | CI45: 8.171241461e-14
B46: 35 | C46: =+IF(B46<=Simulador!$G$26,'Cronograma Referencial'!J38,"") ->  | D46: =IF(C46="",0,$D$12-SUM(E$12:E45)) -> 0 | E46: 0 | F46: 0 | G46: 0 | H46: 0 | I46: 0 | J46: 0 | K46: 0 | L46: 0 | M46: =IF($H46>0,Simulador!$G$44,0) -> 0 | N46: =+IF(C46="",0,Simulador!$G$45) -> 0 | O46: 0 | P46: 0 | T46: 00:00:00 | U46: 0 | W46: 0 | X46: 0 | Z46: -7.389644452e-13 | AA46: 0 | AB46: 0 | AC46: 0 | AD46: 0 | AE46: 0 | AF46: -7.389644452e-13 | AH46: 0 | AI46: 0 | AK46: -5.684341886e-14 | AL46: 0 | AM46: 0 | AN46: 0 | AO46: 0 | AP46: 0 | AQ46: -5.684341886e-14 | AS46: 0 | AT46: 0 | AV46: 0 | AW46: 0 | AX46: 0 | AY46: 0 | AZ46: 0 | BA46: 0 | BB46: 0 | BC46: 0 | BD46: 0 | BE46: 0 | BG46: -5.329070518e-15 | BH46: 0 | BI46: 0 | BJ46: 0 | BK46: 0 | BL46: 0 | BM46: -5.329070518e-15 | BO46: 0 | BP46: 0 | BR46: 0 | BS46: 0 | BT46: 0 | BU46: 0 | BV46: 0 | BW46: 0 | BX46: 0 | BZ46: 0 | CA46: 0 | CC46: 8.171241461e-14 | CD46: 0 | CE46: 0 | CF46: 0 | CG46: 0 | CH46: 0 | CI46: 8.171241461e-14
B47: 36 | C47: =+IF(B47<=Simulador!$G$26,'Cronograma Referencial'!J39,"") ->  | D47: =IF(C47="",0,$D$12-SUM(E$12:E46)) -> 0 | E47: 0 | F47: 0 | G47: 0 | H47: 0 | I47: 0 | J47: 0 | K47: 0 | L47: 0 | M47: =IF($H47>0,Simulador!$G$44,0) -> 0 | N47: =+IF(C47="",0,Simulador!$G$45) -> 0 | O47: 0 | P47: 0 | T47: 00:00:00 | U47: 0 | W47: 0 | X47: 0 | Z47: -7.389644452e-13 | AA47: 0 | AB47: 0 | AC47: 0 | AD47: 0 | AE47: 0 | AF47: -7.389644452e-13 | AH47: 0 | AI47: 0 | AK47: -5.684341886e-14 | AL47: 0 | AM47: 0 | AN47: 0 | AO47: 0 | AP47: 0 | AQ47: -5.684341886e-14 | AS47: 0 | AT47: 0 | AV47: 0 | AW47: 0 | AX47: 0 | AY47: 0 | AZ47: 0 | BA47: 0 | BB47: 0 | BC47: 0 | BD47: 0 | BE47: 0 | BG47: -5.329070518e-15 | BH47: 0 | BI47: 0 | BJ47: 0 | BK47: 0 | BL47: 0 | BM47: -5.329070518e-15 | BO47: 0 | BP47: 0 | BR47: 0 | BS47: 0 | BT47: 0 | BU47: 0 | BV47: 0 | BW47: 0 | BX47: 0 | BZ47: 0 | CA47: 0 | CC47: 8.171241461e-14 | CD47: 0 | CE47: 0 | CF47: 0 | CG47: 0 | CH47: 0 | CI47: 8.171241461e-14
B48: 37 | C48: =+IF(B48<=Simulador!$G$26,'Cronograma Referencial'!J40,"") ->  | D48: =IF(C48="",0,$D$12-SUM(E$12:E47)) -> 0 | E48: 0 | F48: 0 | G48: 0 | H48: 0 | I48: 0 | J48: 0 | K48: 0 | L48: 0 | M48: =IF($H48>0,Simulador!$G$44,0) -> 0 | N48: =+IF(C48="",0,Simulador!$G$45) -> 0 | O48: 0 | P48: 0 | T48: 00:00:00 | U48: 0 | W48: 0 | X48: 0 | Z48: -7.389644452e-13 | AA48: 0 | AB48: 0 | AC48: 0 | AD48: 0 | AE48: 0 | AF48: -7.389644452e-13 | AH48: 0 | AI48: 0 | AK48: -5.684341886e-14 | AL48: 0 | AM48: 0 | AN48: 0 | AO48: 0 | AP48: 0 | AQ48: -5.684341886e-14 | AS48: 0 | AT48: 0 | AV48: 0 | AW48: 0 | AX48: 0 | AY48: 0 | AZ48: 0 | BA48: 0 | BB48: 0 | BC48: 0 | BD48: 0 | BE48: 0 | BG48: -5.329070518e-15 | BH48: 0 | BI48: 0 | BJ48: 0 | BK48: 0 | BL48: 0 | BM48: -5.329070518e-15 | BO48: 0 | BP48: 0 | BR48: 0 | BS48: 0 | BT48: 0 | BU48: 0 | BV48: 0 | BW48: 0 | BX48: 0 | BZ48: 0 | CA48: 0 | CC48: 8.171241461e-14 | CD48: 0 | CE48: 0 | CF48: 0 | CG48: 0 | CH48: 0 | CI48: 8.171241461e-14
B49: 38 | C49: =+IF(B49<=Simulador!$G$26,'Cronograma Referencial'!J41,"") ->  | D49: =IF(C49="",0,$D$12-SUM(E$12:E48)) -> 0 | E49: 0 | F49: 0 | G49: 0 | H49: 0 | I49: 0 | J49: 0 | K49: 0 | L49: 0 | M49: =IF($H49>0,Simulador!$G$44,0) -> 0 | N49: =+IF(C49="",0,Simulador!$G$45) -> 0 | O49: 0 | P49: 0 | T49: 00:00:00 | U49: 0 | W49: 0 | X49: 0 | Z49: -7.389644452e-13 | AA49: 0 | AB49: 0 | AC49: 0 | AD49: 0 | AE49: 0 | AF49: -7.389644452e-13 | AH49: 0 | AI49: 0 | AK49: -5.684341886e-14 | AL49: 0 | AM49: 0 | AN49: 0 | AO49: 0 | AP49: 0 | AQ49: -5.684341886e-14 | AS49: 0 | AT49: 0 | AV49: 0 | AW49: 0 | AX49: 0 | AY49: 0 | AZ49: 0 | BA49: 0 | BB49: 0 | BC49: 0 | BD49: 0 | BE49: 0 | BG49: -5.329070518e-15 | BH49: 0 | BI49: 0 | BJ49: 0 | BK49: 0 | BL49: 0 | BM49: -5.329070518e-15 | BO49: 0 | BP49: 0 | BR49: 0 | BS49: 0 | BT49: 0 | BU49: 0 | BV49: 0 | BW49: 0 | BX49: 0 | BZ49: 0 | CA49: 0 | CC49: 8.171241461e-14 | CD49: 0 | CE49: 0 | CF49: 0 | CG49: 0 | CH49: 0 | CI49: 8.171241461e-14
B50: 39 | C50: =+IF(B50<=Simulador!$G$26,'Cronograma Referencial'!J42,"") ->  | D50: =IF(C50="",0,$D$12-SUM(E$12:E49)) -> 0 | E50: 0 | F50: 0 | G50: 0 | H50: 0 | I50: 0 | J50: 0 | K50: 0 | L50: 0 | M50: =IF($H50>0,Simulador!$G$44,0) -> 0 | N50: =+IF(C50="",0,Simulador!$G$45) -> 0 | O50: 0 | P50: 0 | T50: 00:00:00 | U50: 0 | W50: 0 | X50: 0 | Z50: -7.389644452e-13 | AA50: 0 | AB50: 0 | AC50: 0 | AD50: 0 | AE50: 0 | AF50: -7.389644452e-13 | AH50: 0 | AI50: 0 | AK50: -5.684341886e-14 | AL50: 0 | AM50: 0 | AN50: 0 | AO50: 0 | AP50: 0 | AQ50: -5.684341886e-14 | AS50: 0 | AT50: 0 | AV50: 0 | AW50: 0 | AX50: 0 | AY50: 0 | AZ50: 0 | BA50: 0 | BB50: 0 | BC50: 0 | BD50: 0 | BE50: 0 | BG50: -5.329070518e-15 | BH50: 0 | BI50: 0 | BJ50: 0 | BK50: 0 | BL50: 0 | BM50: -5.329070518e-15 | BO50: 0 | BP50: 0 | BR50: 0 | BS50: 0 | BT50: 0 | BU50: 0 | BV50: 0 | BW50: 0 | BX50: 0 | BZ50: 0 | CA50: 0 | CC50: 8.171241461e-14 | CD50: 0 | CE50: 0 | CF50: 0 | CG50: 0 | CH50: 0 | CI50: 8.171241461e-14
B51: 40 | C51: =+IF(B51<=Simulador!$G$26,'Cronograma Referencial'!J43,"") ->  | D51: =IF(C51="",0,$D$12-SUM(E$12:E50)) -> 0 | E51: 0 | F51: 0 | G51: 0 | H51: 0 | I51: 0 | J51: 0 | K51: 0 | L51: 0 | M51: =IF($H51>0,Simulador!$G$44,0) -> 0 | N51: =+IF(C51="",0,Simulador!$G$45) -> 0 | O51: 0 | P51: 0 | T51: 00:00:00 | U51: 0 | W51: 0 | X51: 0 | Z51: -7.389644452e-13 | AA51: 0 | AB51: 0 | AC51: 0 | AD51: 0 | AE51: 0 | AF51: -7.389644452e-13 | AH51: 0 | AI51: 0 | AK51: -5.684341886e-14 | AL51: 0 | AM51: 0 | AN51: 0 | AO51: 0 | AP51: 0 | AQ51: -5.684341886e-14 | AS51: 0 | AT51: 0 | AV51: 0 | AW51: 0 | AX51: 0 | AY51: 0 | AZ51: 0 | BA51: 0 | BB51: 0 | BC51: 0 | BD51: 0 | BE51: 0 | BG51: -5.329070518e-15 | BH51: 0 | BI51: 0 | BJ51: 0 | BK51: 0 | BL51: 0 | BM51: -5.329070518e-15 | BO51: 0 | BP51: 0 | BR51: 0 | BS51: 0 | BT51: 0 | BU51: 0 | BV51: 0 | BW51: 0 | BX51: 0 | BZ51: 0 | CA51: 0 | CC51: 8.171241461e-14 | CD51: 0 | CE51: 0 | CF51: 0 | CG51: 0 | CH51: 0 | CI51: 8.171241461e-14
B52: 41 | C52: =+IF(B52<=Simulador!$G$26,'Cronograma Referencial'!J44,"") ->  | D52: =IF(C52="",0,$D$12-SUM(E$12:E51)) -> 0 | E52: 0 | F52: 0 | G52: 0 | H52: 0 | I52: 0 | J52: 0 | K52: 0 | L52: 0 | M52: =IF($H52>0,Simulador!$G$44,0) -> 0 | N52: =+IF(C52="",0,Simulador!$G$45) -> 0 | O52: 0 | P52: 0 | T52: 00:00:00 | U52: 0 | W52: 0 | X52: 0 | Z52: -7.389644452e-13 | AA52: 0 | AB52: 0 | AC52: 0 | AD52: 0 | AE52: 0 | AF52: -7.389644452e-13 | AH52: 0 | AI52: 0 | AK52: -5.684341886e-14 | AL52: 0 | AM52: 0 | AN52: 0 | AO52: 0 | AP52: 0 | AQ52: -5.684341886e-14 | AS52: 0 | AT52: 0 | AV52: 0 | AW52: 0 | AX52: 0 | AY52: 0 | AZ52: 0 | BA52: 0 | BB52: 0 | BC52: 0 | BD52: 0 | BE52: 0 | BG52: -5.329070518e-15 | BH52: 0 | BI52: 0 | BJ52: 0 | BK52: 0 | BL52: 0 | BM52: -5.329070518e-15 | BO52: 0 | BP52: 0 | BR52: 0 | BS52: 0 | BT52: 0 | BU52: 0 | BV52: 0 | BW52: 0 | BX52: 0 | BZ52: 0 | CA52: 0 | CC52: 8.171241461e-14 | CD52: 0 | CE52: 0 | CF52: 0 | CG52: 0 | CH52: 0 | CI52: 8.171241461e-14
B53: 42 | C53: =+IF(B53<=Simulador!$G$26,'Cronograma Referencial'!J45,"") ->  | D53: =IF(C53="",0,$D$12-SUM(E$12:E52)) -> 0 | E53: 0 | F53: 0 | G53: 0 | H53: 0 | I53: 0 | J53: 0 | K53: 0 | L53: 0 | M53: =IF($H53>0,Simulador!$G$44,0) -> 0 | N53: =+IF(C53="",0,Simulador!$G$45) -> 0 | O53: 0 | P53: 0 | T53: 00:00:00 | U53: 0 | W53: 0 | X53: 0 | Z53: -7.389644452e-13 | AA53: 0 | AB53: 0 | AC53: 0 | AD53: 0 | AE53: 0 | AF53: -7.389644452e-13 | AH53: 0 | AI53: 0 | AK53: -5.684341886e-14 | AL53: 0 | AM53: 0 | AN53: 0 | AO53: 0 | AP53: 0 | AQ53: -5.684341886e-14 | AS53: 0 | AT53: 0 | AV53: 0 | AW53: 0 | AX53: 0 | AY53: 0 | AZ53: 0 | BA53: 0 | BB53: 0 | BC53: 0 | BD53: 0 | BE53: 0 | BG53: -5.329070518e-15 | BH53: 0 | BI53: 0 | BJ53: 0 | BK53: 0 | BL53: 0 | BM53: -5.329070518e-15 | BO53: 0 | BP53: 0 | BR53: 0 | BS53: 0 | BT53: 0 | BU53: 0 | BV53: 0 | BW53: 0 | BX53: 0 | BZ53: 0 | CA53: 0 | CC53: 8.171241461e-14 | CD53: 0 | CE53: 0 | CF53: 0 | CG53: 0 | CH53: 0 | CI53: 8.171241461e-14
B54: 43 | C54: =+IF(B54<=Simulador!$G$26,'Cronograma Referencial'!J46,"") ->  | D54: =IF(C54="",0,$D$12-SUM(E$12:E53)) -> 0 | E54: 0 | F54: 0 | G54: 0 | H54: 0 | I54: 0 | J54: 0 | K54: 0 | L54: 0 | M54: =IF($H54>0,Simulador!$G$44,0) -> 0 | N54: =+IF(C54="",0,Simulador!$G$45) -> 0 | O54: 0 | P54: 0 | T54: 00:00:00 | U54: 0 | W54: 0 | X54: 0 | Z54: -7.389644452e-13 | AA54: 0 | AB54: 0 | AC54: 0 | AD54: 0 | AE54: 0 | AF54: -7.389644452e-13 | AH54: 0 | AI54: 0 | AK54: -5.684341886e-14 | AL54: 0 | AM54: 0 | AN54: 0 | AO54: 0 | AP54: 0 | AQ54: -5.684341886e-14 | AS54: 0 | AT54: 0 | AV54: 0 | AW54: 0 | AX54: 0 | AY54: 0 | AZ54: 0 | BA54: 0 | BB54: 0 | BC54: 0 | BD54: 0 | BE54: 0 | BG54: -5.329070518e-15 | BH54: 0 | BI54: 0 | BJ54: 0 | BK54: 0 | BL54: 0 | BM54: -5.329070518e-15 | BO54: 0 | BP54: 0 | BR54: 0 | BS54: 0 | BT54: 0 | BU54: 0 | BV54: 0 | BW54: 0 | BX54: 0 | BZ54: 0 | CA54: 0 | CC54: 8.171241461e-14 | CD54: 0 | CE54: 0 | CF54: 0 | CG54: 0 | CH54: 0 | CI54: 8.171241461e-14
B55: 44 | C55: =+IF(B55<=Simulador!$G$26,'Cronograma Referencial'!J47,"") ->  | D55: =IF(C55="",0,$D$12-SUM(E$12:E54)) -> 0 | E55: 0 | F55: 0 | G55: 0 | H55: 0 | I55: 0 | J55: 0 | K55: 0 | L55: 0 | M55: =IF($H55>0,Simulador!$G$44,0) -> 0 | N55: =+IF(C55="",0,Simulador!$G$45) -> 0 | O55: 0 | P55: 0 | T55: 00:00:00 | U55: 0 | W55: 0 | X55: 0 | Z55: -7.389644452e-13 | AA55: 0 | AB55: 0 | AC55: 0 | AD55: 0 | AE55: 0 | AF55: -7.389644452e-13 | AH55: 0 | AI55: 0 | AK55: -5.684341886e-14 | AL55: 0 | AM55: 0 | AN55: 0 | AO55: 0 | AP55: 0 | AQ55: -5.684341886e-14 | AS55: 0 | AT55: 0 | AV55: 0 | AW55: 0 | AX55: 0 | AY55: 0 | AZ55: 0 | BA55: 0 | BB55: 0 | BC55: 0 | BD55: 0 | BE55: 0 | BG55: -5.329070518e-15 | BH55: 0 | BI55: 0 | BJ55: 0 | BK55: 0 | BL55: 0 | BM55: -5.329070518e-15 | BO55: 0 | BP55: 0 | BR55: 0 | BS55: 0 | BT55: 0 | BU55: 0 | BV55: 0 | BW55: 0 | BX55: 0 | BZ55: 0 | CA55: 0 | CC55: 8.171241461e-14 | CD55: 0 | CE55: 0 | CF55: 0 | CG55: 0 | CH55: 0 | CI55: 8.171241461e-14
B56: 45 | C56: =+IF(B56<=Simulador!$G$26,'Cronograma Referencial'!J48,"") ->  | D56: =IF(C56="",0,$D$12-SUM(E$12:E55)) -> 0 | E56: 0 | F56: 0 | G56: 0 | H56: 0 | I56: 0 | J56: 0 | K56: 0 | L56: 0 | M56: =IF($H56>0,Simulador!$G$44,0) -> 0 | N56: =+IF(C56="",0,Simulador!$G$45) -> 0 | O56: 0 | P56: 0 | T56: 00:00:00 | U56: 0 | W56: 0 | X56: 0 | Z56: -7.389644452e-13 | AA56: 0 | AB56: 0 | AC56: 0 | AD56: 0 | AE56: 0 | AF56: -7.389644452e-13 | AH56: 0 | AI56: 0 | AK56: -5.684341886e-14 | AL56: 0 | AM56: 0 | AN56: 0 | AO56: 0 | AP56: 0 | AQ56: -5.684341886e-14 | AS56: 0 | AT56: 0 | AV56: 0 | AW56: 0 | AX56: 0 | AY56: 0 | AZ56: 0 | BA56: 0 | BB56: 0 | BC56: 0 | BD56: 0 | BE56: 0 | BG56: -5.329070518e-15 | BH56: 0 | BI56: 0 | BJ56: 0 | BK56: 0 | BL56: 0 | BM56: -5.329070518e-15 | BO56: 0 | BP56: 0 | BR56: 0 | BS56: 0 | BT56: 0 | BU56: 0 | BV56: 0 | BW56: 0 | BX56: 0 | BZ56: 0 | CA56: 0 | CC56: 8.171241461e-14 | CD56: 0 | CE56: 0 | CF56: 0 | CG56: 0 | CH56: 0 | CI56: 8.171241461e-14
B57: 46 | C57: =+IF(B57<=Simulador!$G$26,'Cronograma Referencial'!J49,"") ->  | D57: =IF(C57="",0,$D$12-SUM(E$12:E56)) -> 0 | E57: 0 | F57: 0 | G57: 0 | H57: 0 | I57: 0 | J57: 0 | K57: 0 | L57: 0 | M57: =IF($H57>0,Simulador!$G$44,0) -> 0 | N57: =+IF(C57="",0,Simulador!$G$45) -> 0 | O57: 0 | P57: 0 | T57: 00:00:00 | U57: 0 | W57: 0 | X57: 0 | Z57: -7.389644452e-13 | AA57: 0 | AB57: 0 | AC57: 0 | AD57: 0 | AE57: 0 | AF57: -7.389644452e-13 | AH57: 0 | AI57: 0 | AK57: -5.684341886e-14 | AL57: 0 | AM57: 0 | AN57: 0 | AO57: 0 | AP57: 0 | AQ57: -5.684341886e-14 | AS57: 0 | AT57: 0 | AV57: 0 | AW57: 0 | AX57: 0 | AY57: 0 | AZ57: 0 | BA57: 0 | BB57: 0 | BC57: 0 | BD57: 0 | BE57: 0 | BG57: -5.329070518e-15 | BH57: 0 | BI57: 0 | BJ57: 0 | BK57: 0 | BL57: 0 | BM57: -5.329070518e-15 | BO57: 0 | BP57: 0 | BR57: 0 | BS57: 0 | BT57: 0 | BU57: 0 | BV57: 0 | BW57: 0 | BX57: 0 | BZ57: 0 | CA57: 0 | CC57: 8.171241461e-14 | CD57: 0 | CE57: 0 | CF57: 0 | CG57: 0 | CH57: 0 | CI57: 8.171241461e-14
B58: 47 | C58: =+IF(B58<=Simulador!$G$26,'Cronograma Referencial'!J50,"") ->  | D58: =IF(C58="",0,$D$12-SUM(E$12:E57)) -> 0 | E58: 0 | F58: 0 | G58: 0 | H58: 0 | I58: 0 | J58: 0 | K58: 0 | L58: 0 | M58: =IF($H58>0,Simulador!$G$44,0) -> 0 | N58: =+IF(C58="",0,Simulador!$G$45) -> 0 | O58: 0 | P58: 0 | T58: 00:00:00 | U58: 0 | W58: 0 | X58: 0 | Z58: -7.389644452e-13 | AA58: 0 | AB58: 0 | AC58: 0 | AD58: 0 | AE58: 0 | AF58: -7.389644452e-13 | AH58: 0 | AI58: 0 | AK58: -5.684341886e-14 | AL58: 0 | AM58: 0 | AN58: 0 | AO58: 0 | AP58: 0 | AQ58: -5.684341886e-14 | AS58: 0 | AT58: 0 | AV58: 0 | AW58: 0 | AX58: 0 | AY58: 0 | AZ58: 0 | BA58: 0 | BB58: 0 | BC58: 0 | BD58: 0 | BE58: 0 | BG58: -5.329070518e-15 | BH58: 0 | BI58: 0 | BJ58: 0 | BK58: 0 | BL58: 0 | BM58: -5.329070518e-15 | BO58: 0 | BP58: 0 | BR58: 0 | BS58: 0 | BT58: 0 | BU58: 0 | BV58: 0 | BW58: 0 | BX58: 0 | BZ58: 0 | CA58: 0 | CC58: 8.171241461e-14 | CD58: 0 | CE58: 0 | CF58: 0 | CG58: 0 | CH58: 0 | CI58: 8.171241461e-14
B59: 48 | C59: =+IF(B59<=Simulador!$G$26,'Cronograma Referencial'!J51,"") ->  | D59: =IF(C59="",0,$D$12-SUM(E$12:E58)) -> 0 | E59: 0 | F59: 0 | G59: 0 | H59: 0 | I59: 0 | J59: 0 | K59: 0 | L59: 0 | M59: =IF($H59>0,Simulador!$G$44,0) -> 0 | N59: =+IF(C59="",0,Simulador!$G$45) -> 0 | O59: 0 | P59: 0 | T59: 00:00:00 | U59: 0 | W59: 0 | X59: 0 | Z59: -7.389644452e-13 | AA59: 0 | AB59: 0 | AC59: 0 | AD59: 0 | AE59: 0 | AF59: -7.389644452e-13 | AH59: 0 | AI59: 0 | AK59: -5.684341886e-14 | AL59: 0 | AM59: 0 | AN59: 0 | AO59: 0 | AP59: 0 | AQ59: -5.684341886e-14 | AS59: 0 | AT59: 0 | AV59: 0 | AW59: 0 | AX59: 0 | AY59: 0 | AZ59: 0 | BA59: 0 | BB59: 0 | BC59: 0 | BD59: 0 | BE59: 0 | BG59: -5.329070518e-15 | BH59: 0 | BI59: 0 | BJ59: 0 | BK59: 0 | BL59: 0 | BM59: -5.329070518e-15 | BO59: 0 | BP59: 0 | BR59: 0 | BS59: 0 | BT59: 0 | BU59: 0 | BV59: 0 | BW59: 0 | BX59: 0 | BZ59: 0 | CA59: 0 | CC59: 8.171241461e-14 | CD59: 0 | CE59: 0 | CF59: 0 | CG59: 0 | CH59: 0 | CI59: 8.171241461e-14
B60: Totales | E60: =+SUM(E12:E59) -> 3500 | F60: 3500 | G60: =+SUM(G12:G59) -> 285.4750658 | H60: 3785.475066 | I60: 100 | J60: 20.36238689 | K60: 5.329070518e-15 | L60: 150.45 | M60: =SUM(M12:M59) -> 0 | N60: =+SUM(N12:N59) -> 0 | O60: =+SUM(O12:O59) -> 4056.287453

Sheet CronogramaValores (hidden)
B2: CRONOGRAMA DE CUOTAS - CREDITO CADENAS PRODUCTIVAS
B5: Moneda | D5: Soles | E5: Cuota del crédito | G5: 315.4562555 | H5: Op. de Créditos | K5: 0 | L5: Tasa Efectiva Anual (T.E.A) compensatoria | P5: 0.155
B6: Monto solicitado | D6: 3500 | E6: Cuota a pagar | G6: 338.0239544 | H6: Desgravamen | K6: 0.00045 | L6: Tasa Costo Efectiva Anual (T.C.E.A) | P6: 0.3150195034
B7: Nº de cuotas | D7: 12 | E7: Total intereses | G7: 285.4750658 | H7: ITF | K7: 5e-05 | L7: Fecha de desembolso | P7: 2017-12-17
B9: Nro. | C9: Fecha | D9: Saldo del monto | E9: Monto | F9: Principal | G9: Intereses | H9: Cuota del | I9: Operador | J9: Seguro de | K9: Reportes | L9: Seguro | M9: Portes | N9: ITF | O9: Cuota | P9: Total
B10: de cuota | C10: de pago | D10: del crédito | E10: a financiar | H10: crédito | I10: de Créditos | J10: desgravamen | K10: Legales | L10: Agrícola | O10: a pagar | P10: deuda
D11: (a) | E11: (b) | F11: (c) | G11: (d) | H11: (e) = (b) + (c) | I11: (f) | J11: (g) | K11: (h) | L11: (i) | M11: (j) | N11: (k) | O11: (l) = (e)+(f)+(g)+(h)+(i)+(j)+(k) | P11: (m) = (a) + (h)
B12: 1 | C12: 2018-01-17 | D12: 3500 | E12: 271.7554398 | F12: 271.7554398 | G12: 43.70081569 | H12: 315.4562555 | I12: 8.333333333 | J12: 1.696865574 | K12: 4.440892099e-16 | L12: 12.5375 | M12: 0 | N12: 0 | O12: 338.0239544 | P12: 3543.700816
B13: 2 | C13: 2018-02-19 | D13: 3228.24456 | E13: 272.5308523 | F13: 272.5308523 | G13: 42.92540316 | H13: 315.4562555 | I13: 8.333333333 | J13: 1.696865574 | K13: 4.440892099e-16 | L13: 12.5375 | M13: 0 | N13: 0 | O13: 338.0239544 | P13: 3271.169963
B14: 3 | C14: 2018-03-19 | D14: 2955.713708 | E14: 282.1428577 | F14: 282.1428577 | G14: 33.31339779 | H14: 315.4562555 | I14: 8.333333333 | J14: 1.696865574 | K14: 4.440892099e-16 | L14: 12.5375 | M14: 0 | N14: 0 | O14: 338.0239544 | P14: 2989.027106
B15: 4 | C15: 2018-04-17 | D15: 2673.57085 | E15: 284.2403948 | F15: 284.2403948 | G15: 31.21586068 | H15: 315.4562555 | I15: 8.333333333 | J15: 1.696865574 | K15: 4.440892099e-16 | L15: 12.5375 | M15: 0 | N15: 0 | O15: 338.0239544 | P15: 2704.786711
B16: 5 | C16: 2018-05-17 | D16: 2389.330455 | E16: 286.5913472 | F16: 286.5913472 | G16: 28.86490831 | H16: 315.4562555 | I16: 8.333333333 | J16: 1.696865574 | K16: 4.440892099e-16 | L16: 12.5375 | M16: 0 | N16: 0 | O16: 338.0239544 | P16: 2418.195364
B17: 6 | C17: 2018-06-18 | D17: 2102.739108 | E17: 288.3492042 | F17: 288.3492042 | G17: 27.10705129 | H17: 315.4562555 | I17: 8.333333333 | J17: 1.696865574 | K17: 4.440892099e-16 | L17: 12.5375 | M17: 0 | N17: 0 | O17: 338.0239544 | P17: 2129.846159
B18: 7 | C18: 2018-07-17 | D18: 1814.389904 | E18: 294.2719497 | F18: 294.2719497 | G18: 21.1843058 | H18: 315.4562555 | I18: 8.333333333 | J18: 1.696865574 | K18: 4.440892099e-16 | L18: 12.5375 | M18: 0 | N18: 0 | O18: 338.0239544 | P18: 1835.57421
B19: 8 | C19: 2018-08-17 | D19: 1520.117954 | E19: 296.4761428 | F19: 296.4761428 | G19: 18.98011273 | H19: 315.4562555 | I19: 8.333333333 | J19: 1.696865574 | K19: 4.440892099e-16 | L19: 12.5375 | M19: 0 | N19: 0 | O19: 338.0239544 | P19: 1539.098067
B20: 9 | C20: 2018-09-17 | D20: 1223.641812 | E20: 300.1779283 | F20: 300.1779283 | G20: 15.27832722 | H20: 315.4562555 | I20: 8.333333333 | J20: 1.696865574 | K20: 4.440892099e-16 | L20: 12.5375 | M20: 0 | N20: 0 | O20: 338.0239544 | P20: 1238.920139
B21: 10 | C21: 2018-10-17 | D21: 923.4638833 | E21: 304.3001175 | F21: 304.3001175 | G21: 11.15613801 | H21: 315.4562555 | I21: 8.333333333 | J21: 1.696865574 | K21: 4.440892099e-16 | L21: 12.5375 | M21: 0 | N21: 0 | O21: 338.0239544 | P21: 934.6200213
B22: 11 | C22: 2018-11-19 | D22: 619.1637658 | E22: 307.2233432 | F22: 307.2233432 | G22: 8.232912276 | H22: 315.4562555 | I22: 8.333333333 | J22: 1.696865574 | K22: 4.440892099e-16 | L22: 12.5375 | M22: 0 | N22: 0 | O22: 338.0239544 | P22: 627.3966781
B23: 12 | C23: 2018-12-17 | D23: 311.9404226 | E23: 311.9404226 | F23: 311.9404226 | G23: 3.515832863 | H23: 315.4562555 | I23: 8.333333333 | J23: 1.696865574 | K23: 4.440892099e-16 | L23: 12.5375 | M23: 0 | N23: 0 | O23: 338.0239544 | P23: 315.4562555
B24: 13 | D24: 0 | E24: 0 | F24: 0 | G24: 0 | H24: 0 | I24: 0 | J24: 0 | K24: 0 | L24: 0 | M24: 0 | N24: 0 | O24: 0 | P24: 0
B25: 14 | D25: 0 | E25: 0 | F25: 0 | G25: 0 | H25: 0 | I25: 0 | J25: 0 | K25: 0 | L25: 0 | M25: 0 | N25: 0 | O25: 0 | P25: 0
B26: 15 | D26: 0 | E26: 0 | F26: 0 | G26: 0 | H26: 0 | I26: 0 | J26: 0 | K26: 0 | L26: 0 | M26: 0 | N26: 0 | O26: 0 | P26: 0
B27: 16 | D27: 0 | E27: 0 | F27: 0 | G27: 0 | H27: 0 | I27: 0 | J27: 0 | K27: 0 | L27: 0 | M27: 0 | N27: 0 | O27: 0 | P27: 0
B28: 17 | D28: 0 | E28: 0 | F28: 0 | G28: 0 | H28: 0 | I28: 0 | J28: 0 | K28: 0 | L28: 0 | M28: 0 | N28: 0 | O28: 0 | P28: 0
B29: 18 | D29: 0 | E29: 0 | F29: 0 | G29: 0 | H29: 0 | I29: 0 | J29: 0 | K29: 0 | L29: 0 | M29: 0 | N29: 0 | O29: 0 | P29: 0
B30: 19 | D30: 0 | E30: 0 | F30: 0 | G30: 0 | H30: 0 | I30: 0 | J30: 0 | K30: 0 | L30: 0 | M30: 0 | N30: 0 | O30: 0 | P30: 0
B31: 20 | D31: 0 | E31: 0 | F31: 0 | G31: 0 | H31: 0 | I31: 0 | J31: 0 | K31: 0 | L31: 0 | M31: 0 | N31: 0 | O31: 0 | P31: 0
B32: 21 | D32: 0 | E32: 0 | F32: 0 | G32: 0 | H32: 0 | I32: 0 | J32: 0 | K32: 0 | L32: 0 | M32: 0 | N32: 0 | O32: 0 | P32: 0
B33: 22 | D33: 0 | E33: 0 | F33: 0 | G33: 0 | H33: 0 | I33: 0 | J33: 0 | K33: 0 | L33: 0 | M33: 0 | N33: 0 | O33: 0 | P33: 0
B34: 23 | D34: 0 | E34: 0 | F34: 0 | G34: 0 | H34: 0 | I34: 0 | J34: 0 | K34: 0 | L34: 0 | M34: 0 | N34: 0 | O34: 0 | P34: 0
B35: 24 | D35: 0 | E35: 0 | F35: 0 | G35: 0 | H35: 0 | I35: 0 | J35: 0 | K35: 0 | L35: 0 | M35: 0 | N35: 0 | O35: 0 | P35: 0
B36: 25 | D36: 0 | E36: 0 | F36: 0 | G36: 0 | H36: 0 | I36: 0 | J36: 0 | K36: 0 | L36: 0 | M36: 0 | N36: 0 | O36: 0 | P36: 0
B37: 26 | D37: 0 | E37: 0 | F37: 0 | G37: 0 | H37: 0 | I37: 0 | J37: 0 | K37: 0 | L37: 0 | M37: 0 | N37: 0 | O37: 0 | P37: 0
B38: 27 | D38: 0 | E38: 0 | F38: 0 | G38: 0 | H38: 0 | I38: 0 | J38: 0 | K38: 0 | L38: 0 | M38: 0 | N38: 0 | O38: 0 | P38: 0
B39: 28 | D39: 0 | E39: 0 | F39: 0 | G39: 0 | H39: 0 | I39: 0 | J39: 0 | K39: 0 | L39: 0 | M39: 0 | N39: 0 | O39: 0 | P39: 0
B40: 29 | D40: 0 | E40: 0 | F40: 0 | G40: 0 | H40: 0 | I40: 0 | J40: 0 | K40: 0 | L40: 0 | M40: 0 | N40: 0 | O40: 0 | P40: 0
B41: 30 | D41: 0 | E41: 0 | F41: 0 | G41: 0 | H41: 0 | I41: 0 | J41: 0 | K41: 0 | L41: 0 | M41: 0 | N41: 0 | O41: 0 | P41: 0
B42: 31 | D42: 0 | E42: 0 | F42: 0 | G42: 0 | H42: 0 | I42: 0 | J42: 0 | K42: 0 | L42: 0 | M42: 0 | N42: 0 | O42: 0 | P42: 0
B43: 32 | D43: 0 | E43: 0 | F43: 0 | G43: 0 | H43: 0 | I43: 0 | J43: 0 | K43: 0 | L43: 0 | M43: 0 | N43: 0 | O43: 0 | P43: 0
B44: 33 | D44: 0 | E44: 0 | F44: 0 | G44: 0 | H44: 0 | I44: 0 | J44: 0 | K44: 0 | L44: 0 | M44: 0 | N44: 0 | O44: 0 | P44: 0
B45: 34 | D45: 0 | E45: 0 | F45: 0 | G45: 0 | H45: 0 | I45: 0 | J45: 0 | K45: 0 | L45: 0 | M45: 0 | N45: 0 | O45: 0 | P45: 0
B46: 35 | D46: 0 | E46: 0 | F46: 0 | G46: 0 | H46: 0 | I46: 0 | J46: 0 | K46: 0 | L46: 0 | M46: 0 | N46: 0 | O46: 0 | P46: 0
B47: 36 | D47: 0 | E47: 0 | F47: 0 | G47: 0 | H47: 0 | I47: 0 | J47: 0 | K47: 0 | L47: 0 | M47: 0 | N47: 0 | O47: 0 | P47: 0
B48: 37 | D48: 0 | E48: 0 | F48: 0 | G48: 0 | H48: 0 | I48: 0 | J48: 0 | K48: 0 | L48: 0 | M48: 0 | N48: 0 | O48: 0 | P48: 0
B49: 38 | D49: 0 | E49: 0 | F49: 0 | G49: 0 | H49: 0 | I49: 0 | J49: 0 | K49: 0 | L49: 0 | M49: 0 | N49: 0 | O49: 0 | P49: 0
B50: 39 | D50: 0 | E50: 0 | F50: 0 | G50: 0 | H50: 0 | I50: 0 | J50: 0 | K50: 0 | L50: 0 | M50: 0 | N50: 0 | O50: 0 | P50: 0
B51: 40 | D51: 0 | E51: 0 | F51: 0 | G51: 0 | H51: 0 | I51: 0 | J51: 0 | K51: 0 | L51: 0 | M51: 0 | N51: 0 | O51: 0 | P51: 0
B52: 41 | D52: 0 | E52: 0 | F52: 0 | G52: 0 | H52: 0 | I52: 0 | J52: 0 | K52: 0 | L52: 0 | M52: 0 | N52: 0 | O52: 0 | P52: 0
B53: 42 | D53: 0 | E53: 0 | F53: 0 | G53: 0 | H53: 0 | I53: 0 | J53: 0 | K53: 0 | L53: 0 | M53: 0 | N53: 0 | O53: 0 | P53: 0
B54: 43 | D54: 0 | E54: 0 | F54: 0 | G54: 0 | H54: 0 | I54: 0 | J54: 0 | K54: 0 | L54: 0 | M54: 0 | N54: 0 | O54: 0 | P54: 0
B55: 44 | D55: 0 | E55: 0 | F55: 0 | G55: 0 | H55: 0 | I55: 0 | J55: 0 | K55: 0 | L55: 0 | M55: 0 | N55: 0 | O55: 0 | P55: 0
B56: 45 | D56: 0 | E56: 0 | F56: 0 | G56: 0 | H56: 0 | I56: 0 | J56: 0 | K56: 0 | L56: 0 | M56: 0 | N56: 0 | O56: 0 | P56: 0
B57: 46 | D57: 0 | E57: 0 | F57: 0 | G57: 0 | H57: 0 | I57: 0 | J57: 0 | K57: 0 | L57: 0 | M57: 0 | N57: 0 | O57: 0 | P57: 0
B58: 47 | D58: 0 | E58: 0 | F58: 0 | G58: 0 | H58: 0 | I58: 0 | J58: 0 | K58: 0 | L58: 0 | M58: 0 | N58: 0 | O58: 0 | P58: 0
B59: 48 | D59: 0 | E59: 0 | F59: 0 | G59: 0 | H59: 0 | I59: 0 | J59: 0 | K59: 0 | L59: 0 | M59: 0 | N59: 0 | O59: 0 | P59: 0
B60: Totales | E60: 3500 | F60: 3500 | G60: 285.4750658 | H60: 3785.475066 | I60: 100 | J60: 20.36238689 | K60: 5.329070518e-15 | L60: 150.45 | M60: 0 | N60: 0 | O60: 4056.287453
B62: Nota: El presente cronograma es referencial y corresponde en el supuesto de cumplimiento de todos los pagos.

Sheet Cronograma Referencial (hidden)
I1: Cron. Ref | J1: Cron. Def
B2: Cuota Base | C2: Dias Fijos | E2: Dias Variables | H2: Cuota Base | I2: =Simulador!G20 -> Dias Fijos | J2: =+I2 -> Dias Fijos
B3: 0 | C3: =+Simulador!K28 -> 2018-01-17 | E3: =+C3 -> 2018-01-17 | H3: =+B3 -> 0 | I3: =+HLOOKUP($I$2,$C$2:$E$418,H3+2) -> 2018-01-17 | J3: =+IFERROR(IF(VLOOKUP(I3,'BD Dias No utiles'!$B$9:$H$4077,7,FALSE)="X",IF(VLOOKUP(I3+1,'BD Dias No utiles'!$B$9:$H$4077,7,FALSE)="X",IF(VLOOKUP(I3+2,'BD Dias No utiles'!$B$9:$H$4077,7,FALSE)="X",I3+3,I3+2),I3+1),I3),0) -> 2018-01-17
B4: 1 | C4: =+Simulador!K28 -> 2018-01-17 | D4: =+C4-C3 -> 0 | E4: =+C4 -> 2018-01-17 | F4: =+E4-E3 -> 0 | H4: =+B4 -> 1 | I4: =+HLOOKUP($I$2,$C$2:$E$418,H4+2) -> 2018-01-17 | J4: =+IFERROR(IF(VLOOKUP(I4,'BD Dias No utiles'!$B$9:$H$4077,7,FALSE)="X",IF(VLOOKUP(I4+1,'BD Dias No utiles'!$B$9:$H$4077,7,FALSE)="X",IF(VLOOKUP(I4+2,'BD Dias No utiles'!$B$9:$H$4077,7,FALSE)="X",I4+3,I4+2),I4+1),I4),0) -> 2018-01-17 | K4: =+I4-I3 -> 0
B5: =+B4+1 -> 2 | C5: =+IF(Simulador!$G$26>='Cronograma Referencial'!B5,EDATE(C4,(B5-B4)*VLOOKUP(Simulador!$G$27,Simulador!$V$18:$W$29,2,FALSE)/30),0) -> 2018-02-17 | D5: =+C5-C4 -> 31 | E5: =+IF(Simulador!$G$26>='Cronograma Referencial'!B5,'Cronograma Referencial'!E4+VLOOKUP(Simulador!$G$27,Simulador!$V$18:$W$29,2,FALSE),0) -> 2018-02-16 | F5: =+E5-E4 -> 30 | H5: 2 | I5: =+HLOOKUP($I$2,$C$2:$E$418,H5+2) -> 2018-02-17 | J5: =+IFERROR(IF(VLOOKUP(I5,'BD Dias No utiles'!$B$9:$H$4077,7,FALSE)="X",IF(VLOOKUP(I5+1,'BD Dias No utiles'!$B$9:$H$4077,7,FALSE)="X",IF(VLOOKUP(I5+2,'BD Dias No utiles'!$B$9:$H$4077,7,FALSE)="X",I5+3,I5+2),I5+1),I5),0) -> 2018-02-19 | K5: =+I5-I4 -> 31
B6: =+B5+1 -> 3 | C6: =+IF(Simulador!$G$26>='Cronograma Referencial'!B6,EDATE(C5,(B6-B5)*VLOOKUP(Simulador!$G$27,Simulador!$V$18:$W$29,2,FALSE)/30),0) -> 2018-03-17 | D6: 28 | E6: =+IF(Simulador!$G$26>='Cronograma Referencial'!B6,'Cronograma Referencial'!E5+VLOOKUP(Simulador!$G$27,Simulador!$V$18:$W$29,2,FALSE),0) -> 2018-03-18 | F6: =+E6-E5 -> 30 | H6: 3 | I6: 2018-03-17 | J6: =+IFERROR(IF(VLOOKUP(I6,'BD Dias No utiles'!$B$9:$H$4077,7,FALSE)="X",IF(VLOOKUP(I6+1,'BD Dias No utiles'!$B$9:$H$4077,7,FALSE)="X",IF(VLOOKUP(I6+2,'BD Dias No utiles'!$B$9:$H$4077,7,FALSE)="X",I6+3,I6+2),I6+1),I6),0) -> 2018-03-19 | K6: 28
B7: 4 | C7: =+IF(Simulador!$G$26>='Cronograma Referencial'!B7,EDATE(C6,(B7-B6)*VLOOKUP(Simulador!$G$27,Simulador!$V$18:$W$29,2,FALSE)/30),0) -> 2018-04-17 | D7: 31 | E7: =+IF(Simulador!$G$26>='Cronograma Referencial'!B7,'Cronograma Referencial'!E6+VLOOKUP(Simulador!$G$27,Simulador!$V$18:$W$29,2,FALSE),0) -> 2018-04-17 | F7: 30 | H7: 4 | I7: 2018-04-17 | J7: =+IFERROR(IF(VLOOKUP(I7,'BD Dias No utiles'!$B$9:$H$4077,7,FALSE)="X",IF(VLOOKUP(I7+1,'BD Dias No utiles'!$B$9:$H$4077,7,FALSE)="X",IF(VLOOKUP(I7+2,'BD Dias No utiles'!$B$9:$H$4077,7,FALSE)="X",I7+3,I7+2),I7+1),I7),0) -> 2018-04-17 | K7: 31
B8: 5 | C8: =+IF(Simulador!$G$26>='Cronograma Referencial'!B8,EDATE(C7,(B8-B7)*VLOOKUP(Simulador!$G$27,Simulador!$V$18:$W$29,2,FALSE)/30),0) -> 2018-05-17 | D8: 30 | E8: =+IF(Simulador!$G$26>='Cronograma Referencial'!B8,'Cronograma Referencial'!E7+VLOOKUP(Simulador!$G$27,Simulador!$V$18:$W$29,2,FALSE),0) -> 2018-05-17 | F8: 30 | H8: 5 | I8: 2018-05-17 | J8: =+IFERROR(IF(VLOOKUP(I8,'BD Dias No utiles'!$B$9:$H$4077,7,FALSE)="X",IF(VLOOKUP(I8+1,'BD Dias No utiles'!$B$9:$H$4077,7,FALSE)="X",IF(VLOOKUP(I8+2,'BD Dias No utiles'!$B$9:$H$4077,7,FALSE)="X",I8+3,I8+2),I8+1),I8),0) -> 2018-05-17 | K8: 30
B9: 6 | C9: =+IF(Simulador!$G$26>='Cronograma Referencial'!B9,EDATE(C8,(B9-B8)*VLOOKUP(Simulador!$G$27,Simulador!$V$18:$W$29,2,FALSE)/30),0) -> 2018-06-17 | D9: 31 | E9: =+IF(Simulador!$G$26>='Cronograma Referencial'!B9,'Cronograma Referencial'!E8+VLOOKUP(Simulador!$G$27,Simulador!$V$18:$W$29,2,FALSE),0) -> 2018-06-16 | F9: 30 | H9: 6 | I9: 2018-06-17 | J9: =+IFERROR(IF(VLOOKUP(I9,'BD Dias No utiles'!$B$9:$H$4077,7,FALSE)="X",IF(VLOOKUP(I9+1,'BD Dias No utiles'!$B$9:$H$4077,7,FALSE)="X",IF(VLOOKUP(I9+2,'BD Dias No utiles'!$B$9:$H$4077,7,FALSE)="X",I9+3,I9+2),I9+1),I9),0) -> 2018-06-18 | K9: 31
B10: 7 | C10: =+IF(Simulador!$G$26>='Cronograma Referencial'!B10,EDATE(C9,(B10-B9)*VLOOKUP(Simulador!$G$27,Simulador!$V$18:$W$29,2,FALSE)/30),0) -> 2018-07-17 | D10: 30 | E10: =+IF(Simulador!$G$26>='Cronograma Referencial'!B10,'Cronograma Referencial'!E9+VLOOKUP(Simulador!$G$27,Simulador!$V$18:$W$29,2,FALSE),0) -> 2018-07-16 | F10: 30 | H10: 7 | I10: 2018-07-17 | J10: =+IFERROR(IF(VLOOKUP(I10,'BD Dias No utiles'!$B$9:$H$4077,7,FALSE)="X",IF(VLOOKUP(I10+1,'BD Dias No utiles'!$B$9:$H$4077,7,FALSE)="X",IF(VLOOKUP(I10+2,'BD Dias No utiles'!$B$9:$H$4077,7,FALSE)="X",I10+3,I10+2),I10+1),I10),0) -> 2018-07-17 | K10: 30
B11: 8 | C11: =+IF(Simulador!$G$26>='Cronograma Referencial'!B11,EDATE(C10,(B11-B10)*VLOOKUP(Simulador!$G$27,Simulador!$V$18:$W$29,2,FALSE)/30),0) -> 2018-08-17 | D11: 31 | E11: =+IF(Simulador!$G$26>='Cronograma Referencial'!B11,'Cronograma Referencial'!E10+VLOOKUP(Simulador!$G$27,Simulador!$V$18:$W$29,2,FALSE),0) -> 2018-08-15 | F11: 30 | H11: 8 | I11: 2018-08-17 | J11: =+IFERROR(IF(VLOOKUP(I11,'BD Dias No utiles'!$B$9:$H$4077,7,FALSE)="X",IF(VLOOKUP(I11+1,'BD Dias No utiles'!$B$9:$H$4077,7,FALSE)="X",IF(VLOOKUP(I11+2,'BD Dias No utiles'!$B$9:$H$4077,7,FALSE)="X",I11+3,I11+2),I11+1),I11),0) -> 2018-08-17 | K11: 31
B12: 9 | C12: =+IF(Simulador!$G$26>='Cronograma Referencial'!B12,EDATE(C11,(B12-B11)*VLOOKUP(Simulador!$G$27,Simulador!$V$18:$W$29,2,FALSE)/30),0) -> 2018-09-17 | D12: 31 | E12: =+IF(Simulador!$G$26>='Cronograma Referencial'!B12,'Cronograma Referencial'!E11+VLOOKUP(Simulador!$G$27,Simulador!$V$18:$W$29,2,FALSE),0) -> 2018-09-14 | F12: 30 | H12: 9 | I12: 2018-09-17 | J12: =+IFERROR(IF(VLOOKUP(I12,'BD Dias No utiles'!$B$9:$H$4077,7,FALSE)="X",IF(VLOOKUP(I12+1,'BD Dias No utiles'!$B$9:$H$4077,7,FALSE)="X",IF(VLOOKUP(I12+2,'BD Dias No utiles'!$B$9:$H$4077,7,FALSE)="X",I12+3,I12+2),I12+1),I12),0) -> 2018-09-17 | K12: 31
B13: 10 | C13: =+IF(Simulador!$G$26>='Cronograma Referencial'!B13,EDATE(C12,(B13-B12)*VLOOKUP(Simulador!$G$27,Simulador!$V$18:$W$29,2,FALSE)/30),0) -> 2018-10-17 | D13: 30 | E13: =+IF(Simulador!$G$26>='Cronograma Referencial'!B13,'Cronograma Referencial'!E12+VLOOKUP(Simulador!$G$27,Simulador!$V$18:$W$29,2,FALSE),0) -> 2018-10-14 | F13: 30 | H13: 10 | I13: 2018-10-17 | J13: =+IFERROR(IF(VLOOKUP(I13,'BD Dias No utiles'!$B$9:$H$4077,7,FALSE)="X",IF(VLOOKUP(I13+1,'BD Dias No utiles'!$B$9:$H$4077,7,FALSE)="X",IF(VLOOKUP(I13+2,'BD Dias No utiles'!$B$9:$H$4077,7,FALSE)="X",I13+3,I13+2),I13+1),I13),0) -> 2018-10-17 | K13: 30
B14: 11 | C14: =+IF(Simulador!$G$26>='Cronograma Referencial'!B14,EDATE(C13,(B14-B13)*VLOOKUP(Simulador!$G$27,Simulador!$V$18:$W$29,2,FALSE)/30),0) -> 2018-11-17 | D14: 31 | E14: =+IF(Simulador!$G$26>='Cronograma Referencial'!B14,'Cronograma Referencial'!E13+VLOOKUP(Simulador!$G$27,Simulador!$V$18:$W$29,2,FALSE),0) -> 2018-11-13 | F14: 30 | H14: 11 | I14: 2018-11-17 | J14: =+IFERROR(IF(VLOOKUP(I14,'BD Dias No utiles'!$B$9:$H$4077,7,FALSE)="X",IF(VLOOKUP(I14+1,'BD Dias No utiles'!$B$9:$H$4077,7,FALSE)="X",IF(VLOOKUP(I14+2,'BD Dias No utiles'!$B$9:$H$4077,7,FALSE)="X",I14+3,I14+2),I14+1),I14),0) -> 2018-11-19 | K14: 31
B15: 12 | C15: =+IF(Simulador!$G$26>='Cronograma Referencial'!B15,EDATE(C14,(B15-B14)*VLOOKUP(Simulador!$G$27,Simulador!$V$18:$W$29,2,FALSE)/30),0) -> 2018-12-17 | D15: 30 | E15: =+IF(Simulador!$G$26>='Cronograma Referencial'!B15,'Cronograma Referencial'!E14+VLOOKUP(Simulador!$G$27,Simulador!$V$18:$W$29,2,FALSE),0) -> 2018-12-13 | F15: 30 | H15: 12 | I15: 2018-12-17 | J15: =+IFERROR(IF(VLOOKUP(I15,'BD Dias No utiles'!$B$9:$H$4077,7,FALSE)="X",IF(VLOOKUP(I15+1,'BD Dias No utiles'!$B$9:$H$4077,7,FALSE)="X",IF(VLOOKUP(I15+2,'BD Dias No utiles'!$B$9:$H$4077,7,FALSE)="X",I15+3,I15+2),I15+1),I15),0) -> 2018-12-17 | K15: 30
B16: 13 | C16: =+IF(Simulador!$G$26>='Cronograma Referencial'!B16,EDATE(C15,(B16-B15)*VLOOKUP(Simulador!$G$27,Simulador!$V$18:$W$29,2,FALSE)/30),0) -> 00:00:00 | D16: -43451 | E16: =+IF(Simulador!$G$26>='Cronograma Referencial'!B16,'Cronograma Referencial'!E15+VLOOKUP(Simulador!$G$27,Simulador!$V$18:$W$29,2,FALSE),0) -> 00:00:00 | F16: -43447 | H16: 13 | I16: 00:00:00 | J16: =+IFERROR(IF(VLOOKUP(I16,'BD Dias No utiles'!$B$9:$H$4077,7,FALSE)="X",IF(VLOOKUP(I16+1,'BD Dias No utiles'!$B$9:$H$4077,7,FALSE)="X",IF(VLOOKUP(I16+2,'BD Dias No utiles'!$B$9:$H$4077,7,FALSE)="X",I16+3,I16+2),I16+1),I16),0) -> 00:00:00 | K16: -43451
B17: 14 | C17: =+IF(Simulador!$G$26>='Cronograma Referencial'!B17,EDATE(C16,(B17-B16)*VLOOKUP(Simulador!$G$27,Simulador!$V$18:$W$29,2,FALSE)/30),0) -> 00:00:00 | D17: 0 | E17: =+IF(Simulador!$G$26>='Cronograma Referencial'!B17,'Cronograma Referencial'!E16+VLOOKUP(Simulador!$G$27,Simulador!$V$18:$W$29,2,FALSE),0) -> 00:00:00 | F17: 0 | H17: 14 | I17: 00:00:00 | J17: =+IFERROR(IF(VLOOKUP(I17,'BD Dias No utiles'!$B$9:$H$4077,7,FALSE)="X",IF(VLOOKUP(I17+1,'BD Dias No utiles'!$B$9:$H$4077,7,FALSE)="X",IF(VLOOKUP(I17+2,'BD Dias No utiles'!$B$9:$H$4077,7,FALSE)="X",I17+3,I17+2),I17+1),I17),0) -> 00:00:00 | K17: 0
B18: 15 | C18: =+IF(Simulador!$G$26>='Cronograma Referencial'!B18,EDATE(C17,(B18-B17)*VLOOKUP(Simulador!$G$27,Simulador!$V$18:$W$29,2,FALSE)/30),0) -> 00:00:00 | D18: 0 | E18: =+IF(Simulador!$G$26>='Cronograma Referencial'!B18,'Cronograma Referencial'!E17+VLOOKUP(Simulador!$G$27,Simulador!$V$18:$W$29,2,FALSE),0) -> 00:00:00 | F18: 0 | H18: 15 | I18: 00:00:00 | J18: =+IFERROR(IF(VLOOKUP(I18,'BD Dias No utiles'!$B$9:$H$4077,7,FALSE)="X",IF(VLOOKUP(I18+1,'BD Dias No utiles'!$B$9:$H$4077,7,FALSE)="X",IF(VLOOKUP(I18+2,'BD Dias No utiles'!$B$9:$H$4077,7,FALSE)="X",I18+3,I18+2),I18+1),I18),0) -> 00:00:00 | K18: 0
B19: 16 | C19: =+IF(Simulador!$G$26>='Cronograma Referencial'!B19,EDATE(C18,(B19-B18)*VLOOKUP(Simulador!$G$27,Simulador!$V$18:$W$29,2,FALSE)/30),0) -> 00:00:00 | D19: 0 | E19: =+IF(Simulador!$G$26>='Cronograma Referencial'!B19,'Cronograma Referencial'!E18+VLOOKUP(Simulador!$G$27,Simulador!$V$18:$W$29,2,FALSE),0) -> 00:00:00 | F19: 0 | H19: 16 | I19: 00:00:00 | J19: =+IFERROR(IF(VLOOKUP(I19,'BD Dias No utiles'!$B$9:$H$4077,7,FALSE)="X",IF(VLOOKUP(I19+1,'BD Dias No utiles'!$B$9:$H$4077,7,FALSE)="X",IF(VLOOKUP(I19+2,'BD Dias No utiles'!$B$9:$H$4077,7,FALSE)="X",I19+3,I19+2),I19+1),I19),0) -> 00:00:00 | K19: 0
B20: 17 | C20: =+IF(Simulador!$G$26>='Cronograma Referencial'!B20,EDATE(C19,(B20-B19)*VLOOKUP(Simulador!$G$27,Simulador!$V$18:$W$29,2,FALSE)/30),0) -> 00:00:00 | D20: 0 | E20: =+IF(Simulador!$G$26>='Cronograma Referencial'!B20,'Cronograma Referencial'!E19+VLOOKUP(Simulador!$G$27,Simulador!$V$18:$W$29,2,FALSE),0) -> 00:00:00 | F20: 0 | H20: 17 | I20: 00:00:00 | J20: =+IFERROR(IF(VLOOKUP(I20,'BD Dias No utiles'!$B$9:$H$4077,7,FALSE)="X",IF(VLOOKUP(I20+1,'BD Dias No utiles'!$B$9:$H$4077,7,FALSE)="X",IF(VLOOKUP(I20+2,'BD Dias No utiles'!$B$9:$H$4077,7,FALSE)="X",I20+3,I20+2),I20+1),I20),0) -> 00:00:00 | K20: 0
B21: 18 | C21: =+IF(Simulador!$G$26>='Cronograma Referencial'!B21,EDATE(C20,(B21-B20)*VLOOKUP(Simulador!$G$27,Simulador!$V$18:$W$29,2,FALSE)/30),0) -> 00:00:00 | D21: 0 | E21: =+IF(Simulador!$G$26>='Cronograma Referencial'!B21,'Cronograma Referencial'!E20+VLOOKUP(Simulador!$G$27,Simulador!$V$18:$W$29,2,FALSE),0) -> 00:00:00 | F21: 0 | H21: 18 | I21: 00:00:00 | J21: =+IFERROR(IF(VLOOKUP(I21,'BD Dias No utiles'!$B$9:$H$4077,7,FALSE)="X",IF(VLOOKUP(I21+1,'BD Dias No utiles'!$B$9:$H$4077,7,FALSE)="X",IF(VLOOKUP(I21+2,'BD Dias No utiles'!$B$9:$H$4077,7,FALSE)="X",I21+3,I21+2),I21+1),I21),0) -> 00:00:00 | K21: 0
B22: 19 | C22: =+IF(Simulador!$G$26>='Cronograma Referencial'!B22,EDATE(C21,(B22-B21)*VLOOKUP(Simulador!$G$27,Simulador!$V$18:$W$29,2,FALSE)/30),0) -> 00:00:00 | D22: 0 | E22: =+IF(Simulador!$G$26>='Cronograma Referencial'!B22,'Cronograma Referencial'!E21+VLOOKUP(Simulador!$G$27,Simulador!$V$18:$W$29,2,FALSE),0) -> 00:00:00 | F22: 0 | H22: 19 | I22: 00:00:00 | J22: =+IFERROR(IF(VLOOKUP(I22,'BD Dias No utiles'!$B$9:$H$4077,7,FALSE)="X",IF(VLOOKUP(I22+1,'BD Dias No utiles'!$B$9:$H$4077,7,FALSE)="X",IF(VLOOKUP(I22+2,'BD Dias No utiles'!$B$9:$H$4077,7,FALSE)="X",I22+3,I22+2),I22+1),I22),0) -> 00:00:00 | K22: 0
B23: 20 | C23: =+IF(Simulador!$G$26>='Cronograma Referencial'!B23,EDATE(C22,(B23-B22)*VLOOKUP(Simulador!$G$27,Simulador!$V$18:$W$29,2,FALSE)/30),0) -> 00:00:00 | D23: 0 | E23: =+IF(Simulador!$G$26>='Cronograma Referencial'!B23,'Cronograma Referencial'!E22+VLOOKUP(Simulador!$G$27,Simulador!$V$18:$W$29,2,FALSE),0) -> 00:00:00 | F23: 0 | H23: 20 | I23: 00:00:00 | J23: =+IFERROR(IF(VLOOKUP(I23,'BD Dias No utiles'!$B$9:$H$4077,7,FALSE)="X",IF(VLOOKUP(I23+1,'BD Dias No utiles'!$B$9:$H$4077,7,FALSE)="X",IF(VLOOKUP(I23+2,'BD Dias No utiles'!$B$9:$H$4077,7,FALSE)="X",I23+3,I23+2),I23+1),I23),0) -> 00:00:00 | K23: 0
B24: 21 | C24: =+IF(Simulador!$G$26>='Cronograma Referencial'!B24,EDATE(C23,(B24-B23)*VLOOKUP(Simulador!$G$27,Simulador!$V$18:$W$29,2,FALSE)/30),0) -> 00:00:00 | D24: 0 | E24: =+IF(Simulador!$G$26>='Cronograma Referencial'!B24,'Cronograma Referencial'!E23+VLOOKUP(Simulador!$G$27,Simulador!$V$18:$W$29,2,FALSE),0) -> 00:00:00 | F24: 0 | H24: 21 | I24: 00:00:00 | J24: =+IFERROR(IF(VLOOKUP(I24,'BD Dias No utiles'!$B$9:$H$4077,7,FALSE)="X",IF(VLOOKUP(I24+1,'BD Dias No utiles'!$B$9:$H$4077,7,FALSE)="X",IF(VLOOKUP(I24+2,'BD Dias No utiles'!$B$9:$H$4077,7,FALSE)="X",I24+3,I24+2),I24+1),I24),0) -> 00:00:00 | K24: 0
B25: 22 | C25: =+IF(Simulador!$G$26>='Cronograma Referencial'!B25,EDATE(C24,(B25-B24)*VLOOKUP(Simulador!$G$27,Simulador!$V$18:$W$29,2,FALSE)/30),0) -> 00:00:00 | D25: 0 | E25: =+IF(Simulador!$G$26>='Cronograma Referencial'!B25,'Cronograma Referencial'!E24+VLOOKUP(Simulador!$G$27,Simulador!$V$18:$W$29,2,FALSE),0) -> 00:00:00 | F25: 0 | H25: 22 | I25: 00:00:00 | J25: =+IFERROR(IF(VLOOKUP(I25,'BD Dias No utiles'!$B$9:$H$4077,7,FALSE)="X",IF(VLOOKUP(I25+1,'BD Dias No utiles'!$B$9:$H$4077,7,FALSE)="X",IF(VLOOKUP(I25+2,'BD Dias No utiles'!$B$9:$H$4077,7,FALSE)="X",I25+3,I25+2),I25+1),I25),0) -> 00:00:00 | K25: 0
B26: 23 | C26: =+IF(Simulador!$G$26>='Cronograma Referencial'!B26,EDATE(C25,(B26-B25)*VLOOKUP(Simulador!$G$27,Simulador!$V$18:$W$29,2,FALSE)/30),0) -> 00:00:00 | D26: 0 | E26: =+IF(Simulador!$G$26>='Cronograma Referencial'!B26,'Cronograma Referencial'!E25+VLOOKUP(Simulador!$G$27,Simulador!$V$18:$W$29,2,FALSE),0) -> 00:00:00 | F26: 0 | H26: 23 | I26: 00:00:00 | J26: =+IFERROR(IF(VLOOKUP(I26,'BD Dias No utiles'!$B$9:$H$4077,7,FALSE)="X",IF(VLOOKUP(I26+1,'BD Dias No utiles'!$B$9:$H$4077,7,FALSE)="X",IF(VLOOKUP(I26+2,'BD Dias No utiles'!$B$9:$H$4077,7,FALSE)="X",I26+3,I26+2),I26+1),I26),0) -> 00:00:00 | K26: 0
B27: 24 | C27: =+IF(Simulador!$G$26>='Cronograma Referencial'!B27,EDATE(C26,(B27-B26)*VLOOKUP(Simulador!$G$27,Simulador!$V$18:$W$29,2,FALSE)/30),0) -> 00:00:00 | D27: 0 | E27: =+IF(Simulador!$G$26>='Cronograma Referencial'!B27,'Cronograma Referencial'!E26+VLOOKUP(Simulador!$G$27,Simulador!$V$18:$W$29,2,FALSE),0) -> 00:00:00 | F27: 0 | H27: 24 | I27: 00:00:00 | J27: =+IFERROR(IF(VLOOKUP(I27,'BD Dias No utiles'!$B$9:$H$4077,7,FALSE)="X",IF(VLOOKUP(I27+1,'BD Dias No utiles'!$B$9:$H$4077,7,FALSE)="X",IF(VLOOKUP(I27+2,'BD Dias No utiles'!$B$9:$H$4077,7,FALSE)="X",I27+3,I27+2),I27+1),I27),0) -> 00:00:00 | K27: 0
B28: 25 | C28: =+IF(Simulador!$G$26>='Cronograma Referencial'!B28,EDATE(C27,(B28-B27)*VLOOKUP(Simulador!$G$27,Simulador!$V$18:$W$29,2,FALSE)/30),0) -> 00:00:00 | D28: 0 | E28: =+IF(Simulador!$G$26>='Cronograma Referencial'!B28,'Cronograma Referencial'!E27+VLOOKUP(Simulador!$G$27,Simulador!$V$18:$W$29,2,FALSE),0) -> 00:00:00 | F28: 0 | H28: 25 | I28: 00:00:00 | J28: =+IFERROR(IF(VLOOKUP(I28,'BD Dias No utiles'!$B$9:$H$4077,7,FALSE)="X",IF(VLOOKUP(I28+1,'BD Dias No utiles'!$B$9:$H$4077,7,FALSE)="X",IF(VLOOKUP(I28+2,'BD Dias No utiles'!$B$9:$H$4077,7,FALSE)="X",I28+3,I28+2),I28+1),I28),0) -> 00:00:00 | K28: 0
B29: 26 | C29: =+IF(Simulador!$G$26>='Cronograma Referencial'!B29,EDATE(C28,(B29-B28)*VLOOKUP(Simulador!$G$27,Simulador!$V$18:$W$29,2,FALSE)/30),0) -> 00:00:00 | D29: 0 | E29: =+IF(Simulador!$G$26>='Cronograma Referencial'!B29,'Cronograma Referencial'!E28+VLOOKUP(Simulador!$G$27,Simulador!$V$18:$W$29,2,FALSE),0) -> 00:00:00 | F29: 0 | H29: 26 | I29: 00:00:00 | J29: =+IFERROR(IF(VLOOKUP(I29,'BD Dias No utiles'!$B$9:$H$4077,7,FALSE)="X",IF(VLOOKUP(I29+1,'BD Dias No utiles'!$B$9:$H$4077,7,FALSE)="X",IF(VLOOKUP(I29+2,'BD Dias No utiles'!$B$9:$H$4077,7,FALSE)="X",I29+3,I29+2),I29+1),I29),0) -> 00:00:00 | K29: 0
B30: 27 | C30: =+IF(Simulador!$G$26>='Cronograma Referencial'!B30,EDATE(C29,(B30-B29)*VLOOKUP(Simulador!$G$27,Simulador!$V$18:$W$29,2,FALSE)/30),0) -> 00:00:00 | D30: 0 | E30: =+IF(Simulador!$G$26>='Cronograma Referencial'!B30,'Cronograma Referencial'!E29+VLOOKUP(Simulador!$G$27,Simulador!$V$18:$W$29,2,FALSE),0) -> 00:00:00 | F30: 0 | H30: 27 | I30: 00:00:00 | J30: =+IFERROR(IF(VLOOKUP(I30,'BD Dias No utiles'!$B$9:$H$4077,7,FALSE)="X",IF(VLOOKUP(I30+1,'BD Dias No utiles'!$B$9:$H$4077,7,FALSE)="X",IF(VLOOKUP(I30+2,'BD Dias No utiles'!$B$9:$H$4077,7,FALSE)="X",I30+3,I30+2),I30+1),I30),0) -> 00:00:00 | K30: 0
B31: 28 | C31: =+IF(Simulador!$G$26>='Cronograma Referencial'!B31,EDATE(C30,(B31-B30)*VLOOKUP(Simulador!$G$27,Simulador!$V$18:$W$29,2,FALSE)/30),0) -> 00:00:00 | D31: 0 | E31: =+IF(Simulador!$G$26>='Cronograma Referencial'!B31,'Cronograma Referencial'!E30+VLOOKUP(Simulador!$G$27,Simulador!$V$18:$W$29,2,FALSE),0) -> 00:00:00 | F31: 0 | H31: 28 | I31: 00:00:00 | J31: =+IFERROR(IF(VLOOKUP(I31,'BD Dias No utiles'!$B$9:$H$4077,7,FALSE)="X",IF(VLOOKUP(I31+1,'BD Dias No utiles'!$B$9:$H$4077,7,FALSE)="X",IF(VLOOKUP(I31+2,'BD Dias No utiles'!$B$9:$H$4077,7,FALSE)="X",I31+3,I31+2),I31+1),I31),0) -> 00:00:00 | K31: 0
B32: 29 | C32: =+IF(Simulador!$G$26>='Cronograma Referencial'!B32,EDATE(C31,(B32-B31)*VLOOKUP(Simulador!$G$27,Simulador!$V$18:$W$29,2,FALSE)/30),0) -> 00:00:00 | D32: 0 | E32: =+IF(Simulador!$G$26>='Cronograma Referencial'!B32,'Cronograma Referencial'!E31+VLOOKUP(Simulador!$G$27,Simulador!$V$18:$W$29,2,FALSE),0) -> 00:00:00 | F32: 0 | H32: 29 | I32: 00:00:00 | J32: =+IFERROR(IF(VLOOKUP(I32,'BD Dias No utiles'!$B$9:$H$4077,7,FALSE)="X",IF(VLOOKUP(I32+1,'BD Dias No utiles'!$B$9:$H$4077,7,FALSE)="X",IF(VLOOKUP(I32+2,'BD Dias No utiles'!$B$9:$H$4077,7,FALSE)="X",I32+3,I32+2),I32+1),I32),0) -> 00:00:00 | K32: 0
B33: 30 | C33: =+IF(Simulador!$G$26>='Cronograma Referencial'!B33,EDATE(C32,(B33-B32)*VLOOKUP(Simulador!$G$27,Simulador!$V$18:$W$29,2,FALSE)/30),0) -> 00:00:00 | D33: 0 | E33: =+IF(Simulador!$G$26>='Cronograma Referencial'!B33,'Cronograma Referencial'!E32+VLOOKUP(Simulador!$G$27,Simulador!$V$18:$W$29,2,FALSE),0) -> 00:00:00 | F33: 0 | H33: 30 | I33: 00:00:00 | J33: =+IFERROR(IF(VLOOKUP(I33,'BD Dias No utiles'!$B$9:$H$4077,7,FALSE)="X",IF(VLOOKUP(I33+1,'BD Dias No utiles'!$B$9:$H$4077,7,FALSE)="X",IF(VLOOKUP(I33+2,'BD Dias No utiles'!$B$9:$H$4077,7,FALSE)="X",I33+3,I33+2),I33+1),I33),0) -> 00:00:00 | K33: 0
B34: 31 | C34: =+IF(Simulador!$G$26>='Cronograma Referencial'!B34,EDATE(C33,(B34-B33)*VLOOKUP(Simulador!$G$27,Simulador!$V$18:$W$29,2,FALSE)/30),0) -> 00:00:00 | D34: 0 | E34: =+IF(Simulador!$G$26>='Cronograma Referencial'!B34,'Cronograma Referencial'!E33+VLOOKUP(Simulador!$G$27,Simulador!$V$18:$W$29,2,FALSE),0) -> 00:00:00 | F34: 0 | H34: 31 | I34: 00:00:00 | J34: =+IFERROR(IF(VLOOKUP(I34,'BD Dias No utiles'!$B$9:$H$4077,7,FALSE)="X",IF(VLOOKUP(I34+1,'BD Dias No utiles'!$B$9:$H$4077,7,FALSE)="X",IF(VLOOKUP(I34+2,'BD Dias No utiles'!$B$9:$H$4077,7,FALSE)="X",I34+3,I34+2),I34+1),I34),0) -> 00:00:00 | K34: 0
B35: 32 | C35: =+IF(Simulador!$G$26>='Cronograma Referencial'!B35,EDATE(C34,(B35-B34)*VLOOKUP(Simulador!$G$27,Simulador!$V$18:$W$29,2,FALSE)/30),0) -> 00:00:00 | D35: 0 | E35: =+IF(Simulador!$G$26>='Cronograma Referencial'!B35,'Cronograma Referencial'!E34+VLOOKUP(Simulador!$G$27,Simulador!$V$18:$W$29,2,FALSE),0) -> 00:00:00 | F35: 0 | H35: 32 | I35: 00:00:00 | J35: =+IFERROR(IF(VLOOKUP(I35,'BD Dias No utiles'!$B$9:$H$4077,7,FALSE)="X",IF(VLOOKUP(I35+1,'BD Dias No utiles'!$B$9:$H$4077,7,FALSE)="X",IF(VLOOKUP(I35+2,'BD Dias No utiles'!$B$9:$H$4077,7,FALSE)="X",I35+3,I35+2),I35+1),I35),0) -> 00:00:00 | K35: 0
B36: 33 | C36: =+IF(Simulador!$G$26>='Cronograma Referencial'!B36,EDATE(C35,(B36-B35)*VLOOKUP(Simulador!$G$27,Simulador!$V$18:$W$29,2,FALSE)/30),0) -> 00:00:00 | D36: 0 | E36: =+IF(Simulador!$G$26>='Cronograma Referencial'!B36,'Cronograma Referencial'!E35+VLOOKUP(Simulador!$G$27,Simulador!$V$18:$W$29,2,FALSE),0) -> 00:00:00 | F36: 0 | H36: 33 | I36: 00:00:00 | J36: =+IFERROR(IF(VLOOKUP(I36,'BD Dias No utiles'!$B$9:$H$4077,7,FALSE)="X",IF(VLOOKUP(I36+1,'BD Dias No utiles'!$B$9:$H$4077,7,FALSE)="X",IF(VLOOKUP(I36+2,'BD Dias No utiles'!$B$9:$H$4077,7,FALSE)="X",I36+3,I36+2),I36+1),I36),0) -> 00:00:00 | K36: 0
B37: 34 | C37: =+IF(Simulador!$G$26>='Cronograma Referencial'!B37,EDATE(C36,(B37-B36)*VLOOKUP(Simulador!$G$27,Simulador!$V$18:$W$29,2,FALSE)/30),0) -> 00:00:00 | D37: 0 | E37: =+IF(Simulador!$G$26>='Cronograma Referencial'!B37,'Cronograma Referencial'!E36+VLOOKUP(Simulador!$G$27,Simulador!$V$18:$W$29,2,FALSE),0) -> 00:00:00 | F37: 0 | H37: 34 | I37: 00:00:00 | J37: =+IFERROR(IF(VLOOKUP(I37,'BD Dias No utiles'!$B$9:$H$4077,7,FALSE)="X",IF(VLOOKUP(I37+1,'BD Dias No utiles'!$B$9:$H$4077,7,FALSE)="X",IF(VLOOKUP(I37+2,'BD Dias No utiles'!$B$9:$H$4077,7,FALSE)="X",I37+3,I37+2),I37+1),I37),0) -> 00:00:00 | K37: 0
B38: 35 | C38: =+IF(Simulador!$G$26>='Cronograma Referencial'!B38,EDATE(C37,(B38-B37)*VLOOKUP(Simulador!$G$27,Simulador!$V$18:$W$29,2,FALSE)/30),0) -> 00:00:00 | D38: 0 | E38: =+IF(Simulador!$G$26>='Cronograma Referencial'!B38,'Cronograma Referencial'!E37+VLOOKUP(Simulador!$G$27,Simulador!$V$18:$W$29,2,FALSE),0) -> 00:00:00 | F38: 0 | H38: 35 | I38: 00:00:00 | J38: =+IFERROR(IF(VLOOKUP(I38,'BD Dias No utiles'!$B$9:$H$4077,7,FALSE)="X",IF(VLOOKUP(I38+1,'BD Dias No utiles'!$B$9:$H$4077,7,FALSE)="X",IF(VLOOKUP(I38+2,'BD Dias No utiles'!$B$9:$H$4077,7,FALSE)="X",I38+3,I38+2),I38+1),I38),0) -> 00:00:00 | K38: 0
B39: 36 | C39: =+IF(Simulador!$G$26>='Cronograma Referencial'!B39,EDATE(C38,(B39-B38)*VLOOKUP(Simulador!$G$27,Simulador!$V$18:$W$29,2,FALSE)/30),0) -> 00:00:00 | D39: 0 | E39: =+IF(Simulador!$G$26>='Cronograma Referencial'!B39,'Cronograma Referencial'!E38+VLOOKUP(Simulador!$G$27,Simulador!$V$18:$W$29,2,FALSE),0) -> 00:00:00 | F39: 0 | H39: 36 | I39: 00:00:00 | J39: =+IFERROR(IF(VLOOKUP(I39,'BD Dias No utiles'!$B$9:$H$4077,7,FALSE)="X",IF(VLOOKUP(I39+1,'BD Dias No utiles'!$B$9:$H$4077,7,FALSE)="X",IF(VLOOKUP(I39+2,'BD Dias No utiles'!$B$9:$H$4077,7,FALSE)="X",I39+3,I39+2),I39+1),I39),0) -> 00:00:00 | K39: 0
B40: 37 | C40: =+IF(Simulador!$G$26>='Cronograma Referencial'!B40,EDATE(C39,(B40-B39)*VLOOKUP(Simulador!$G$27,Simulador!$V$18:$W$29,2,FALSE)/30),0) -> 00:00:00 | D40: 0 | E40: =+IF(Simulador!$G$26>='Cronograma Referencial'!B40,'Cronograma Referencial'!E39+VLOOKUP(Simulador!$G$27,Simulador!$V$18:$W$29,2,FALSE),0) -> 00:00:00 | F40: 0 | H40: 37 | I40: 00:00:00 | J40: =+IFERROR(IF(VLOOKUP(I40,'BD Dias No utiles'!$B$9:$H$4077,7,FALSE)="X",IF(VLOOKUP(I40+1,'BD Dias No utiles'!$B$9:$H$4077,7,FALSE)="X",IF(VLOOKUP(I40+2,'BD Dias No utiles'!$B$9:$H$4077,7,FALSE)="X",I40+3,I40+2),I40+1),I40),0) -> 00:00:00 | K40: 0
B41: 38 | C41: =+IF(Simulador!$G$26>='Cronograma Referencial'!B41,EDATE(C40,(B41-B40)*VLOOKUP(Simulador!$G$27,Simulador!$V$18:$W$29,2,FALSE)/30),0) -> 00:00:00 | D41: 0 | E41: =+IF(Simulador!$G$26>='Cronograma Referencial'!B41,'Cronograma Referencial'!E40+VLOOKUP(Simulador!$G$27,Simulador!$V$18:$W$29,2,FALSE),0) -> 00:00:00 | F41: 0 | H41: 38 | I41: 00:00:00 | J41: =+IFERROR(IF(VLOOKUP(I41,'BD Dias No utiles'!$B$9:$H$4077,7,FALSE)="X",IF(VLOOKUP(I41+1,'BD Dias No utiles'!$B$9:$H$4077,7,FALSE)="X",IF(VLOOKUP(I41+2,'BD Dias No utiles'!$B$9:$H$4077,7,FALSE)="X",I41+3,I41+2),I41+1),I41),0) -> 00:00:00 | K41: 0
B42: 39 | C42: =+IF(Simulador!$G$26>='Cronograma Referencial'!B42,EDATE(C41,(B42-B41)*VLOOKUP(Simulador!$G$27,Simulador!$V$18:$W$29,2,FALSE)/30),0) -> 00:00:00 | D42: 0 | E42: =+IF(Simulador!$G$26>='Cronograma Referencial'!B42,'Cronograma Referencial'!E41+VLOOKUP(Simulador!$G$27,Simulador!$V$18:$W$29,2,FALSE),0) -> 00:00:00 | F42: 0 | H42: 39 | I42: 00:00:00 | J42: =+IFERROR(IF(VLOOKUP(I42,'BD Dias No utiles'!$B$9:$H$4077,7,FALSE)="X",IF(VLOOKUP(I42+1,'BD Dias No utiles'!$B$9:$H$4077,7,FALSE)="X",IF(VLOOKUP(I42+2,'BD Dias No utiles'!$B$9:$H$4077,7,FALSE)="X",I42+3,I42+2),I42+1),I42),0) -> 00:00:00 | K42: 0
B43: 40 | C43: =+IF(Simulador!$G$26>='Cronograma Referencial'!B43,EDATE(C42,(B43-B42)*VLOOKUP(Simulador!$G$27,Simulador!$V$18:$W$29,2,FALSE)/30),0) -> 00:00:00 | D43: 0 | E43: =+IF(Simulador!$G$26>='Cronograma Referencial'!B43,'Cronograma Referencial'!E42+VLOOKUP(Simulador!$G$27,Simulador!$V$18:$W$29,2,FALSE),0) -> 00:00:00 | F43: 0 | H43: 40 | I43: 00:00:00 | J43: =+IFERROR(IF(VLOOKUP(I43,'BD Dias No utiles'!$B$9:$H$4077,7,FALSE)="X",IF(VLOOKUP(I43+1,'BD Dias No utiles'!$B$9:$H$4077,7,FALSE)="X",IF(VLOOKUP(I43+2,'BD Dias No utiles'!$B$9:$H$4077,7,FALSE)="X",I43+3,I43+2),I43+1),I43),0) -> 00:00:00 | K43: 0
B44: 41 | C44: =+IF(Simulador!$G$26>='Cronograma Referencial'!B44,EDATE(C43,(B44-B43)*VLOOKUP(Simulador!$G$27,Simulador!$V$18:$W$29,2,FALSE)/30),0) -> 00:00:00 | D44: 0 | E44: =+IF(Simulador!$G$26>='Cronograma Referencial'!B44,'Cronograma Referencial'!E43+VLOOKUP(Simulador!$G$27,Simulador!$V$18:$W$29,2,FALSE),0) -> 00:00:00 | F44: 0 | H44: 41 | I44: 00:00:00 | J44: =+IFERROR(IF(VLOOKUP(I44,'BD Dias No utiles'!$B$9:$H$4077,7,FALSE)="X",IF(VLOOKUP(I44+1,'BD Dias No utiles'!$B$9:$H$4077,7,FALSE)="X",IF(VLOOKUP(I44+2,'BD Dias No utiles'!$B$9:$H$4077,7,FALSE)="X",I44+3,I44+2),I44+1),I44),0) -> 00:00:00 | K44: 0
B45: 42 | C45: =+IF(Simulador!$G$26>='Cronograma Referencial'!B45,EDATE(C44,(B45-B44)*VLOOKUP(Simulador!$G$27,Simulador!$V$18:$W$29,2,FALSE)/30),0) -> 00:00:00 | D45: 0 | E45: =+IF(Simulador!$G$26>='Cronograma Referencial'!B45,'Cronograma Referencial'!E44+VLOOKUP(Simulador!$G$27,Simulador!$V$18:$W$29,2,FALSE),0) -> 00:00:00 | F45: 0 | H45: 42 | I45: 00:00:00 | J45: =+IFERROR(IF(VLOOKUP(I45,'BD Dias No utiles'!$B$9:$H$4077,7,FALSE)="X",IF(VLOOKUP(I45+1,'BD Dias No utiles'!$B$9:$H$4077,7,FALSE)="X",IF(VLOOKUP(I45+2,'BD Dias No utiles'!$B$9:$H$4077,7,FALSE)="X",I45+3,I45+2),I45+1),I45),0) -> 00:00:00 | K45: 0
B46: 43 | C46: =+IF(Simulador!$G$26>='Cronograma Referencial'!B46,EDATE(C45,(B46-B45)*VLOOKUP(Simulador!$G$27,Simulador!$V$18:$W$29,2,FALSE)/30),0) -> 00:00:00 | D46: 0 | E46: =+IF(Simulador!$G$26>='Cronograma Referencial'!B46,'Cronograma Referencial'!E45+VLOOKUP(Simulador!$G$27,Simulador!$V$18:$W$29,2,FALSE),0) -> 00:00:00 | F46: 0 | H46: 43 | I46: 00:00:00 | J46: =+IFERROR(IF(VLOOKUP(I46,'BD Dias No utiles'!$B$9:$H$4077,7,FALSE)="X",IF(VLOOKUP(I46+1,'BD Dias No utiles'!$B$9:$H$4077,7,FALSE)="X",IF(VLOOKUP(I46+2,'BD Dias No utiles'!$B$9:$H$4077,7,FALSE)="X",I46+3,I46+2),I46+1),I46),0) -> 00:00:00 | K46: 0
B47: 44 | C47: =+IF(Simulador!$G$26>='Cronograma Referencial'!B47,EDATE(C46,(B47-B46)*VLOOKUP(Simulador!$G$27,Simulador!$V$18:$W$29,2,FALSE)/30),0) -> 00:00:00 | D47: 0 | E47: =+IF(Simulador!$G$26>='Cronograma Referencial'!B47,'Cronograma Referencial'!E46+VLOOKUP(Simulador!$G$27,Simulador!$V$18:$W$29,2,FALSE),0) -> 00:00:00 | F47: 0 | H47: 44 | I47: 00:00:00 | J47: =+IFERROR(IF(VLOOKUP(I47,'BD Dias No utiles'!$B$9:$H$4077,7,FALSE)="X",IF(VLOOKUP(I47+1,'BD Dias No utiles'!$B$9:$H$4077,7,FALSE)="X",IF(VLOOKUP(I47+2,'BD Dias No utiles'!$B$9:$H$4077,7,FALSE)="X",I47+3,I47+2),I47+1),I47),0) -> 00:00:00 | K47: 0
B48: 45 | C48: =+IF(Simulador!$G$26>='Cronograma Referencial'!B48,EDATE(C47,(B48-B47)*VLOOKUP(Simulador!$G$27,Simulador!$V$18:$W$29,2,FALSE)/30),0) -> 00:00:00 | D48: 0 | E48: =+IF(Simulador!$G$26>='Cronograma Referencial'!B48,'Cronograma Referencial'!E47+VLOOKUP(Simulador!$G$27,Simulador!$V$18:$W$29,2,FALSE),0) -> 00:00:00 | F48: 0 | H48: 45 | I48: 00:00:00 | J48: =+IFERROR(IF(VLOOKUP(I48,'BD Dias No utiles'!$B$9:$H$4077,7,FALSE)="X",IF(VLOOKUP(I48+1,'BD Dias No utiles'!$B$9:$H$4077,7,FALSE)="X",IF(VLOOKUP(I48+2,'BD Dias No utiles'!$B$9:$H$4077,7,FALSE)="X",I48+3,I48+2),I48+1),I48),0) -> 00:00:00 | K48: 0
A49: =+E49-C3 -> -43117 | B49: 46 | C49: =+IF(Simulador!$G$26>='Cronograma Referencial'!B49,EDATE(C48,(B49-B48)*VLOOKUP(Simulador!$G$27,Simulador!$V$18:$W$29,2,FALSE)/30),0) -> 00:00:00 | D49: 0 | E49: =+IF(Simulador!$G$26>='Cronograma Referencial'!B49,'Cronograma Referencial'!E48+VLOOKUP(Simulador!$G$27,Simulador!$V$18:$W$29,2,FALSE),0) -> 00:00:00 | F49: 0 | H49: 46 | I49: 00:00:00 | J49: =+IFERROR(IF(VLOOKUP(I49,'BD Dias No utiles'!$B$9:$H$4077,7,FALSE)="X",IF(VLOOKUP(I49+1,'BD Dias No utiles'!$B$9:$H$4077,7,FALSE)="X",IF(VLOOKUP(I49+2,'BD Dias No utiles'!$B$9:$H$4077,7,FALSE)="X",I49+3,I49+2),I49+1),I49),0) -> 00:00:00 | K49: 0
B50: 47 | C50: =+IF(Simulador!$G$26>='Cronograma Referencial'!B50,EDATE(C49,(B50-B49)*VLOOKUP(Simulador!$G$27,Simulador!$V$18:$W$29,2,FALSE)/30),0) -> 00:00:00 | D50: 0 | E50: =+IF(Simulador!$G$26>='Cronograma Referencial'!B50,'Cronograma Referencial'!E49+VLOOKUP(Simulador!$G$27,Simulador!$V$18:$W$29,2,FALSE),0) -> 00:00:00 | F50: 0 | H50: 47 | I50: 00:00:00 | J50: =+IFERROR(IF(VLOOKUP(I50,'BD Dias No utiles'!$B$9:$H$4077,7,FALSE)="X",IF(VLOOKUP(I50+1,'BD Dias No utiles'!$B$9:$H$4077,7,FALSE)="X",IF(VLOOKUP(I50+2,'BD Dias No utiles'!$B$9:$H$4077,7,FALSE)="X",I50+3,I50+2),I50+1),I50),0) -> 00:00:00 | K50: 0
B51: 48 | C51: =+IF(Simulador!$G$26>='Cronograma Referencial'!B51,EDATE(C50,(B51-B50)*VLOOKUP(Simulador!$G$27,Simulador!$V$18:$W$29,2,FALSE)/30),0) -> 00:00:00 | D51: 0 | E51: =+IF(Simulador!$G$26>='Cronograma Referencial'!B51,'Cronograma Referencial'!E50+VLOOKUP(Simulador!$G$27,Simulador!$V$18:$W$29,2,FALSE),0) -> 00:00:00 | F51: 0 | H51: 48 | I51: 00:00:00 | J51: =+IFERROR(IF(VLOOKUP(I51,'BD Dias No utiles'!$B$9:$H$4077,7,FALSE)="X",IF(VLOOKUP(I51+1,'BD Dias No utiles'!$B$9:$H$4077,7,FALSE)="X",IF(VLOOKUP(I51+2,'BD Dias No utiles'!$B$9:$H$4077,7,FALSE)="X",I51+3,I51+2),I51+1),I51),0) -> 00:00:00 | K51: 0
B52: 49 | C52: =+IF(Simulador!$G$26>='Cronograma Referencial'!B52,EDATE(C51,(B52-B51)*VLOOKUP(Simulador!$G$27,Simulador!$V$18:$W$29,2,FALSE)/30),0) -> 00:00:00 | D52: 0 | E52: =+IF(Simulador!$G$26>='Cronograma Referencial'!B52,'Cronograma Referencial'!E51+VLOOKUP(Simulador!$G$27,Simulador!$V$18:$W$29,2,FALSE),0) -> 00:00:00 | F52: 0 | H52: 49 | I52: 00:00:00 | J52: =+IFERROR(IF(VLOOKUP(I52,'BD Dias No utiles'!$B$9:$H$4077,7,FALSE)="X",IF(VLOOKUP(I52+1,'BD Dias No utiles'!$B$9:$H$4077,7,FALSE)="X",IF(VLOOKUP(I52+2,'BD Dias No utiles'!$B$9:$H$4077,7,FALSE)="X",I52+3,I52+2),I52+1),I52),0) -> 00:00:00 | K52: 0
B53: 50 | C53: =+IF(Simulador!$G$26>='Cronograma Referencial'!B53,EDATE(C52,(B53-B52)*VLOOKUP(Simulador!$G$27,Simulador!$V$18:$W$29,2,FALSE)/30),0) -> 00:00:00 | D53: 0 | E53: =+IF(Simulador!$G$26>='Cronograma Referencial'!B53,'Cronograma Referencial'!E52+VLOOKUP(Simulador!$G$27,Simulador!$V$18:$W$29,2,FALSE),0) -> 00:00:00 | F53: 0 | H53: 50 | I53: 00:00:00 | J53: =+IFERROR(IF(VLOOKUP(I53,'BD Dias No utiles'!$B$9:$H$4077,7,FALSE)="X",IF(VLOOKUP(I53+1,'BD Dias No utiles'!$B$9:$H$4077,7,FALSE)="X",IF(VLOOKUP(I53+2,'BD Dias No utiles'!$B$9:$H$4077,7,FALSE)="X",I53+3,I53+2),I53+1),I53),0) -> 00:00:00 | K53: 0
B54: 51 | C54: =+IF(Simulador!$G$26>='Cronograma Referencial'!B54,EDATE(C53,(B54-B53)*VLOOKUP(Simulador!$G$27,Simulador!$V$18:$W$29,2,FALSE)/30),0) -> 00:00:00 | D54: 0 | E54: =+IF(Simulador!$G$26>='Cronograma Referencial'!B54,'Cronograma Referencial'!E53+VLOOKUP(Simulador!$G$27,Simulador!$V$18:$W$29,2,FALSE),0) -> 00:00:00 | F54: 0 | H54: 51 | I54: 00:00:00 | J54: =+IFERROR(IF(VLOOKUP(I54,'BD Dias No utiles'!$B$9:$H$4077,7,FALSE)="X",IF(VLOOKUP(I54+1,'BD Dias No utiles'!$B$9:$H$4077,7,FALSE)="X",IF(VLOOKUP(I54+2,'BD Dias No utiles'!$B$9:$H$4077,7,FALSE)="X",I54+3,I54+2),I54+1),I54),0) -> 00:00:00 | K54: 0
B55: 52 | C55: =+IF(Simulador!$G$26>='Cronograma Referencial'!B55,EDATE(C54,(B55-B54)*VLOOKUP(Simulador!$G$27,Simulador!$V$18:$W$29,2,FALSE)/30),0) -> 00:00:00 | D55: 0 | E55: =+IF(Simulador!$G$26>='Cronograma Referencial'!B55,'Cronograma Referencial'!E54+VLOOKUP(Simulador!$G$27,Simulador!$V$18:$W$29,2,FALSE),0) -> 00:00:00 | F55: 0 | H55: 52 | I55: 00:00:00 | J55: =+IFERROR(IF(VLOOKUP(I55,'BD Dias No utiles'!$B$9:$H$4077,7,FALSE)="X",IF(VLOOKUP(I55+1,'BD Dias No utiles'!$B$9:$H$4077,7,FALSE)="X",IF(VLOOKUP(I55+2,'BD Dias No utiles'!$B$9:$H$4077,7,FALSE)="X",I55+3,I55+2),I55+1),I55),0) -> 00:00:00 | K55: 0
B56: 53 | C56: =+IF(Simulador!$G$26>='Cronograma Referencial'!B56,EDATE(C55,(B56-B55)*VLOOKUP(Simulador!$G$27,Simulador!$V$18:$W$29,2,FALSE)/30),0) -> 00:00:00 | D56: 0 | E56: =+IF(Simulador!$G$26>='Cronograma Referencial'!B56,'Cronograma Referencial'!E55+VLOOKUP(Simulador!$G$27,Simulador!$V$18:$W$29,2,FALSE),0) -> 00:00:00 | F56: 0 | H56: 53 | I56: 00:00:00 | J56: =+IFERROR(IF(VLOOKUP(I56,'BD Dias No utiles'!$B$9:$H$4077,7,FALSE)="X",IF(VLOOKUP(I56+1,'BD Dias No utiles'!$B$9:$H$4077,7,FALSE)="X",IF(VLOOKUP(I56+2,'BD Dias No utiles'!$B$9:$H$4077,7,FALSE)="X",I56+3,I56+2),I56+1),I56),0) -> 00:00:00 | K56: 0
B57: 54 | C57: =+IF(Simulador!$G$26>='Cronograma Referencial'!B57,EDATE(C56,(B57-B56)*VLOOKUP(Simulador!$G$27,Simulador!$V$18:$W$29,2,FALSE)/30),0) -> 00:00:00 | D57: 0 | E57: =+IF(Simulador!$G$26>='Cronograma Referencial'!B57,'Cronograma Referencial'!E56+VLOOKUP(Simulador!$G$27,Simulador!$V$18:$W$29,2,FALSE),0) -> 00:00:00 | F57: 0 | H57: 54 | I57: 00:00:00 | J57: =+IFERROR(IF(VLOOKUP(I57,'BD Dias No utiles'!$B$9:$H$4077,7,FALSE)="X",IF(VLOOKUP(I57+1,'BD Dias No utiles'!$B$9:$H$4077,7,FALSE)="X",IF(VLOOKUP(I57+2,'BD Dias No utiles'!$B$9:$H$4077,7,FALSE)="X",I57+3,I57+2),I57+1),I57),0) -> 00:00:00 | K57: 0
B58: 55 | C58: =+IF(Simulador!$G$26>='Cronograma Referencial'!B58,EDATE(C57,(B58-B57)*VLOOKUP(Simulador!$G$27,Simulador!$V$18:$W$29,2,FALSE)/30),0) -> 00:00:00 | D58: 0 | E58: =+IF(Simulador!$G$26>='Cronograma Referencial'!B58,'Cronograma Referencial'!E57+VLOOKUP(Simulador!$G$27,Simulador!$V$18:$W$29,2,FALSE),0) -> 00:00:00 | F58: 0 | H58: 55 | I58: 00:00:00 | J58: =+IFERROR(IF(VLOOKUP(I58,'BD Dias No utiles'!$B$9:$H$4077,7,FALSE)="X",IF(VLOOKUP(I58+1,'BD Dias No utiles'!$B$9:$H$4077,7,FALSE)="X",IF(VLOOKUP(I58+2,'BD Dias No utiles'!$B$9:$H$4077,7,FALSE)="X",I58+3,I58+2),I58+1),I58),0) -> 00:00:00 | K58: 0
B59: 56 | C59: =+IF(Simulador!$G$26>='Cronograma Referencial'!B59,EDATE(C58,(B59-B58)*VLOOKUP(Simulador!$G$27,Simulador!$V$18:$W$29,2,FALSE)/30),0) -> 00:00:00 | D59: 0 | E59: =+IF(Simulador!$G$26>='Cronograma Referencial'!B59,'Cronograma Referencial'!E58+VLOOKUP(Simulador!$G$27,Simulador!$V$18:$W$29,2,FALSE),0) -> 00:00:00 | F59: 0 | H59: 56 | I59: 00:00:00 | J59: =+IFERROR(IF(VLOOKUP(I59,'BD Dias No utiles'!$B$9:$H$4077,7,FALSE)="X",IF(VLOOKUP(I59+1,'BD Dias No utiles'!$B$9:$H$4077,7,FALSE)="X",IF(VLOOKUP(I59+2,'BD Dias No utiles'!$B$9:$H$4077,7,FALSE)="X",I59+3,I59+2),I59+1),I59),0) -> 00:00:00 | K59: 0
B60: 57 | C60: =+IF(Simulador!$G$26>='Cronograma Referencial'!B60,EDATE(C59,(B60-B59)*VLOOKUP(Simulador!$G$27,Simulador!$V$18:$W$29,2,FALSE)/30),0) -> 00:00:00 | D60: 0 | E60: =+IF(Simulador!$G$26>='Cronograma Referencial'!B60,'Cronograma Referencial'!E59+VLOOKUP(Simulador!$G$27,Simulador!$V$18:$W$29,2,FALSE),0) -> 00:00:00 | F60: 0 | H60: 57 | I60: 00:00:00 | J60: =+IFERROR(IF(VLOOKUP(I60,'BD Dias No utiles'!$B$9:$H$4077,7,FALSE)="X",IF(VLOOKUP(I60+1,'BD Dias No utiles'!$B$9:$H$4077,7,FALSE)="X",IF(VLOOKUP(I60+2,'BD Dias No utiles'!$B$9:$H$4077,7,FALSE)="X",I60+3,I60+2),I60+1),I60),0) -> 00:00:00 | K60: 0
B61: 58 | C61: =+IF(Simulador!$G$26>='Cronograma Referencial'!B61,EDATE(C60,(B61-B60)*VLOOKUP(Simulador!$G$27,Simulador!$V$18:$W$29,2,FALSE)/30),0) -> 00:00:00 | D61: 0 | E61: =+IF(Simulador!$G$26>='Cronograma Referencial'!B61,'Cronograma Referencial'!E60+VLOOKUP(Simulador!$G$27,Simulador!$V$18:$W$29,2,FALSE),0) -> 00:00:00 | F61: 0 | H61: 58 | I61: 00:00:00 | J61: =+IFERROR(IF(VLOOKUP(I61,'BD Dias No utiles'!$B$9:$H$4077,7,FALSE)="X",IF(VLOOKUP(I61+1,'BD Dias No utiles'!$B$9:$H$4077,7,FALSE)="X",IF(VLOOKUP(I61+2,'BD Dias No utiles'!$B$9:$H$4077,7,FALSE)="X",I61+3,I61+2),I61+1),I61),0) -> 00:00:00 | K61: 0
B62: 59 | C62: =+IF(Simulador!$G$26>='Cronograma Referencial'!B62,EDATE(C61,(B62-B61)*VLOOKUP(Simulador!$G$27,Simulador!$V$18:$W$29,2,FALSE)/30),0) -> 00:00:00 | D62: 0 | E62: =+IF(Simulador!$G$26>='Cronograma Referencial'!B62,'Cronograma Referencial'!E61+VLOOKUP(Simulador!$G$27,Simulador!$V$18:$W$29,2,FALSE),0) -> 00:00:00 | F62: 0 | H62: 59 | I62: 00:00:00 | J62: =+IFERROR(IF(VLOOKUP(I62,'BD Dias No utiles'!$B$9:$H$4077,7,FALSE)="X",IF(VLOOKUP(I62+1,'BD Dias No utiles'!$B$9:$H$4077,7,FALSE)="X",IF(VLOOKUP(I62+2,'BD Dias No utiles'!$B$9:$H$4077,7,FALSE)="X",I62+3,I62+2),I62+1),I62),0) -> 00:00:00 | K62: 0
B63: 60 | C63: =+IF(Simulador!$G$26>='Cronograma Referencial'!B63,EDATE(C62,(B63-B62)*VLOOKUP(Simulador!$G$27,Simulador!$V$18:$W$29,2,FALSE)/30),0) -> 00:00:00 | D63: 0 | E63: =+IF(Simulador!$G$26>='Cronograma Referencial'!B63,'Cronograma Referencial'!E62+VLOOKUP(Simulador!$G$27,Simulador!$V$18:$W$29,2,FALSE),0) -> 00:00:00 | F63: 0 | H63: 60 | I63: 00:00:00 | J63: =+IFERROR(IF(VLOOKUP(I63,'BD Dias No utiles'!$B$9:$H$4077,7,FALSE)="X",IF(VLOOKUP(I63+1,'BD Dias No utiles'!$B$9:$H$4077,7,FALSE)="X",IF(VLOOKUP(I63+2,'BD Dias No utiles'!$B$9:$H$4077,7,FALSE)="X",I63+3,I63+2),I63+1),I63),0) -> 00:00:00 | K63: 0
B64: 61 | C64: =+IF(Simulador!$G$26>='Cronograma Referencial'!B64,EDATE(C63,(B64-B63)*VLOOKUP(Simulador!$G$27,Simulador!$V$18:$W$29,2,FALSE)/30),0) -> 00:00:00 | D64: 0 | E64: =+IF(Simulador!$G$26>='Cronograma Referencial'!B64,'Cronograma Referencial'!E63+VLOOKUP(Simulador!$G$27,Simulador!$V$18:$W$29,2,FALSE),0) -> 00:00:00 | F64: 0 | H64: 61 | I64: 00:00:00 | J64: =+IFERROR(IF(VLOOKUP(I64,'BD Dias No utiles'!$B$9:$H$4077,7,FALSE)="X",IF(VLOOKUP(I64+1,'BD Dias No utiles'!$B$9:$H$4077,7,FALSE)="X",IF(VLOOKUP(I64+2,'BD Dias No utiles'!$B$9:$H$4077,7,FALSE)="X",I64+3,I64+2),I64+1),I64),0) -> 00:00:00 | K64: 0
B65: 62 | C65: =+IF(Simulador!$G$26>='Cronograma Referencial'!B65,EDATE(C64,(B65-B64)*VLOOKUP(Simulador!$G$27,Simulador!$V$18:$W$29,2,FALSE)/30),0) -> 00:00:00 | D65: 0 | E65: =+IF(Simulador!$G$26>='Cronograma Referencial'!B65,'Cronograma Referencial'!E64+VLOOKUP(Simulador!$G$27,Simulador!$V$18:$W$29,2,FALSE),0) -> 00:00:00 | F65: 0 | H65: 62 | I65: 00:00:00 | J65: =+IFERROR(IF(VLOOKUP(I65,'BD Dias No utiles'!$B$9:$H$4077,7,FALSE)="X",IF(VLOOKUP(I65+1,'BD Dias No utiles'!$B$9:$H$4077,7,FALSE)="X",IF(VLOOKUP(I65+2,'BD Dias No utiles'!$B$9:$H$4077,7,FALSE)="X",I65+3,I65+2),I65+1),I65),0) -> 00:00:00 | K65: 0
B66: 63 | C66: =+IF(Simulador!$G$26>='Cronograma Referencial'!B66,EDATE(C65,(B66-B65)*VLOOKUP(Simulador!$G$27,Simulador!$V$18:$W$29,2,FALSE)/30),0) -> 00:00:00 | D66: 0 | E66: =+IF(Simulador!$G$26>='Cronograma Referencial'!B66,'Cronograma Referencial'!E65+VLOOKUP(Simulador!$G$27,Simulador!$V$18:$W$29,2,FALSE),0) -> 00:00:00 | F66: 0 | H66: 63 | I66: 00:00:00 | J66: =+IFERROR(IF(VLOOKUP(I66,'BD Dias No utiles'!$B$9:$H$4077,7,FALSE)="X",IF(VLOOKUP(I66+1,'BD Dias No utiles'!$B$9:$H$4077,7,FALSE)="X",IF(VLOOKUP(I66+2,'BD Dias No utiles'!$B$9:$H$4077,7,FALSE)="X",I66+3,I66+2),I66+1),I66),0) -> 00:00:00 | K66: 0
B67: 64 | C67: =+IF(Simulador!$G$26>='Cronograma Referencial'!B67,EDATE(C66,(B67-B66)*VLOOKUP(Simulador!$G$27,Simulador!$V$18:$W$29,2,FALSE)/30),0) -> 00:00:00 | D67: 0 | E67: =+IF(Simulador!$G$26>='Cronograma Referencial'!B67,'Cronograma Referencial'!E66+VLOOKUP(Simulador!$G$27,Simulador!$V$18:$W$29,2,FALSE),0) -> 00:00:00 | F67: 0 | H67: 64 | I67: 00:00:00 | J67: =+IFERROR(IF(VLOOKUP(I67,'BD Dias No utiles'!$B$9:$H$4077,7,FALSE)="X",IF(VLOOKUP(I67+1,'BD Dias No utiles'!$B$9:$H$4077,7,FALSE)="X",IF(VLOOKUP(I67+2,'BD Dias No utiles'!$B$9:$H$4077,7,FALSE)="X",I67+3,I67+2),I67+1),I67),0) -> 00:00:00 | K67: 0
B68: 65 | C68: =+IF(Simulador!$G$26>='Cronograma Referencial'!B68,EDATE(C67,(B68-B67)*VLOOKUP(Simulador!$G$27,Simulador!$V$18:$W$29,2,FALSE)/30),0) -> 00:00:00 | D68: 0 | E68: =+IF(Simulador!$G$26>='Cronograma Referencial'!B68,'Cronograma Referencial'!E67+VLOOKUP(Simulador!$G$27,Simulador!$V$18:$W$29,2,FALSE),0) -> 00:00:00 | F68: 0 | H68: =+B68 -> 65 | I68: 00:00:00 | J68: =+IFERROR(IF(VLOOKUP(I68,'BD Dias No utiles'!$B$9:$H$4077,7,FALSE)="X",IF(VLOOKUP(I68+1,'BD Dias No utiles'!$B$9:$H$4077,7,FALSE)="X",IF(VLOOKUP(I68+2,'BD Dias No utiles'!$B$9:$H$4077,7,FALSE)="X",I68+3,I68+2),I68+1),I68),0) -> 00:00:00 | K68: 0
B69: 66 | C69: =+IF(Simulador!$G$26>='Cronograma Referencial'!B69,EDATE(C68,(B69-B68)*VLOOKUP(Simulador!$G$27,Simulador!$V$18:$W$29,2,FALSE)/30),0) -> 00:00:00 | D69: =+C69-C68 -> 0 | E69: =+IF(Simulador!$G$26>='Cronograma Referencial'!B69,'Cronograma Referencial'!E68+VLOOKUP(Simulador!$G$27,Simulador!$V$18:$W$29,2,FALSE),0) -> 00:00:00 | F69: 0 | H69: 66 | I69: =+HLOOKUP($I$2,$C$2:$E$418,H69+2) -> 00:00:00 | J69: =+IFERROR(IF(VLOOKUP(I69,'BD Dias No utiles'!$B$9:$H$4077,7,FALSE)="X",IF(VLOOKUP(I69+1,'BD Dias No utiles'!$B$9:$H$4077,7,FALSE)="X",IF(VLOOKUP(I69+2,'BD Dias No utiles'!$B$9:$H$4077,7,FALSE)="X",I69+3,I69+2),I69+1),I69),0) -> 00:00:00 | K69: =+I69-I68 -> 0
B70: =+B69+1 -> 67 | C70: =+IF(Simulador!$G$26>='Cronograma Referencial'!B70,EDATE(C69,(B70-B69)*VLOOKUP(Simulador!$G$27,Simulador!$V$18:$W$29,2,FALSE)/30),0) -> 00:00:00 | D70: 0 | E70: =+IF(Simulador!$G$26>='Cronograma Referencial'!B70,'Cronograma Referencial'!E69+VLOOKUP(Simulador!$G$27,Simulador!$V$18:$W$29,2,FALSE),0) -> 00:00:00 | F70: =+E70-E69 -> 0 | H70: 67 | I70: 00:00:00 | J70: =+IFERROR(IF(VLOOKUP(I70,'BD Dias No utiles'!$B$9:$H$4077,7,FALSE)="X",IF(VLOOKUP(I70+1,'BD Dias No utiles'!$B$9:$H$4077,7,FALSE)="X",IF(VLOOKUP(I70+2,'BD Dias No utiles'!$B$9:$H$4077,7,FALSE)="X",I70+3,I70+2),I70+1),I70),0) -> 00:00:00 | K70: 0
B71: 68 | C71: =+IF(Simulador!$G$26>='Cronograma Referencial'!B71,EDATE(C70,(B71-B70)*VLOOKUP(Simulador!$G$27,Simulador!$V$18:$W$29,2,FALSE)/30),0) -> 00:00:00 | D71: 0 | E71: =+IF(Simulador!$G$26>='Cronograma Referencial'!B71,'Cronograma Referencial'!E70+VLOOKUP(Simulador!$G$27,Simulador!$V$18:$W$29,2,FALSE),0) -> 00:00:00 | F71: 0 | H71: 68 | I71: 00:00:00 | J71: =+IFERROR(IF(VLOOKUP(I71,'BD Dias No utiles'!$B$9:$H$4077,7,FALSE)="X",IF(VLOOKUP(I71+1,'BD Dias No utiles'!$B$9:$H$4077,7,FALSE)="X",IF(VLOOKUP(I71+2,'BD Dias No utiles'!$B$9:$H$4077,7,FALSE)="X",I71+3,I71+2),I71+1),I71),0) -> 00:00:00 | K71: 0
B72: 69 | C72: =+IF(Simulador!$G$26>='Cronograma Referencial'!B72,EDATE(C71,(B72-B71)*VLOOKUP(Simulador!$G$27,Simulador!$V$18:$W$29,2,FALSE)/30),0) -> 00:00:00 | D72: 0 | E72: =+IF(Simulador!$G$26>='Cronograma Referencial'!B72,'Cronograma Referencial'!E71+VLOOKUP(Simulador!$G$27,Simulador!$V$18:$W$29,2,FALSE),0) -> 00:00:00 | F72: 0 | H72: 69 | I72: 00:00:00 | J72: =+IFERROR(IF(VLOOKUP(I72,'BD Dias No utiles'!$B$9:$H$4077,7,FALSE)="X",IF(VLOOKUP(I72+1,'BD Dias No utiles'!$B$9:$H$4077,7,FALSE)="X",IF(VLOOKUP(I72+2,'BD Dias No utiles'!$B$9:$H$4077,7,FALSE)="X",I72+3,I72+2),I72+1),I72),0) -> 00:00:00 | K72: 0
B73: 70 | C73: =+IF(Simulador!$G$26>='Cronograma Referencial'!B73,EDATE(C72,(B73-B72)*VLOOKUP(Simulador!$G$27,Simulador!$V$18:$W$29,2,FALSE)/30),0) -> 00:00:00 | D73: 0 | E73: =+IF(Simulador!$G$26>='Cronograma Referencial'!B73,'Cronograma Referencial'!E72+VLOOKUP(Simulador!$G$27,Simulador!$V$18:$W$29,2,FALSE),0) -> 00:00:00 | F73: 0 | H73: 70 | I73: 00:00:00 | J73: =+IFERROR(IF(VLOOKUP(I73,'BD Dias No utiles'!$B$9:$H$4077,7,FALSE)="X",IF(VLOOKUP(I73+1,'BD Dias No utiles'!$B$9:$H$4077,7,FALSE)="X",IF(VLOOKUP(I73+2,'BD Dias No utiles'!$B$9:$H$4077,7,FALSE)="X",I73+3,I73+2),I73+1),I73),0) -> 00:00:00 | K73: 0
B74: 71 | C74: =+IF(Simulador!$G$26>='Cronograma Referencial'!B74,EDATE(C73,(B74-B73)*VLOOKUP(Simulador!$G$27,Simulador!$V$18:$W$29,2,FALSE)/30),0) -> 00:00:00 | D74: 0 | E74: =+IF(Simulador!$G$26>='Cronograma Referencial'!B74,'Cronograma Referencial'!E73+VLOOKUP(Simulador!$G$27,Simulador!$V$18:$W$29,2,FALSE),0) -> 00:00:00 | F74: 0 | H74: 71 | I74: 00:00:00 | J74: =+IFERROR(IF(VLOOKUP(I74,'BD Dias No utiles'!$B$9:$H$4077,7,FALSE)="X",IF(VLOOKUP(I74+1,'BD Dias No utiles'!$B$9:$H$4077,7,FALSE)="X",IF(VLOOKUP(I74+2,'BD Dias No utiles'!$B$9:$H$4077,7,FALSE)="X",I74+3,I74+2),I74+1),I74),0) -> 00:00:00 | K74: 0
B75: 72 | C75: =+IF(Simulador!$G$26>='Cronograma Referencial'!B75,EDATE(C74,(B75-B74)*VLOOKUP(Simulador!$G$27,Simulador!$V$18:$W$29,2,FALSE)/30),0) -> 00:00:00 | D75: 0 | E75: =+IF(Simulador!$G$26>='Cronograma Referencial'!B75,'Cronograma Referencial'!E74+VLOOKUP(Simulador!$G$27,Simulador!$V$18:$W$29,2,FALSE),0) -> 00:00:00 | F75: 0 | H75: 72 | I75: 00:00:00 | J75: =+IFERROR(IF(VLOOKUP(I75,'BD Dias No utiles'!$B$9:$H$4077,7,FALSE)="X",IF(VLOOKUP(I75+1,'BD Dias No utiles'!$B$9:$H$4077,7,FALSE)="X",IF(VLOOKUP(I75+2,'BD Dias No utiles'!$B$9:$H$4077,7,FALSE)="X",I75+3,I75+2),I75+1),I75),0) -> 00:00:00 | K75: 0
B76: 73 | C76: =+IF(Simulador!$G$26>='Cronograma Referencial'!B76,EDATE(C75,(B76-B75)*VLOOKUP(Simulador!$G$27,Simulador!$V$18:$W$29,2,FALSE)/30),0) -> 00:00:00 | D76: 0 | E76: =+IF(Simulador!$G$26>='Cronograma Referencial'!B76,'Cronograma Referencial'!E75+VLOOKUP(Simulador!$G$27,Simulador!$V$18:$W$29,2,FALSE),0) -> 00:00:00 | F76: 0 | H76: 73 | I76: 00:00:00 | J76: =+IFERROR(IF(VLOOKUP(I76,'BD Dias No utiles'!$B$9:$H$4077,7,FALSE)="X",IF(VLOOKUP(I76+1,'BD Dias No utiles'!$B$9:$H$4077,7,FALSE)="X",IF(VLOOKUP(I76+2,'BD Dias No utiles'!$B$9:$H$4077,7,FALSE)="X",I76+3,I76+2),I76+1),I76),0) -> 00:00:00 | K76: 0
B77: 74 | C77: =+IF(Simulador!$G$26>='Cronograma Referencial'!B77,EDATE(C76,(B77-B76)*VLOOKUP(Simulador!$G$27,Simulador!$V$18:$W$29,2,FALSE)/30),0) -> 00:00:00 | D77: 0 | E77: =+IF(Simulador!$G$26>='Cronograma Referencial'!B77,'Cronograma Referencial'!E76+VLOOKUP(Simulador!$G$27,Simulador!$V$18:$W$29,2,FALSE),0) -> 00:00:00 | F77: 0 | H77: 74 | I77: 00:00:00 | J77: =+IFERROR(IF(VLOOKUP(I77,'BD Dias No utiles'!$B$9:$H$4077,7,FALSE)="X",IF(VLOOKUP(I77+1,'BD Dias No utiles'!$B$9:$H$4077,7,FALSE)="X",IF(VLOOKUP(I77+2,'BD Dias No utiles'!$B$9:$H$4077,7,FALSE)="X",I77+3,I77+2),I77+1),I77),0) -> 00:00:00 | K77: 0
B78: 75 | C78: =+IF(Simulador!$G$26>='Cronograma Referencial'!B78,EDATE(C77,(B78-B77)*VLOOKUP(Simulador!$G$27,Simulador!$V$18:$W$29,2,FALSE)/30),0) -> 00:00:00 | D78: 0 | E78: =+IF(Simulador!$G$26>='Cronograma Referencial'!B78,'Cronograma Referencial'!E77+VLOOKUP(Simulador!$G$27,Simulador!$V$18:$W$29,2,FALSE),0) -> 00:00:00 | F78: 0 | H78: 75 | I78: 00:00:00 | J78: =+IFERROR(IF(VLOOKUP(I78,'BD Dias No utiles'!$B$9:$H$4077,7,FALSE)="X",IF(VLOOKUP(I78+1,'BD Dias No utiles'!$B$9:$H$4077,7,FALSE)="X",IF(VLOOKUP(I78+2,'BD Dias No utiles'!$B$9:$H$4077,7,FALSE)="X",I78+3,I78+2),I78+1),I78),0) -> 00:00:00 | K78: 0
B79: 76 | C79: =+IF(Simulador!$G$26>='Cronograma Referencial'!B79,EDATE(C78,(B79-B78)*VLOOKUP(Simulador!$G$27,Simulador!$V$18:$W$29,2,FALSE)/30),0) -> 00:00:00 | D79: 0 | E79: =+IF(Simulador!$G$26>='Cronograma Referencial'!B79,'Cronograma Referencial'!E78+VLOOKUP(Simulador!$G$27,Simulador!$V$18:$W$29,2,FALSE),0) -> 00:00:00 | F79: 0 | H79: 76 | I79: 00:00:00 | J79: =+IFERROR(IF(VLOOKUP(I79,'BD Dias No utiles'!$B$9:$H$4077,7,FALSE)="X",IF(VLOOKUP(I79+1,'BD Dias No utiles'!$B$9:$H$4077,7,FALSE)="X",IF(VLOOKUP(I79+2,'BD Dias No utiles'!$B$9:$H$4077,7,FALSE)="X",I79+3,I79+2),I79+1),I79),0) -> 00:00:00 | K79: 0
B80: 77 | C80: =+IF(Simulador!$G$26>='Cronograma Referencial'!B80,EDATE(C79,(B80-B79)*VLOOKUP(Simulador!$G$27,Simulador!$V$18:$W$29,2,FALSE)/30),0) -> 00:00:00 | D80: 0 | E80: =+IF(Simulador!$G$26>='Cronograma Referencial'!B80,'Cronograma Referencial'!E79+VLOOKUP(Simulador!$G$27,Simulador!$V$18:$W$29,2,FALSE),0) -> 00:00:00 | F80: 0 | H80: 77 | I80: 00:00:00 | J80: =+IFERROR(IF(VLOOKUP(I80,'BD Dias No utiles'!$B$9:$H$4077,7,FALSE)="X",IF(VLOOKUP(I80+1,'BD Dias No utiles'!$B$9:$H$4077,7,FALSE)="X",IF(VLOOKUP(I80+2,'BD Dias No utiles'!$B$9:$H$4077,7,FALSE)="X",I80+3,I80+2),I80+1),I80),0) -> 00:00:00 | K80: 0
B81: 78 | C81: =+IF(Simulador!$G$26>='Cronograma Referencial'!B81,EDATE(C80,(B81-B80)*VLOOKUP(Simulador!$G$27,Simulador!$V$18:$W$29,2,FALSE)/30),0) -> 00:00:00 | D81: 0 | E81: =+IF(Simulador!$G$26>='Cronograma Referencial'!B81,'Cronograma Referencial'!E80+VLOOKUP(Simulador!$G$27,Simulador!$V$18:$W$29,2,FALSE),0) -> 00:00:00 | F81: 0 | H81: 78 | I81: 00:00:00 | J81: =+IFERROR(IF(VLOOKUP(I81,'BD Dias No utiles'!$B$9:$H$4077,7,FALSE)="X",IF(VLOOKUP(I81+1,'BD Dias No utiles'!$B$9:$H$4077,7,FALSE)="X",IF(VLOOKUP(I81+2,'BD Dias No utiles'!$B$9:$H$4077,7,FALSE)="X",I81+3,I81+2),I81+1),I81),0) -> 00:00:00 | K81: 0
B82: 79 | C82: =+IF(Simulador!$G$26>='Cronograma Referencial'!B82,EDATE(C81,(B82-B81)*VLOOKUP(Simulador!$G$27,Simulador!$V$18:$W$29,2,FALSE)/30),0) -> 00:00:00 | D82: 0 | E82: =+IF(Simulador!$G$26>='Cronograma Referencial'!B82,'Cronograma Referencial'!E81+VLOOKUP(Simulador!$G$27,Simulador!$V$18:$W$29,2,FALSE),0) -> 00:00:00 | F82: 0 | H82: 79 | I82: 00:00:00 | J82: =+IFERROR(IF(VLOOKUP(I82,'BD Dias No utiles'!$B$9:$H$4077,7,FALSE)="X",IF(VLOOKUP(I82+1,'BD Dias No utiles'!$B$9:$H$4077,7,FALSE)="X",IF(VLOOKUP(I82+2,'BD Dias No utiles'!$B$9:$H$4077,7,FALSE)="X",I82+3,I82+2),I82+1),I82),0) -> 00:00:00 | K82: 0
B83: 80 | C83: =+IF(Simulador!$G$26>='Cronograma Referencial'!B83,EDATE(C82,(B83-B82)*VLOOKUP(Simulador!$G$27,Simulador!$V$18:$W$29,2,FALSE)/30),0) -> 00:00:00 | D83: 0 | E83: =+IF(Simulador!$G$26>='Cronograma Referencial'!B83,'Cronograma Referencial'!E82+VLOOKUP(Simulador!$G$27,Simulador!$V$18:$W$29,2,FALSE),0) -> 00:00:00 | F83: 0 | H83: 80 | I83: 00:00:00 | J83: =+IFERROR(IF(VLOOKUP(I83,'BD Dias No utiles'!$B$9:$H$4077,7,FALSE)="X",IF(VLOOKUP(I83+1,'BD Dias No utiles'!$B$9:$H$4077,7,FALSE)="X",IF(VLOOKUP(I83+2,'BD Dias No utiles'!$B$9:$H$4077,7,FALSE)="X",I83+3,I83+2),I83+1),I83),0) -> 00:00:00 | K83: 0
B84: 81 | C84: =+IF(Simulador!$G$26>='Cronograma Referencial'!B84,EDATE(C83,(B84-B83)*VLOOKUP(Simulador!$G$27,Simulador!$V$18:$W$29,2,FALSE)/30),0) -> 00:00:00 | D84: 0 | E84: =+IF(Simulador!$G$26>='Cronograma Referencial'!B84,'Cronograma Referencial'!E83+VLOOKUP(Simulador!$G$27,Simulador!$V$18:$W$29,2,FALSE),0) -> 00:00:00 | F84: 0 | H84: 81 | I84: 00:00:00 | J84: =+IFERROR(IF(VLOOKUP(I84,'BD Dias No utiles'!$B$9:$H$4077,7,FALSE)="X",IF(VLOOKUP(I84+1,'BD Dias No utiles'!$B$9:$H$4077,7,FALSE)="X",IF(VLOOKUP(I84+2,'BD Dias No utiles'!$B$9:$H$4077,7,FALSE)="X",I84+3,I84+2),I84+1),I84),0) -> 00:00:00 | K84: 0
B85: 82 | C85: =+IF(Simulador!$G$26>='Cronograma Referencial'!B85,EDATE(C84,(B85-B84)*VLOOKUP(Simulador!$G$27,Simulador!$V$18:$W$29,2,FALSE)/30),0) -> 00:00:00 | D85: 0 | E85: =+IF(Simulador!$G$26>='Cronograma Referencial'!B85,'Cronograma Referencial'!E84+VLOOKUP(Simulador!$G$27,Simulador!$V$18:$W$29,2,FALSE),0) -> 00:00:00 | F85: 0 | H85: 82 | I85: 00:00:00 | J85: =+IFERROR(IF(VLOOKUP(I85,'BD Dias No utiles'!$B$9:$H$4077,7,FALSE)="X",IF(VLOOKUP(I85+1,'BD Dias No utiles'!$B$9:$H$4077,7,FALSE)="X",IF(VLOOKUP(I85+2,'BD Dias No utiles'!$B$9:$H$4077,7,FALSE)="X",I85+3,I85+2),I85+1),I85),0) -> 00:00:00 | K85: 0
B86: 83 | C86: =+IF(Simulador!$G$26>='Cronograma Referencial'!B86,EDATE(C85,(B86-B85)*VLOOKUP(Simulador!$G$27,Simulador!$V$18:$W$29,2,FALSE)/30),0) -> 00:00:00 | D86: 0 | E86: =+IF(Simulador!$G$26>='Cronograma Referencial'!B86,'Cronograma Referencial'!E85+VLOOKUP(Simulador!$G$27,Simulador!$V$18:$W$29,2,FALSE),0) -> 00:00:00 | F86: 0 | H86: 83 | I86: 00:00:00 | J86: =+IFERROR(IF(VLOOKUP(I86,'BD Dias No utiles'!$B$9:$H$4077,7,FALSE)="X",IF(VLOOKUP(I86+1,'BD Dias No utiles'!$B$9:$H$4077,7,FALSE)="X",IF(VLOOKUP(I86+2,'BD Dias No utiles'!$B$9:$H$4077,7,FALSE)="X",I86+3,I86+2),I86+1),I86),0) -> 00:00:00 | K86: 0
B87: 84 | C87: =+IF(Simulador!$G$26>='Cronograma Referencial'!B87,EDATE(C86,(B87-B86)*VLOOKUP(Simulador!$G$27,Simulador!$V$18:$W$29,2,FALSE)/30),0) -> 00:00:00 | D87: 0 | E87: =+IF(Simulador!$G$26>='Cronograma Referencial'!B87,'Cronograma Referencial'!E86+VLOOKUP(Simulador!$G$27,Simulador!$V$18:$W$29,2,FALSE),0) -> 00:00:00 | F87: 0 | H87: 84 | I87: 00:00:00 | J87: =+IFERROR(IF(VLOOKUP(I87,'BD Dias No utiles'!$B$9:$H$4077,7,FALSE)="X",IF(VLOOKUP(I87+1,'BD Dias No utiles'!$B$9:$H$4077,7,FALSE)="X",IF(VLOOKUP(I87+2,'BD Dias No utiles'!$B$9:$H$4077,7,FALSE)="X",I87+3,I87+2),I87+1),I87),0) -> 00:00:00 | K87: 0
B88: 85 | C88: =+IF(Simulador!$G$26>='Cronograma Referencial'!B88,EDATE(C87,(B88-B87)*VLOOKUP(Simulador!$G$27,Simulador!$V$18:$W$29,2,FALSE)/30),0) -> 00:00:00 | D88: 0 | E88: =+IF(Simulador!$G$26>='Cronograma Referencial'!B88,'Cronograma Referencial'!E87+VLOOKUP(Simulador!$G$27,Simulador!$V$18:$W$29,2,FALSE),0) -> 00:00:00 | F88: 0 | H88: 85 | I88: 00:00:00 | J88: =+IFERROR(IF(VLOOKUP(I88,'BD Dias No utiles'!$B$9:$H$4077,7,FALSE)="X",IF(VLOOKUP(I88+1,'BD Dias No utiles'!$B$9:$H$4077,7,FALSE)="X",IF(VLOOKUP(I88+2,'BD Dias No utiles'!$B$9:$H$4077,7,FALSE)="X",I88+3,I88+2),I88+1),I88),0) -> 00:00:00 | K88: 0
B89: 86 | C89: =+IF(Simulador!$G$26>='Cronograma Referencial'!B89,EDATE(C88,(B89-B88)*VLOOKUP(Simulador!$G$27,Simulador!$V$18:$W$29,2,FALSE)/30),0) -> 00:00:00 | D89: 0 | E89: =+IF(Simulador!$G$26>='Cronograma Referencial'!B89,'Cronograma Referencial'!E88+VLOOKUP(Simulador!$G$27,Simulador!$V$18:$W$29,2,FALSE),0) -> 00:00:00 | F89: 0 | H89: 86 | I89: 00:00:00 | J89: =+IFERROR(IF(VLOOKUP(I89,'BD Dias No utiles'!$B$9:$H$4077,7,FALSE)="X",IF(VLOOKUP(I89+1,'BD Dias No utiles'!$B$9:$H$4077,7,FALSE)="X",IF(VLOOKUP(I89+2,'BD Dias No utiles'!$B$9:$H$4077,7,FALSE)="X",I89+3,I89+2),I89+1),I89),0) -> 00:00:00 | K89: 0
B90: 87 | C90: =+IF(Simulador!$G$26>='Cronograma Referencial'!B90,EDATE(C89,(B90-B89)*VLOOKUP(Simulador!$G$27,Simulador!$V$18:$W$29,2,FALSE)/30),0) -> 00:00:00 | D90: 0 | E90: =+IF(Simulador!$G$26>='Cronograma Referencial'!B90,'Cronograma Referencial'!E89+VLOOKUP(Simulador!$G$27,Simulador!$V$18:$W$29,2,FALSE),0) -> 00:00:00 | F90: 0 | H90: 87 | I90: 00:00:00 | J90: =+IFERROR(IF(VLOOKUP(I90,'BD Dias No utiles'!$B$9:$H$4077,7,FALSE)="X",IF(VLOOKUP(I90+1,'BD Dias No utiles'!$B$9:$H$4077,7,FALSE)="X",IF(VLOOKUP(I90+2,'BD Dias No utiles'!$B$9:$H$4077,7,FALSE)="X",I90+3,I90+2),I90+1),I90),0) -> 00:00:00 | K90: 0
B91: 88 | C91: =+IF(Simulador!$G$26>='Cronograma Referencial'!B91,EDATE(C90,(B91-B90)*VLOOKUP(Simulador!$G$27,Simulador!$V$18:$W$29,2,FALSE)/30),0) -> 00:00:00 | D91: 0 | E91: =+IF(Simulador!$G$26>='Cronograma Referencial'!B91,'Cronograma Referencial'!E90+VLOOKUP(Simulador!$G$27,Simulador!$V$18:$W$29,2,FALSE),0) -> 00:00:00 | F91: 0 | H91: 88 | I91: 00:00:00 | J91: =+IFERROR(IF(VLOOKUP(I91,'BD Dias No utiles'!$B$9:$H$4077,7,FALSE)="X",IF(VLOOKUP(I91+1,'BD Dias No utiles'!$B$9:$H$4077,7,FALSE)="X",IF(VLOOKUP(I91+2,'BD Dias No utiles'!$B$9:$H$4077,7,FALSE)="X",I91+3,I91+2),I91+1),I91),0) -> 00:00:00 | K91: 0
B92: 89 | C92: =+IF(Simulador!$G$26>='Cronograma Referencial'!B92,EDATE(C91,(B92-B91)*VLOOKUP(Simulador!$G$27,Simulador!$V$18:$W$29,2,FALSE)/30),0) -> 00:00:00 | D92: 0 | E92: =+IF(Simulador!$G$26>='Cronograma Referencial'!B92,'Cronograma Referencial'!E91+VLOOKUP(Simulador!$G$27,Simulador!$V$18:$W$29,2,FALSE),0) -> 00:00:00 | F92: 0 | H92: 89 | I92: 00:00:00 | J92: =+IFERROR(IF(VLOOKUP(I92,'BD Dias No utiles'!$B$9:$H$4077,7,FALSE)="X",IF(VLOOKUP(I92+1,'BD Dias No utiles'!$B$9:$H$4077,7,FALSE)="X",IF(VLOOKUP(I92+2,'BD Dias No utiles'!$B$9:$H$4077,7,FALSE)="X",I92+3,I92+2),I92+1),I92),0) -> 00:00:00 | K92: 0
B93: 90 | C93: =+IF(Simulador!$G$26>='Cronograma Referencial'!B93,EDATE(C92,(B93-B92)*VLOOKUP(Simulador!$G$27,Simulador!$V$18:$W$29,2,FALSE)/30),0) -> 00:00:00 | D93: 0 | E93: =+IF(Simulador!$G$26>='Cronograma Referencial'!B93,'Cronograma Referencial'!E92+VLOOKUP(Simulador!$G$27,Simulador!$V$18:$W$29,2,FALSE),0) -> 00:00:00 | F93: 0 | H93: 90 | I93: 00:00:00 | J93: =+IFERROR(IF(VLOOKUP(I93,'BD Dias No utiles'!$B$9:$H$4077,7,FALSE)="X",IF(VLOOKUP(I93+1,'BD Dias No utiles'!$B$9:$H$4077,7,FALSE)="X",IF(VLOOKUP(I93+2,'BD Dias No utiles'!$B$9:$H$4077,7,FALSE)="X",I93+3,I93+2),I93+1),I93),0) -> 00:00:00 | K93: 0
B94: 91 | C94: =+IF(Simulador!$G$26>='Cronograma Referencial'!B94,EDATE(C93,(B94-B93)*VLOOKUP(Simulador!$G$27,Simulador!$V$18:$W$29,2,FALSE)/30),0) -> 00:00:00 | D94: 0 | E94: =+IF(Simulador!$G$26>='Cronograma Referencial'!B94,'Cronograma Referencial'!E93+VLOOKUP(Simulador!$G$27,Simulador!$V$18:$W$29,2,FALSE),0) -> 00:00:00 | F94: 0 | H94: 91 | I94: 00:00:00 | J94: =+IFERROR(IF(VLOOKUP(I94,'BD Dias No utiles'!$B$9:$H$4077,7,FALSE)="X",IF(VLOOKUP(I94+1,'BD Dias No utiles'!$B$9:$H$4077,7,FALSE)="X",IF(VLOOKUP(I94+2,'BD Dias No utiles'!$B$9:$H$4077,7,FALSE)="X",I94+3,I94+2),I94+1),I94),0) -> 00:00:00 | K94: 0
B95: 92 | C95: =+IF(Simulador!$G$26>='Cronograma Referencial'!B95,EDATE(C94,(B95-B94)*VLOOKUP(Simulador!$G$27,Simulador!$V$18:$W$29,2,FALSE)/30),0) -> 00:00:00 | D95: 0 | E95: =+IF(Simulador!$G$26>='Cronograma Referencial'!B95,'Cronograma Referencial'!E94+VLOOKUP(Simulador!$G$27,Simulador!$V$18:$W$29,2,FALSE),0) -> 00:00:00 | F95: 0 | H95: 92 | I95: 00:00:00 | J95: =+IFERROR(IF(VLOOKUP(I95,'BD Dias No utiles'!$B$9:$H$4077,7,FALSE)="X",IF(VLOOKUP(I95+1,'BD Dias No utiles'!$B$9:$H$4077,7,FALSE)="X",IF(VLOOKUP(I95+2,'BD Dias No utiles'!$B$9:$H$4077,7,FALSE)="X",I95+3,I95+2),I95+1),I95),0) -> 00:00:00 | K95: 0
B96: 93 | C96: =+IF(Simulador!$G$26>='Cronograma Referencial'!B96,EDATE(C95,(B96-B95)*VLOOKUP(Simulador!$G$27,Simulador!$V$18:$W$29,2,FALSE)/30),0) -> 00:00:00 | D96: 0 | E96: =+IF(Simulador!$G$26>='Cronograma Referencial'!B96,'Cronograma Referencial'!E95+VLOOKUP(Simulador!$G$27,Simulador!$V$18:$W$29,2,FALSE),0) -> 00:00:00 | F96: 0 | H96: 93 | I96: 00:00:00 | J96: =+IFERROR(IF(VLOOKUP(I96,'BD Dias No utiles'!$B$9:$H$4077,7,FALSE)="X",IF(VLOOKUP(I96+1,'BD Dias No utiles'!$B$9:$H$4077,7,FALSE)="X",IF(VLOOKUP(I96+2,'BD Dias No utiles'!$B$9:$H$4077,7,FALSE)="X",I96+3,I96+2),I96+1),I96),0) -> 00:00:00 | K96: 0
B97: 94 | C97: =+IF(Simulador!$G$26>='Cronograma Referencial'!B97,EDATE(C96,(B97-B96)*VLOOKUP(Simulador!$G$27,Simulador!$V$18:$W$29,2,FALSE)/30),0) -> 00:00:00 | D97: 0 | E97: =+IF(Simulador!$G$26>='Cronograma Referencial'!B97,'Cronograma Referencial'!E96+VLOOKUP(Simulador!$G$27,Simulador!$V$18:$W$29,2,FALSE),0) -> 00:00:00 | F97: 0 | H97: 94 | I97: 00:00:00 | J97: =+IFERROR(IF(VLOOKUP(I97,'BD Dias No utiles'!$B$9:$H$4077,7,FALSE)="X",IF(VLOOKUP(I97+1,'BD Dias No utiles'!$B$9:$H$4077,7,FALSE)="X",IF(VLOOKUP(I97+2,'BD Dias No utiles'!$B$9:$H$4077,7,FALSE)="X",I97+3,I97+2),I97+1),I97),0) -> 00:00:00 | K97: 0
B98: 95 | C98: =+IF(Simulador!$G$26>='Cronograma Referencial'!B98,EDATE(C97,(B98-B97)*VLOOKUP(Simulador!$G$27,Simulador!$V$18:$W$29,2,FALSE)/30),0) -> 00:00:00 | D98: 0 | E98: =+IF(Simulador!$G$26>='Cronograma Referencial'!B98,'Cronograma Referencial'!E97+VLOOKUP(Simulador!$G$27,Simulador!$V$18:$W$29,2,FALSE),0) -> 00:00:00 | F98: 0 | H98: 95 | I98: 00:00:00 | J98: =+IFERROR(IF(VLOOKUP(I98,'BD Dias No utiles'!$B$9:$H$4077,7,FALSE)="X",IF(VLOOKUP(I98+1,'BD Dias No utiles'!$B$9:$H$4077,7,FALSE)="X",IF(VLOOKUP(I98+2,'BD Dias No utiles'!$B$9:$H$4077,7,FALSE)="X",I98+3,I98+2),I98+1),I98),0) -> 00:00:00 | K98: 0
B99: 96 | C99: =+IF(Simulador!$G$26>='Cronograma Referencial'!B99,EDATE(C98,(B99-B98)*VLOOKUP(Simulador!$G$27,Simulador!$V$18:$W$29,2,FALSE)/30),0) -> 00:00:00 | D99: 0 | E99: =+IF(Simulador!$G$26>='Cronograma Referencial'!B99,'Cronograma Referencial'!E98+VLOOKUP(Simulador!$G$27,Simulador!$V$18:$W$29,2,FALSE),0) -> 00:00:00 | F99: 0 | H99: 96 | I99: 00:00:00 | J99: =+IFERROR(IF(VLOOKUP(I99,'BD Dias No utiles'!$B$9:$H$4077,7,FALSE)="X",IF(VLOOKUP(I99+1,'BD Dias No utiles'!$B$9:$H$4077,7,FALSE)="X",IF(VLOOKUP(I99+2,'BD Dias No utiles'!$B$9:$H$4077,7,FALSE)="X",I99+3,I99+2),I99+1),I99),0) -> 00:00:00 | K99: 0
B100: 97 | C100: =+IF(Simulador!$G$26>='Cronograma Referencial'!B100,EDATE(C99,(B100-B99)*VLOOKUP(Simulador!$G$27,Simulador!$V$18:$W$29,2,FALSE)/30),0) -> 00:00:00 | D100: 0 | E100: =+IF(Simulador!$G$26>='Cronograma Referencial'!B100,'Cronograma Referencial'!E99+VLOOKUP(Simulador!$G$27,Simulador!$V$18:$W$29,2,FALSE),0) -> 00:00:00 | F100: 0 | H100: 97 | I100: 00:00:00 | J100: =+IFERROR(IF(VLOOKUP(I100,'BD Dias No utiles'!$B$9:$H$4077,7,FALSE)="X",IF(VLOOKUP(I100+1,'BD Dias No utiles'!$B$9:$H$4077,7,FALSE)="X",IF(VLOOKUP(I100+2,'BD Dias No utiles'!$B$9:$H$4077,7,FALSE)="X",I100+3,I100+2),I100+1),I100),0) -> 00:00:00 | K100: 0
B101: 98 | C101: =+IF(Simulador!$G$26>='Cronograma Referencial'!B101,EDATE(C100,(B101-B100)*VLOOKUP(Simulador!$G$27,Simulador!$V$18:$W$29,2,FALSE)/30),0) -> 00:00:00 | D101: 0 | E101: =+IF(Simulador!$G$26>='Cronograma Referencial'!B101,'Cronograma Referencial'!E100+VLOOKUP(Simulador!$G$27,Simulador!$V$18:$W$29,2,FALSE),0) -> 00:00:00 | F101: 0 | H101: 98 | I101: 00:00:00 | J101: =+IFERROR(IF(VLOOKUP(I101,'BD Dias No utiles'!$B$9:$H$4077,7,FALSE)="X",IF(VLOOKUP(I101+1,'BD Dias No utiles'!$B$9:$H$4077,7,FALSE)="X",IF(VLOOKUP(I101+2,'BD Dias No utiles'!$B$9:$H$4077,7,FALSE)="X",I101+3,I101+2),I101+1),I101),0) -> 00:00:00 | K101: 0
B102: 99 | C102: =+IF(Simulador!$G$26>='Cronograma Referencial'!B102,EDATE(C101,(B102-B101)*VLOOKUP(Simulador!$G$27,Simulador!$V$18:$W$29,2,FALSE)/30),0) -> 00:00:00 | D102: 0 | E102: =+IF(Simulador!$G$26>='Cronograma Referencial'!B102,'Cronograma Referencial'!E101+VLOOKUP(Simulador!$G$27,Simulador!$V$18:$W$29,2,FALSE),0) -> 00:00:00 | F102: 0 | H102: 99 | I102: 00:00:00 | J102: =+IFERROR(IF(VLOOKUP(I102,'BD Dias No utiles'!$B$9:$H$4077,7,FALSE)="X",IF(VLOOKUP(I102+1,'BD Dias No utiles'!$B$9:$H$4077,7,FALSE)="X",IF(VLOOKUP(I102+2,'BD Dias No utiles'!$B$9:$H$4077,7,FALSE)="X",I102+3,I102+2),I102+1),I102),0) -> 00:00:00 | K102: 0
B103: 100 | C103: =+IF(Simulador!$G$26>='Cronograma Referencial'!B103,EDATE(C102,(B103-B102)*VLOOKUP(Simulador!$G$27,Simulador!$V$18:$W$29,2,FALSE)/30),0) -> 00:00:00 | D103: 0 | E103: =+IF(Simulador!$G$26>='Cronograma Referencial'!B103,'Cronograma Referencial'!E102+VLOOKUP(Simulador!$G$27,Simulador!$V$18:$W$29,2,FALSE),0) -> 00:00:00 | F103: 0 | H103: 100 | I103: 00:00:00 | J103: =+IFERROR(IF(VLOOKUP(I103,'BD Dias No utiles'!$B$9:$H$4077,7,FALSE)="X",IF(VLOOKUP(I103+1,'BD Dias No utiles'!$B$9:$H$4077,7,FALSE)="X",IF(VLOOKUP(I103+2,'BD Dias No utiles'!$B$9:$H$4077,7,FALSE)="X",I103+3,I103+2),I103+1),I103),0) -> 00:00:00 | K103: 0
B104: 101 | C104: =+IF(Simulador!$G$26>='Cronograma Referencial'!B104,EDATE(C103,(B104-B103)*VLOOKUP(Simulador!$G$27,Simulador!$V$18:$W$29,2,FALSE)/30),0) -> 00:00:00 | D104: 0 | E104: =+IF(Simulador!$G$26>='Cronograma Referencial'!B104,'Cronograma Referencial'!E103+VLOOKUP(Simulador!$G$27,Simulador!$V$18:$W$29,2,FALSE),0) -> 00:00:00 | F104: 0 | H104: 101 | I104: 00:00:00 | J104: =+IFERROR(IF(VLOOKUP(I104,'BD Dias No utiles'!$B$9:$H$4077,7,FALSE)="X",IF(VLOOKUP(I104+1,'BD Dias No utiles'!$B$9:$H$4077,7,FALSE)="X",IF(VLOOKUP(I104+2,'BD Dias No utiles'!$B$9:$H$4077,7,FALSE)="X",I104+3,I104+2),I104+1),I104),0) -> 00:00:00 | K104: 0
B105: 102 | C105: =+IF(Simulador!$G$26>='Cronograma Referencial'!B105,EDATE(C104,(B105-B104)*VLOOKUP(Simulador!$G$27,Simulador!$V$18:$W$29,2,FALSE)/30),0) -> 00:00:00 | D105: 0 | E105: =+IF(Simulador!$G$26>='Cronograma Referencial'!B105,'Cronograma Referencial'!E104+VLOOKUP(Simulador!$G$27,Simulador!$V$18:$W$29,2,FALSE),0) -> 00:00:00 | F105: 0 | H105: 102 | I105: 00:00:00 | J105: =+IFERROR(IF(VLOOKUP(I105,'BD Dias No utiles'!$B$9:$H$4077,7,FALSE)="X",IF(VLOOKUP(I105+1,'BD Dias No utiles'!$B$9:$H$4077,7,FALSE)="X",IF(VLOOKUP(I105+2,'BD Dias No utiles'!$B$9:$H$4077,7,FALSE)="X",I105+3,I105+2),I105+1),I105),0) -> 00:00:00 | K105: 0
B106: 103 | C106: =+IF(Simulador!$G$26>='Cronograma Referencial'!B106,EDATE(C105,(B106-B105)*VLOOKUP(Simulador!$G$27,Simulador!$V$18:$W$29,2,FALSE)/30),0) -> 00:00:00 | D106: 0 | E106: =+IF(Simulador!$G$26>='Cronograma Referencial'!B106,'Cronograma Referencial'!E105+VLOOKUP(Simulador!$G$27,Simulador!$V$18:$W$29,2,FALSE),0) -> 00:00:00 | F106: 0 | H106: 103 | I106: 00:00:00 | J106: =+IFERROR(IF(VLOOKUP(I106,'BD Dias No utiles'!$B$9:$H$4077,7,FALSE)="X",IF(VLOOKUP(I106+1,'BD Dias No utiles'!$B$9:$H$4077,7,FALSE)="X",IF(VLOOKUP(I106+2,'BD Dias No utiles'!$B$9:$H$4077,7,FALSE)="X",I106+3,I106+2),I106+1),I106),0) -> 00:00:00 | K106: 0
B107: 104 | C107: =+IF(Simulador!$G$26>='Cronograma Referencial'!B107,EDATE(C106,(B107-B106)*VLOOKUP(Simulador!$G$27,Simulador!$V$18:$W$29,2,FALSE)/30),0) -> 00:00:00 | D107: 0 | E107: =+IF(Simulador!$G$26>='Cronograma Referencial'!B107,'Cronograma Referencial'!E106+VLOOKUP(Simulador!$G$27,Simulador!$V$18:$W$29,2,FALSE),0) -> 00:00:00 | F107: 0 | H107: 104 | I107: 00:00:00 | J107: =+IFERROR(IF(VLOOKUP(I107,'BD Dias No utiles'!$B$9:$H$4077,7,FALSE)="X",IF(VLOOKUP(I107+1,'BD Dias No utiles'!$B$9:$H$4077,7,FALSE)="X",IF(VLOOKUP(I107+2,'BD Dias No utiles'!$B$9:$H$4077,7,FALSE)="X",I107+3,I107+2),I107+1),I107),0) -> 00:00:00 | K107: 0
B108: 105 | C108: =+IF(Simulador!$G$26>='Cronograma Referencial'!B108,EDATE(C107,(B108-B107)*VLOOKUP(Simulador!$G$27,Simulador!$V$18:$W$29,2,FALSE)/30),0) -> 00:00:00 | D108: 0 | E108: =+IF(Simulador!$G$26>='Cronograma Referencial'!B108,'Cronograma Referencial'!E107+VLOOKUP(Simulador!$G$27,Simulador!$V$18:$W$29,2,FALSE),0) -> 00:00:00 | F108: 0 | H108: 105 | I108: 00:00:00 | J108: =+IFERROR(IF(VLOOKUP(I108,'BD Dias No utiles'!$B$9:$H$4077,7,FALSE)="X",IF(VLOOKUP(I108+1,'BD Dias No utiles'!$B$9:$H$4077,7,FALSE)="X",IF(VLOOKUP(I108+2,'BD Dias No utiles'!$B$9:$H$4077,7,FALSE)="X",I108+3,I108+2),I108+1),I108),0) -> 00:00:00 | K108: 0
B109: 106 | C109: =+IF(Simulador!$G$26>='Cronograma Referencial'!B109,EDATE(C108,(B109-B108)*VLOOKUP(Simulador!$G$27,Simulador!$V$18:$W$29,2,FALSE)/30),0) -> 00:00:00 | D109: 0 | E109: =+IF(Simulador!$G$26>='Cronograma Referencial'!B109,'Cronograma Referencial'!E108+VLOOKUP(Simulador!$G$27,Simulador!$V$18:$W$29,2,FALSE),0) -> 00:00:00 | F109: 0 | H109: 106 | I109: 00:00:00 | J109: =+IFERROR(IF(VLOOKUP(I109,'BD Dias No utiles'!$B$9:$H$4077,7,FALSE)="X",IF(VLOOKUP(I109+1,'BD Dias No utiles'!$B$9:$H$4077,7,FALSE)="X",IF(VLOOKUP(I109+2,'BD Dias No utiles'!$B$9:$H$4077,7,FALSE)="X",I109+3,I109+2),I109+1),I109),0) -> 00:00:00 | K109: 0
B110: 107 | C110: =+IF(Simulador!$G$26>='Cronograma Referencial'!B110,EDATE(C109,(B110-B109)*VLOOKUP(Simulador!$G$27,Simulador!$V$18:$W$29,2,FALSE)/30),0) -> 00:00:00 | D110: 0 | E110: =+IF(Simulador!$G$26>='Cronograma Referencial'!B110,'Cronograma Referencial'!E109+VLOOKUP(Simulador!$G$27,Simulador!$V$18:$W$29,2,FALSE),0) -> 00:00:00 | F110: 0 | H110: 107 | I110: 00:00:00 | J110: =+IFERROR(IF(VLOOKUP(I110,'BD Dias No utiles'!$B$9:$H$4077,7,FALSE)="X",IF(VLOOKUP(I110+1,'BD Dias No utiles'!$B$9:$H$4077,7,FALSE)="X",IF(VLOOKUP(I110+2,'BD Dias No utiles'!$B$9:$H$4077,7,FALSE)="X",I110+3,I110+2),I110+1),I110),0) -> 00:00:00 | K110: 0
B111: 108 | C111: =+IF(Simulador!$G$26>='Cronograma Referencial'!B111,EDATE(C110,(B111-B110)*VLOOKUP(Simulador!$G$27,Simulador!$V$18:$W$29,2,FALSE)/30),0) -> 00:00:00 | D111: 0 | E111: =+IF(Simulador!$G$26>='Cronograma Referencial'!B111,'Cronograma Referencial'!E110+VLOOKUP(Simulador!$G$27,Simulador!$V$18:$W$29,2,FALSE),0) -> 00:00:00 | F111: 0 | H111: 108 | I111: 00:00:00 | J111: =+IFERROR(IF(VLOOKUP(I111,'BD Dias No utiles'!$B$9:$H$4077,7,FALSE)="X",IF(VLOOKUP(I111+1,'BD Dias No utiles'!$B$9:$H$4077,7,FALSE)="X",IF(VLOOKUP(I111+2,'BD Dias No utiles'!$B$9:$H$4077,7,FALSE)="X",I111+3,I111+2),I111+1),I111),0) -> 00:00:00 | K111: 0
B112: 109 | C112: =+IF(Simulador!$G$26>='Cronograma Referencial'!B112,EDATE(C111,(B112-B111)*VLOOKUP(Simulador!$G$27,Simulador!$V$18:$W$29,2,FALSE)/30),0) -> 00:00:00 | D112: 0 | E112: =+IF(Simulador!$G$26>='Cronograma Referencial'!B112,'Cronograma Referencial'!E111+VLOOKUP(Simulador!$G$27,Simulador!$V$18:$W$29,2,FALSE),0) -> 00:00:00 | F112: 0 | H112: 109 | I112: 00:00:00 | J112: =+IFERROR(IF(VLOOKUP(I112,'BD Dias No utiles'!$B$9:$H$4077,7,FALSE)="X",IF(VLOOKUP(I112+1,'BD Dias No utiles'!$B$9:$H$4077,7,FALSE)="X",IF(VLOOKUP(I112+2,'BD Dias No utiles'!$B$9:$H$4077,7,FALSE)="X",I112+3,I112+2),I112+1),I112),0) -> 00:00:00 | K112: 0
B113: 110 | C113: =+IF(Simulador!$G$26>='Cronograma Referencial'!B113,EDATE(C112,(B113-B112)*VLOOKUP(Simulador!$G$27,Simulador!$V$18:$W$29,2,FALSE)/30),0) -> 00:00:00 | D113: 0 | E113: =+IF(Simulador!$G$26>='Cronograma Referencial'!B113,'Cronograma Referencial'!E112+VLOOKUP(Simulador!$G$27,Simulador!$V$18:$W$29,2,FALSE),0) -> 00:00:00 | F113: 0 | H113: 110 | I113: 00:00:00 | J113: =+IFERROR(IF(VLOOKUP(I113,'BD Dias No utiles'!$B$9:$H$4077,7,FALSE)="X",IF(VLOOKUP(I113+1,'BD Dias No utiles'!$B$9:$H$4077,7,FALSE)="X",IF(VLOOKUP(I113+2,'BD Dias No utiles'!$B$9:$H$4077,7,FALSE)="X",I113+3,I113+2),I113+1),I113),0) -> 00:00:00 | K113: 0
B114: 111 | C114: =+IF(Simulador!$G$26>='Cronograma Referencial'!B114,EDATE(C113,(B114-B113)*VLOOKUP(Simulador!$G$27,Simulador!$V$18:$W$29,2,FALSE)/30),0) -> 00:00:00 | D114: 0 | E114: =+IF(Simulador!$G$26>='Cronograma Referencial'!B114,'Cronograma Referencial'!E113+VLOOKUP(Simulador!$G$27,Simulador!$V$18:$W$29,2,FALSE),0) -> 00:00:00 | F114: 0 | H114: 111 | I114: 00:00:00 | J114: =+IFERROR(IF(VLOOKUP(I114,'BD Dias No utiles'!$B$9:$H$4077,7,FALSE)="X",IF(VLOOKUP(I114+1,'BD Dias No utiles'!$B$9:$H$4077,7,FALSE)="X",IF(VLOOKUP(I114+2,'BD Dias No utiles'!$B$9:$H$4077,7,FALSE)="X",I114+3,I114+2),I114+1),I114),0) -> 00:00:00 | K114: 0
B115: 112 | C115: =+IF(Simulador!$G$26>='Cronograma Referencial'!B115,EDATE(C114,(B115-B114)*VLOOKUP(Simulador!$G$27,Simulador!$V$18:$W$29,2,FALSE)/30),0) -> 00:00:00 | D115: 0 | E115: =+IF(Simulador!$G$26>='Cronograma Referencial'!B115,'Cronograma Referencial'!E114+VLOOKUP(Simulador!$G$27,Simulador!$V$18:$W$29,2,FALSE),0) -> 00:00:00 | F115: 0 | H115: 112 | I115: 00:00:00 | J115: =+IFERROR(IF(VLOOKUP(I115,'BD Dias No utiles'!$B$9:$H$4077,7,FALSE)="X",IF(VLOOKUP(I115+1,'BD Dias No utiles'!$B$9:$H$4077,7,FALSE)="X",IF(VLOOKUP(I115+2,'BD Dias No utiles'!$B$9:$H$4077,7,FALSE)="X",I115+3,I115+2),I115+1),I115),0) -> 00:00:00 | K115: 0
B116: 113 | C116: =+IF(Simulador!$G$26>='Cronograma Referencial'!B116,EDATE(C115,(B116-B115)*VLOOKUP(Simulador!$G$27,Simulador!$V$18:$W$29,2,FALSE)/30),0) -> 00:00:00 | D116: 0 | E116: =+IF(Simulador!$G$26>='Cronograma Referencial'!B116,'Cronograma Referencial'!E115+VLOOKUP(Simulador!$G$27,Simulador!$V$18:$W$29,2,FALSE),0) -> 00:00:00 | F116: 0 | H116: 113 | I116: 00:00:00 | J116: =+IFERROR(IF(VLOOKUP(I116,'BD Dias No utiles'!$B$9:$H$4077,7,FALSE)="X",IF(VLOOKUP(I116+1,'BD Dias No utiles'!$B$9:$H$4077,7,FALSE)="X",IF(VLOOKUP(I116+2,'BD Dias No utiles'!$B$9:$H$4077,7,FALSE)="X",I116+3,I116+2),I116+1),I116),0) -> 00:00:00 | K116: 0
B117: 114 | C117: =+IF(Simulador!$G$26>='Cronograma Referencial'!B117,EDATE(C116,(B117-B116)*VLOOKUP(Simulador!$G$27,Simulador!$V$18:$W$29,2,FALSE)/30),0) -> 00:00:00 | D117: 0 | E117: =+IF(Simulador!$G$26>='Cronograma Referencial'!B117,'Cronograma Referencial'!E116+VLOOKUP(Simulador!$G$27,Simulador!$V$18:$W$29,2,FALSE),0) -> 00:00:00 | F117: 0 | H117: 114 | I117: 00:00:00 | J117: =+IFERROR(IF(VLOOKUP(I117,'BD Dias No utiles'!$B$9:$H$4077,7,FALSE)="X",IF(VLOOKUP(I117+1,'BD Dias No utiles'!$B$9:$H$4077,7,FALSE)="X",IF(VLOOKUP(I117+2,'BD Dias No utiles'!$B$9:$H$4077,7,FALSE)="X",I117+3,I117+2),I117+1),I117),0) -> 00:00:00 | K117: 0
B118: 115 | C118: =+IF(Simulador!$G$26>='Cronograma Referencial'!B118,EDATE(C117,(B118-B117)*VLOOKUP(Simulador!$G$27,Simulador!$V$18:$W$29,2,FALSE)/30),0) -> 00:00:00 | D118: 0 | E118: =+IF(Simulador!$G$26>='Cronograma Referencial'!B118,'Cronograma Referencial'!E117+VLOOKUP(Simulador!$G$27,Simulador!$V$18:$W$29,2,FALSE),0) -> 00:00:00 | F118: 0 | H118: 115 | I118: 00:00:00 | J118: =+IFERROR(IF(VLOOKUP(I118,'BD Dias No utiles'!$B$9:$H$4077,7,FALSE)="X",IF(VLOOKUP(I118+1,'BD Dias No utiles'!$B$9:$H$4077,7,FALSE)="X",IF(VLOOKUP(I118+2,'BD Dias No utiles'!$B$9:$H$4077,7,FALSE)="X",I118+3,I118+2),I118+1),I118),0) -> 00:00:00 | K118: 0
B119: 116 | C119: =+IF(Simulador!$G$26>='Cronograma Referencial'!B119,EDATE(C118,(B119-B118)*VLOOKUP(Simulador!$G$27,Simulador!$V$18:$W$29,2,FALSE)/30),0) -> 00:00:00 | D119: 0 | E119: =+IF(Simulador!$G$26>='Cronograma Referencial'!B119,'Cronograma Referencial'!E118+VLOOKUP(Simulador!$G$27,Simulador!$V$18:$W$29,2,FALSE),0) -> 00:00:00 | F119: 0 | H119: 116 | I119: 00:00:00 | J119: =+IFERROR(IF(VLOOKUP(I119,'BD Dias No utiles'!$B$9:$H$4077,7,FALSE)="X",IF(VLOOKUP(I119+1,'BD Dias No utiles'!$B$9:$H$4077,7,FALSE)="X",IF(VLOOKUP(I119+2,'BD Dias No utiles'!$B$9:$H$4077,7,FALSE)="X",I119+3,I119+2),I119+1),I119),0) -> 00:00:00 | K119: 0
B120: 117 | C120: =+IF(Simulador!$G$26>='Cronograma Referencial'!B120,EDATE(C119,(B120-B119)*VLOOKUP(Simulador!$G$27,Simulador!$V$18:$W$29,2,FALSE)/30),0) -> 00:00:00 | D120: 0 | E120: =+IF(Simulador!$G$26>='Cronograma Referencial'!B120,'Cronograma Referencial'!E119+VLOOKUP(Simulador!$G$27,Simulador!$V$18:$W$29,2,FALSE),0) -> 00:00:00 | F120: 0 | H120: 117 | I120: 00:00:00 | J120: =+IFERROR(IF(VLOOKUP(I120,'BD Dias No utiles'!$B$9:$H$4077,7,FALSE)="X",IF(VLOOKUP(I120+1,'BD Dias No utiles'!$B$9:$H$4077,7,FALSE)="X",IF(VLOOKUP(I120+2,'BD Dias No utiles'!$B$9:$H$4077,7,FALSE)="X",I120+3,I120+2),I120+1),I120),0) -> 00:00:00 | K120: 0
B121: 118 | C121: =+IF(Simulador!$G$26>='Cronograma Referencial'!B121,EDATE(C120,(B121-B120)*VLOOKUP(Simulador!$G$27,Simulador!$V$18:$W$29,2,FALSE)/30),0) -> 00:00:00 | D121: 0 | E121: =+IF(Simulador!$G$26>='Cronograma Referencial'!B121,'Cronograma Referencial'!E120+VLOOKUP(Simulador!$G$27,Simulador!$V$18:$W$29,2,FALSE),0) -> 00:00:00 | F121: 0 | H121: 118 | I121: 00:00:00 | J121: =+IFERROR(IF(VLOOKUP(I121,'BD Dias No utiles'!$B$9:$H$4077,7,FALSE)="X",IF(VLOOKUP(I121+1,'BD Dias No utiles'!$B$9:$H$4077,7,FALSE)="X",IF(VLOOKUP(I121+2,'BD Dias No utiles'!$B$9:$H$4077,7,FALSE)="X",I121+3,I121+2),I121+1),I121),0) -> 00:00:00 | K121: 0
B122: 119 | C122: =+IF(Simulador!$G$26>='Cronograma Referencial'!B122,EDATE(C121,(B122-B121)*VLOOKUP(Simulador!$G$27,Simulador!$V$18:$W$29,2,FALSE)/30),0) -> 00:00:00 | D122: 0 | E122: =+IF(Simulador!$G$26>='Cronograma Referencial'!B122,'Cronograma Referencial'!E121+VLOOKUP(Simulador!$G$27,Simulador!$V$18:$W$29,2,FALSE),0) -> 00:00:00 | F122: 0 | H122: 119 | I122: 00:00:00 | J122: =+IFERROR(IF(VLOOKUP(I122,'BD Dias No utiles'!$B$9:$H$4077,7,FALSE)="X",IF(VLOOKUP(I122+1,'BD Dias No utiles'!$B$9:$H$4077,7,FALSE)="X",IF(VLOOKUP(I122+2,'BD Dias No utiles'!$B$9:$H$4077,7,FALSE)="X",I122+3,I122+2),I122+1),I122),0) -> 00:00:00 | K122: 0
B123: 120 | C123: =+IF(Simulador!$G$26>='Cronograma Referencial'!B123,EDATE(C122,(B123-B122)*VLOOKUP(Simulador!$G$27,Simulador!$V$18:$W$29,2,FALSE)/30),0) -> 00:00:00 | D123: 0 | E123: =+IF(Simulador!$G$26>='Cronograma Referencial'!B123,'Cronograma Referencial'!E122+VLOOKUP(Simulador!$G$27,Simulador!$V$18:$W$29,2,FALSE),0) -> 00:00:00 | F123: 0 | H123: 120 | I123: 00:00:00 | J123: =+IFERROR(IF(VLOOKUP(I123,'BD Dias No utiles'!$B$9:$H$4077,7,FALSE)="X",IF(VLOOKUP(I123+1,'BD Dias No utiles'!$B$9:$H$4077,7,FALSE)="X",IF(VLOOKUP(I123+2,'BD Dias No utiles'!$B$9:$H$4077,7,FALSE)="X",I123+3,I123+2),I123+1),I123),0) -> 00:00:00 | K123: 0
B124: 121 | C124: =+IF(Simulador!$G$26>='Cronograma Referencial'!B124,EDATE(C123,(B124-B123)*VLOOKUP(Simulador!$G$27,Simulador!$V$18:$W$29,2,FALSE)/30),0) -> 00:00:00 | D124: 0 | E124: =+IF(Simulador!$G$26>='Cronograma Referencial'!B124,'Cronograma Referencial'!E123+VLOOKUP(Simulador!$G$27,Simulador!$V$18:$W$29,2,FALSE),0) -> 00:00:00 | F124: 0 | H124: 121 | I124: 00:00:00 | J124: =+IFERROR(IF(VLOOKUP(I124,'BD Dias No utiles'!$B$9:$H$4077,7,FALSE)="X",IF(VLOOKUP(I124+1,'BD Dias No utiles'!$B$9:$H$4077,7,FALSE)="X",IF(VLOOKUP(I124+2,'BD Dias No utiles'!$B$9:$H$4077,7,FALSE)="X",I124+3,I124+2),I124+1),I124),0) -> 00:00:00 | K124: 0
B125: 122 | C125: =+IF(Simulador!$G$26>='Cronograma Referencial'!B125,EDATE(C124,(B125-B124)*VLOOKUP(Simulador!$G$27,Simulador!$V$18:$W$29,2,FALSE)/30),0) -> 00:00:00 | D125: 0 | E125: =+IF(Simulador!$G$26>='Cronograma Referencial'!B125,'Cronograma Referencial'!E124+VLOOKUP(Simulador!$G$27,Simulador!$V$18:$W$29,2,FALSE),0) -> 00:00:00 | F125: 0 | H125: 122 | I125: 00:00:00 | J125: =+IFERROR(IF(VLOOKUP(I125,'BD Dias No utiles'!$B$9:$H$4077,7,FALSE)="X",IF(VLOOKUP(I125+1,'BD Dias No utiles'!$B$9:$H$4077,7,FALSE)="X",IF(VLOOKUP(I125+2,'BD Dias No utiles'!$B$9:$H$4077,7,FALSE)="X",I125+3,I125+2),I125+1),I125),0) -> 00:00:00 | K125: 0
B126: 123 | C126: =+IF(Simulador!$G$26>='Cronograma Referencial'!B126,EDATE(C125,(B126-B125)*VLOOKUP(Simulador!$G$27,Simulador!$V$18:$W$29,2,FALSE)/30),0) -> 00:00:00 | D126: 0 | E126: =+IF(Simulador!$G$26>='Cronograma Referencial'!B126,'Cronograma Referencial'!E125+VLOOKUP(Simulador!$G$27,Simulador!$V$18:$W$29,2,FALSE),0) -> 00:00:00 | F126: 0 | H126: 123 | I126: 00:00:00 | J126: =+IFERROR(IF(VLOOKUP(I126,'BD Dias No utiles'!$B$9:$H$4077,7,FALSE)="X",IF(VLOOKUP(I126+1,'BD Dias No utiles'!$B$9:$H$4077,7,FALSE)="X",IF(VLOOKUP(I126+2,'BD Dias No utiles'!$B$9:$H$4077,7,FALSE)="X",I126+3,I126+2),I126+1),I126),0) -> 00:00:00 | K126: 0
B127: 124 | C127: =+IF(Simulador!$G$26>='Cronograma Referencial'!B127,EDATE(C126,(B127-B126)*VLOOKUP(Simulador!$G$27,Simulador!$V$18:$W$29,2,FALSE)/30),0) -> 00:00:00 | D127: 0 | E127: =+IF(Simulador!$G$26>='Cronograma Referencial'!B127,'Cronograma Referencial'!E126+VLOOKUP(Simulador!$G$27,Simulador!$V$18:$W$29,2,FALSE),0) -> 00:00:00 | F127: 0 | H127: 124 | I127: 00:00:00 | J127: =+IFERROR(IF(VLOOKUP(I127,'BD Dias No utiles'!$B$9:$H$4077,7,FALSE)="X",IF(VLOOKUP(I127+1,'BD Dias No utiles'!$B$9:$H$4077,7,FALSE)="X",IF(VLOOKUP(I127+2,'BD Dias No utiles'!$B$9:$H$4077,7,FALSE)="X",I127+3,I127+2),I127+1),I127),0) -> 00:00:00 | K127: 0
B128: 125 | C128: =+IF(Simulador!$G$26>='Cronograma Referencial'!B128,EDATE(C127,(B128-B127)*VLOOKUP(Simulador!$G$27,Simulador!$V$18:$W$29,2,FALSE)/30),0) -> 00:00:00 | D128: 0 | E128: =+IF(Simulador!$G$26>='Cronograma Referencial'!B128,'Cronograma Referencial'!E127+VLOOKUP(Simulador!$G$27,Simulador!$V$18:$W$29,2,FALSE),0) -> 00:00:00 | F128: 0 | H128: 125 | I128: 00:00:00 | J128: =+IFERROR(IF(VLOOKUP(I128,'BD Dias No utiles'!$B$9:$H$4077,7,FALSE)="X",IF(VLOOKUP(I128+1,'BD Dias No utiles'!$B$9:$H$4077,7,FALSE)="X",IF(VLOOKUP(I128+2,'BD Dias No utiles'!$B$9:$H$4077,7,FALSE)="X",I128+3,I128+2),I128+1),I128),0) -> 00:00:00 | K128: 0
B129: 126 | C129: =+IF(Simulador!$G$26>='Cronograma Referencial'!B129,EDATE(C128,(B129-B128)*VLOOKUP(Simulador!$G$27,Simulador!$V$18:$W$29,2,FALSE)/30),0) -> 00:00:00 | D129: 0 | E129: =+IF(Simulador!$G$26>='Cronograma Referencial'!B129,'Cronograma Referencial'!E128+VLOOKUP(Simulador!$G$27,Simulador!$V$18:$W$29,2,FALSE),0) -> 00:00:00 | F129: 0 | H129: 126 | I129: 00:00:00 | J129: =+IFERROR(IF(VLOOKUP(I129,'BD Dias No utiles'!$B$9:$H$4077,7,FALSE)="X",IF(VLOOKUP(I129+1,'BD Dias No utiles'!$B$9:$H$4077,7,FALSE)="X",IF(VLOOKUP(I129+2,'BD Dias No utiles'!$B$9:$H$4077,7,FALSE)="X",I129+3,I129+2),I129+1),I129),0) -> 00:00:00 | K129: 0
B130: 127 | C130: =+IF(Simulador!$G$26>='Cronograma Referencial'!B130,EDATE(C129,(B130-B129)*VLOOKUP(Simulador!$G$27,Simulador!$V$18:$W$29,2,FALSE)/30),0) -> 00:00:00 | D130: 0 | E130: =+IF(Simulador!$G$26>='Cronograma Referencial'!B130,'Cronograma Referencial'!E129+VLOOKUP(Simulador!$G$27,Simulador!$V$18:$W$29,2,FALSE),0) -> 00:00:00 | F130: 0 | H130: 127 | I130: 00:00:00 | J130: =+IFERROR(IF(VLOOKUP(I130,'BD Dias No utiles'!$B$9:$H$4077,7,FALSE)="X",IF(VLOOKUP(I130+1,'BD Dias No utiles'!$B$9:$H$4077,7,FALSE)="X",IF(VLOOKUP(I130+2,'BD Dias No utiles'!$B$9:$H$4077,7,FALSE)="X",I130+3,I130+2),I130+1),I130),0) -> 00:00:00 | K130: 0
B131: 128 | C131: =+IF(Simulador!$G$26>='Cronograma Referencial'!B131,EDATE(C130,(B131-B130)*VLOOKUP(Simulador!$G$27,Simulador!$V$18:$W$29,2,FALSE)/30),0) -> 00:00:00 | D131: 0 | E131: =+IF(Simulador!$G$26>='Cronograma Referencial'!B131,'Cronograma Referencial'!E130+VLOOKUP(Simulador!$G$27,Simulador!$V$18:$W$29,2,FALSE),0) -> 00:00:00 | F131: 0 | H131: 128 | I131: 00:00:00 | J131: =+IFERROR(IF(VLOOKUP(I131,'BD Dias No utiles'!$B$9:$H$4077,7,FALSE)="X",IF(VLOOKUP(I131+1,'BD Dias No utiles'!$B$9:$H$4077,7,FALSE)="X",IF(VLOOKUP(I131+2,'BD Dias No utiles'!$B$9:$H$4077,7,FALSE)="X",I131+3,I131+2),I131+1),I131),0) -> 00:00:00 | K131: 0
B132: 129 | C132: =+IF(Simulador!$G$26>='Cronograma Referencial'!B132,EDATE(C131,(B132-B131)*VLOOKUP(Simulador!$G$27,Simulador!$V$18:$W$29,2,FALSE)/30),0) -> 00:00:00 | D132: 0 | E132: =+IF(Simulador!$G$26>='Cronograma Referencial'!B132,'Cronograma Referencial'!E131+VLOOKUP(Simulador!$G$27,Simulador!$V$18:$W$29,2,FALSE),0) -> 00:00:00 | F132: 0 | H132: =+B132 -> 129 | I132: 00:00:00 | J132: =+IFERROR(IF(VLOOKUP(I132,'BD Dias No utiles'!$B$9:$H$4077,7,FALSE)="X",IF(VLOOKUP(I132+1,'BD Dias No utiles'!$B$9:$H$4077,7,FALSE)="X",IF(VLOOKUP(I132+2,'BD Dias No utiles'!$B$9:$H$4077,7,FALSE)="X",I132+3,I132+2),I132+1),I132),0) -> 00:00:00 | K132: 0
B133: 130 | C133: =+IF(Simulador!$G$26>='Cronograma Referencial'!B133,EDATE(C132,(B133-B132)*VLOOKUP(Simulador!$G$27,Simulador!$V$18:$W$29,2,FALSE)/30),0) -> 00:00:00 | D133: =+C133-C132 -> 0 | E133: =+IF(Simulador!$G$26>='Cronograma Referencial'!B133,'Cronograma Referencial'!E132+VLOOKUP(Simulador!$G$27,Simulador!$V$18:$W$29,2,FALSE),0) -> 00:00:00 | F133: 0 | H133: 130 | I133: =+HLOOKUP($I$2,$C$2:$E$418,H133+2) -> 00:00:00 | J133: =+IFERROR(IF(VLOOKUP(I133,'BD Dias No utiles'!$B$9:$H$4077,7,FALSE)="X",IF(VLOOKUP(I133+1,'BD Dias No utiles'!$B$9:$H$4077,7,FALSE)="X",IF(VLOOKUP(I133+2,'BD Dias No utiles'!$B$9:$H$4077,7,FALSE)="X",I133+3,I133+2),I133+1),I133),0) -> 00:00:00 | K133: =+I133-I132 -> 0
B134: =+B133+1 -> 131 | C134: =+IF(Simulador!$G$26>='Cronograma Referencial'!B134,EDATE(C133,(B134-B133)*VLOOKUP(Simulador!$G$27,Simulador!$V$18:$W$29,2,FALSE)/30),0) -> 00:00:00 | D134: 0 | E134: =+IF(Simulador!$G$26>='Cronograma Referencial'!B134,'Cronograma Referencial'!E133+VLOOKUP(Simulador!$G$27,Simulador!$V$18:$W$29,2,FALSE),0) -> 00:00:00 | F134: =+E134-E133 -> 0 | H134: 131 | I134: 00:00:00 | J134: =+IFERROR(IF(VLOOKUP(I134,'BD Dias No utiles'!$B$9:$H$4077,7,FALSE)="X",IF(VLOOKUP(I134+1,'BD Dias No utiles'!$B$9:$H$4077,7,FALSE)="X",IF(VLOOKUP(I134+2,'BD Dias No utiles'!$B$9:$H$4077,7,FALSE)="X",I134+3,I134+2),I134+1),I134),0) -> 00:00:00 | K134: 0
B135: 132 | C135: =+IF(Simulador!$G$26>='Cronograma Referencial'!B135,EDATE(C134,(B135-B134)*VLOOKUP(Simulador!$G$27,Simulador!$V$18:$W$29,2,FALSE)/30),0) -> 00:00:00 | D135: 0 | E135: =+IF(Simulador!$G$26>='Cronograma Referencial'!B135,'Cronograma Referencial'!E134+VLOOKUP(Simulador!$G$27,Simulador!$V$18:$W$29,2,FALSE),0) -> 00:00:00 | F135: 0 | H135: 132 | I135: 00:00:00 | J135: =+IFERROR(IF(VLOOKUP(I135,'BD Dias No utiles'!$B$9:$H$4077,7,FALSE)="X",IF(VLOOKUP(I135+1,'BD Dias No utiles'!$B$9:$H$4077,7,FALSE)="X",IF(VLOOKUP(I135+2,'BD Dias No utiles'!$B$9:$H$4077,7,FALSE)="X",I135+3,I135+2),I135+1),I135),0) -> 00:00:00 | K135: 0
B136: 133 | C136: =+IF(Simulador!$G$26>='Cronograma Referencial'!B136,EDATE(C135,(B136-B135)*VLOOKUP(Simulador!$G$27,Simulador!$V$18:$W$29,2,FALSE)/30),0) -> 00:00:00 | D136: 0 | E136: =+IF(Simulador!$G$26>='Cronograma Referencial'!B136,'Cronograma Referencial'!E135+VLOOKUP(Simulador!$G$27,Simulador!$V$18:$W$29,2,FALSE),0) -> 00:00:00 | F136: 0 | H136: 133 | I136: 00:00:00 | J136: =+IFERROR(IF(VLOOKUP(I136,'BD Dias No utiles'!$B$9:$H$4077,7,FALSE)="X",IF(VLOOKUP(I136+1,'BD Dias No utiles'!$B$9:$H$4077,7,FALSE)="X",IF(VLOOKUP(I136+2,'BD Dias No utiles'!$B$9:$H$4077,7,FALSE)="X",I136+3,I136+2),I136+1),I136),0) -> 00:00:00 | K136: 0
B137: 134 | C137: =+IF(Simulador!$G$26>='Cronograma Referencial'!B137,EDATE(C136,(B137-B136)*VLOOKUP(Simulador!$G$27,Simulador!$V$18:$W$29,2,FALSE)/30),0) -> 00:00:00 | D137: 0 | E137: =+IF(Simulador!$G$26>='Cronograma Referencial'!B137,'Cronograma Referencial'!E136+VLOOKUP(Simulador!$G$27,Simulador!$V$18:$W$29,2,FALSE),0) -> 00:00:00 | F137: 0 | H137: 134 | I137: 00:00:00 | J137: =+IFERROR(IF(VLOOKUP(I137,'BD Dias No utiles'!$B$9:$H$4077,7,FALSE)="X",IF(VLOOKUP(I137+1,'BD Dias No utiles'!$B$9:$H$4077,7,FALSE)="X",IF(VLOOKUP(I137+2,'BD Dias No utiles'!$B$9:$H$4077,7,FALSE)="X",I137+3,I137+2),I137+1),I137),0) -> 00:00:00 | K137: 0
B138: 135 | C138: =+IF(Simulador!$G$26>='Cronograma Referencial'!B138,EDATE(C137,(B138-B137)*VLOOKUP(Simulador!$G$27,Simulador!$V$18:$W$29,2,FALSE)/30),0) -> 00:00:00 | D138: 0 | E138: =+IF(Simulador!$G$26>='Cronograma Referencial'!B138,'Cronograma Referencial'!E137+VLOOKUP(Simulador!$G$27,Simulador!$V$18:$W$29,2,FALSE),0) -> 00:00:00 | F138: 0 | H138: 135 | I138: 00:00:00 | J138: =+IFERROR(IF(VLOOKUP(I138,'BD Dias No utiles'!$B$9:$H$4077,7,FALSE)="X",IF(VLOOKUP(I138+1,'BD Dias No utiles'!$B$9:$H$4077,7,FALSE)="X",IF(VLOOKUP(I138+2,'BD Dias No utiles'!$B$9:$H$4077,7,FALSE)="X",I138+3,I138+2),I138+1),I138),0) -> 00:00:00 | K138: 0
B139: 136 | C139: =+IF(Simulador!$G$26>='Cronograma Referencial'!B139,EDATE(C138,(B139-B138)*VLOOKUP(Simulador!$G$27,Simulador!$V$18:$W$29,2,FALSE)/30),0) -> 00:00:00 | D139: 0 | E139: =+IF(Simulador!$G$26>='Cronograma Referencial'!B139,'Cronograma Referencial'!E138+VLOOKUP(Simulador!$G$27,Simulador!$V$18:$W$29,2,FALSE),0) -> 00:00:00 | F139: 0 | H139: 136 | I139: 00:00:00 | J139: =+IFERROR(IF(VLOOKUP(I139,'BD Dias No utiles'!$B$9:$H$4077,7,FALSE)="X",IF(VLOOKUP(I139+1,'BD Dias No utiles'!$B$9:$H$4077,7,FALSE)="X",IF(VLOOKUP(I139+2,'BD Dias No utiles'!$B$9:$H$4077,7,FALSE)="X",I139+3,I139+2),I139+1),I139),0) -> 00:00:00 | K139: 0
B140: 137 | C140: =+IF(Simulador!$G$26>='Cronograma Referencial'!B140,EDATE(C139,(B140-B139)*VLOOKUP(Simulador!$G$27,Simulador!$V$18:$W$29,2,FALSE)/30),0) -> 00:00:00 | D140: 0 | E140: =+IF(Simulador!$G$26>='Cronograma Referencial'!B140,'Cronograma Referencial'!E139+VLOOKUP(Simulador!$G$27,Simulador!$V$18:$W$29,2,FALSE),0) -> 00:00:00 | F140: 0 | H140: 137 | I140: 00:00:00 | J140: =+IFERROR(IF(VLOOKUP(I140,'BD Dias No utiles'!$B$9:$H$4077,7,FALSE)="X",IF(VLOOKUP(I140+1,'BD Dias No utiles'!$B$9:$H$4077,7,FALSE)="X",IF(VLOOKUP(I140+2,'BD Dias No utiles'!$B$9:$H$4077,7,FALSE)="X",I140+3,I140+2),I140+1),I140),0) -> 00:00:00 | K140: 0
B141: 138 | C141: =+IF(Simulador!$G$26>='Cronograma Referencial'!B141,EDATE(C140,(B141-B140)*VLOOKUP(Simulador!$G$27,Simulador!$V$18:$W$29,2,FALSE)/30),0) -> 00:00:00 | D141: 0 | E141: =+IF(Simulador!$G$26>='Cronograma Referencial'!B141,'Cronograma Referencial'!E140+VLOOKUP(Simulador!$G$27,Simulador!$V$18:$W$29,2,FALSE),0) -> 00:00:00 | F141: 0 | H141: 138 | I141: 00:00:00 | J141: =+IFERROR(IF(VLOOKUP(I141,'BD Dias No utiles'!$B$9:$H$4077,7,FALSE)="X",IF(VLOOKUP(I141+1,'BD Dias No utiles'!$B$9:$H$4077,7,FALSE)="X",IF(VLOOKUP(I141+2,'BD Dias No utiles'!$B$9:$H$4077,7,FALSE)="X",I141+3,I141+2),I141+1),I141),0) -> 00:00:00 | K141: 0
B142: 139 | C142: =+IF(Simulador!$G$26>='Cronograma Referencial'!B142,EDATE(C141,(B142-B141)*VLOOKUP(Simulador!$G$27,Simulador!$V$18:$W$29,2,FALSE)/30),0) -> 00:00:00 | D142: 0 | E142: =+IF(Simulador!$G$26>='Cronograma Referencial'!B142,'Cronograma Referencial'!E141+VLOOKUP(Simulador!$G$27,Simulador!$V$18:$W$29,2,FALSE),0) -> 00:00:00 | F142: 0 | H142: 139 | I142: 00:00:00 | J142: =+IFERROR(IF(VLOOKUP(I142,'BD Dias No utiles'!$B$9:$H$4077,7,FALSE)="X",IF(VLOOKUP(I142+1,'BD Dias No utiles'!$B$9:$H$4077,7,FALSE)="X",IF(VLOOKUP(I142+2,'BD Dias No utiles'!$B$9:$H$4077,7,FALSE)="X",I142+3,I142+2),I142+1),I142),0) -> 00:00:00 | K142: 0
B143: 140 | C143: =+IF(Simulador!$G$26>='Cronograma Referencial'!B143,EDATE(C142,(B143-B142)*VLOOKUP(Simulador!$G$27,Simulador!$V$18:$W$29,2,FALSE)/30),0) -> 00:00:00 | D143: 0 | E143: =+IF(Simulador!$G$26>='Cronograma Referencial'!B143,'Cronograma Referencial'!E142+VLOOKUP(Simulador!$G$27,Simulador!$V$18:$W$29,2,FALSE),0) -> 00:00:00 | F143: 0 | H143: 140 | I143: 00:00:00 | J143: =+IFERROR(IF(VLOOKUP(I143,'BD Dias No utiles'!$B$9:$H$4077,7,FALSE)="X",IF(VLOOKUP(I143+1,'BD Dias No utiles'!$B$9:$H$4077,7,FALSE)="X",IF(VLOOKUP(I143+2,'BD Dias No utiles'!$B$9:$H$4077,7,FALSE)="X",I143+3,I143+2),I143+1),I143),0) -> 00:00:00 | K143: 0
B144: 141 | C144: =+IF(Simulador!$G$26>='Cronograma Referencial'!B144,EDATE(C143,(B144-B143)*VLOOKUP(Simulador!$G$27,Simulador!$V$18:$W$29,2,FALSE)/30),0) -> 00:00:00 | D144: 0 | E144: =+IF(Simulador!$G$26>='Cronograma Referencial'!B144,'Cronograma Referencial'!E143+VLOOKUP(Simulador!$G$27,Simulador!$V$18:$W$29,2,FALSE),0) -> 00:00:00 | F144: 0 | H144: 141 | I144: 00:00:00 | J144: =+IFERROR(IF(VLOOKUP(I144,'BD Dias No utiles'!$B$9:$H$4077,7,FALSE)="X",IF(VLOOKUP(I144+1,'BD Dias No utiles'!$B$9:$H$4077,7,FALSE)="X",IF(VLOOKUP(I144+2,'BD Dias No utiles'!$B$9:$H$4077,7,FALSE)="X",I144+3,I144+2),I144+1),I144),0) -> 00:00:00 | K144: 0
B145: 142 | C145: =+IF(Simulador!$G$26>='Cronograma Referencial'!B145,EDATE(C144,(B145-B144)*VLOOKUP(Simulador!$G$27,Simulador!$V$18:$W$29,2,FALSE)/30),0) -> 00:00:00 | D145: 0 | E145: =+IF(Simulador!$G$26>='Cronograma Referencial'!B145,'Cronograma Referencial'!E144+VLOOKUP(Simulador!$G$27,Simulador!$V$18:$W$29,2,FALSE),0) -> 00:00:00 | F145: 0 | H145: 142 | I145: 00:00:00 | J145: =+IFERROR(IF(VLOOKUP(I145,'BD Dias No utiles'!$B$9:$H$4077,7,FALSE)="X",IF(VLOOKUP(I145+1,'BD Dias No utiles'!$B$9:$H$4077,7,FALSE)="X",IF(VLOOKUP(I145+2,'BD Dias No utiles'!$B$9:$H$4077,7,FALSE)="X",I145+3,I145+2),I145+1),I145),0) -> 00:00:00 | K145: 0
B146: 143 | C146: =+IF(Simulador!$G$26>='Cronograma Referencial'!B146,EDATE(C145,(B146-B145)*VLOOKUP(Simulador!$G$27,Simulador!$V$18:$W$29,2,FALSE)/30),0) -> 00:00:00 | D146: 0 | E146: =+IF(Simulador!$G$26>='Cronograma Referencial'!B146,'Cronograma Referencial'!E145+VLOOKUP(Simulador!$G$27,Simulador!$V$18:$W$29,2,FALSE),0) -> 00:00:00 | F146: 0 | H146: 143 | I146: 00:00:00 | J146: =+IFERROR(IF(VLOOKUP(I146,'BD Dias No utiles'!$B$9:$H$4077,7,FALSE)="X",IF(VLOOKUP(I146+1,'BD Dias No utiles'!$B$9:$H$4077,7,FALSE)="X",IF(VLOOKUP(I146+2,'BD Dias No utiles'!$B$9:$H$4077,7,FALSE)="X",I146+3,I146+2),I146+1),I146),0) -> 00:00:00 | K146: 0
B147: 144 | C147: =+IF(Simulador!$G$26>='Cronograma Referencial'!B147,EDATE(C146,(B147-B146)*VLOOKUP(Simulador!$G$27,Simulador!$V$18:$W$29,2,FALSE)/30),0) -> 00:00:00 | D147: 0 | E147: =+IF(Simulador!$G$26>='Cronograma Referencial'!B147,'Cronograma Referencial'!E146+VLOOKUP(Simulador!$G$27,Simulador!$V$18:$W$29,2,FALSE),0) -> 00:00:00 | F147: 0 | H147: 144 | I147: 00:00:00 | J147: =+IFERROR(IF(VLOOKUP(I147,'BD Dias No utiles'!$B$9:$H$4077,7,FALSE)="X",IF(VLOOKUP(I147+1,'BD Dias No utiles'!$B$9:$H$4077,7,FALSE)="X",IF(VLOOKUP(I147+2,'BD Dias No utiles'!$B$9:$H$4077,7,FALSE)="X",I147+3,I147+2),I147+1),I147),0) -> 00:00:00 | K147: 0
B148: 145 | C148: =+IF(Simulador!$G$26>='Cronograma Referencial'!B148,EDATE(C147,(B148-B147)*VLOOKUP(Simulador!$G$27,Simulador!$V$18:$W$29,2,FALSE)/30),0) -> 00:00:00 | D148: 0 | E148: =+IF(Simulador!$G$26>='Cronograma Referencial'!B148,'Cronograma Referencial'!E147+VLOOKUP(Simulador!$G$27,Simulador!$V$18:$W$29,2,FALSE),0) -> 00:00:00 | F148: 0 | H148: 145 | I148: 00:00:00 | J148: =+IFERROR(IF(VLOOKUP(I148,'BD Dias No utiles'!$B$9:$H$4077,7,FALSE)="X",IF(VLOOKUP(I148+1,'BD Dias No utiles'!$B$9:$H$4077,7,FALSE)="X",IF(VLOOKUP(I148+2,'BD Dias No utiles'!$B$9:$H$4077,7,FALSE)="X",I148+3,I148+2),I148+1),I148),0) -> 00:00:00 | K148: 0
B149: 146 | C149: =+IF(Simulador!$G$26>='Cronograma Referencial'!B149,EDATE(C148,(B149-B148)*VLOOKUP(Simulador!$G$27,Simulador!$V$18:$W$29,2,FALSE)/30),0) -> 00:00:00 | D149: 0 | E149: =+IF(Simulador!$G$26>='Cronograma Referencial'!B149,'Cronograma Referencial'!E148+VLOOKUP(Simulador!$G$27,Simulador!$V$18:$W$29,2,FALSE),0) -> 00:00:00 | F149: 0 | H149: 146 | I149: 00:00:00 | J149: =+IFERROR(IF(VLOOKUP(I149,'BD Dias No utiles'!$B$9:$H$4077,7,FALSE)="X",IF(VLOOKUP(I149+1,'BD Dias No utiles'!$B$9:$H$4077,7,FALSE)="X",IF(VLOOKUP(I149+2,'BD Dias No utiles'!$B$9:$H$4077,7,FALSE)="X",I149+3,I149+2),I149+1),I149),0) -> 00:00:00 | K149: 0
B150: 147 | C150: =+IF(Simulador!$G$26>='Cronograma Referencial'!B150,EDATE(C149,(B150-B149)*VLOOKUP(Simulador!$G$27,Simulador!$V$18:$W$29,2,FALSE)/30),0) -> 00:00:00 | D150: 0 | E150: =+IF(Simulador!$G$26>='Cronograma Referencial'!B150,'Cronograma Referencial'!E149+VLOOKUP(Simulador!$G$27,Simulador!$V$18:$W$29,2,FALSE),0) -> 00:00:00 | F150: 0 | H150: 147 | I150: 00:00:00 | J150: =+IFERROR(IF(VLOOKUP(I150,'BD Dias No utiles'!$B$9:$H$4077,7,FALSE)="X",IF(VLOOKUP(I150+1,'BD Dias No utiles'!$B$9:$H$4077,7,FALSE)="X",IF(VLOOKUP(I150+2,'BD Dias No utiles'!$B$9:$H$4077,7,FALSE)="X",I150+3,I150+2),I150+1),I150),0) -> 00:00:00 | K150: 0
B151: 148 | C151: =+IF(Simulador!$G$26>='Cronograma Referencial'!B151,EDATE(C150,(B151-B150)*VLOOKUP(Simulador!$G$27,Simulador!$V$18:$W$29,2,FALSE)/30),0) -> 00:00:00 | D151: 0 | E151: =+IF(Simulador!$G$26>='Cronograma Referencial'!B151,'Cronograma Referencial'!E150+VLOOKUP(Simulador!$G$27,Simulador!$V$18:$W$29,2,FALSE),0) -> 00:00:00 | F151: 0 | H151: 148 | I151: 00:00:00 | J151: =+IFERROR(IF(VLOOKUP(I151,'BD Dias No utiles'!$B$9:$H$4077,7,FALSE)="X",IF(VLOOKUP(I151+1,'BD Dias No utiles'!$B$9:$H$4077,7,FALSE)="X",IF(VLOOKUP(I151+2,'BD Dias No utiles'!$B$9:$H$4077,7,FALSE)="X",I151+3,I151+2),I151+1),I151),0) -> 00:00:00 | K151: 0
B152: 149 | C152: =+IF(Simulador!$G$26>='Cronograma Referencial'!B152,EDATE(C151,(B152-B151)*VLOOKUP(Simulador!$G$27,Simulador!$V$18:$W$29,2,FALSE)/30),0) -> 00:00:00 | D152: 0 | E152: =+IF(Simulador!$G$26>='Cronograma Referencial'!B152,'Cronograma Referencial'!E151+VLOOKUP(Simulador!$G$27,Simulador!$V$18:$W$29,2,FALSE),0) -> 00:00:00 | F152: 0 | H152: 149 | I152: 00:00:00 | J152: =+IFERROR(IF(VLOOKUP(I152,'BD Dias No utiles'!$B$9:$H$4077,7,FALSE)="X",IF(VLOOKUP(I152+1,'BD Dias No utiles'!$B$9:$H$4077,7,FALSE)="X",IF(VLOOKUP(I152+2,'BD Dias No utiles'!$B$9:$H$4077,7,FALSE)="X",I152+3,I152+2),I152+1),I152),0) -> 00:00:00 | K152: 0
B153: 150 | C153: =+IF(Simulador!$G$26>='Cronograma Referencial'!B153,EDATE(C152,(B153-B152)*VLOOKUP(Simulador!$G$27,Simulador!$V$18:$W$29,2,FALSE)/30),0) -> 00:00:00 | D153: 0 | E153: =+IF(Simulador!$G$26>='Cronograma Referencial'!B153,'Cronograma Referencial'!E152+VLOOKUP(Simulador!$G$27,Simulador!$V$18:$W$29,2,FALSE),0) -> 00:00:00 | F153: 0 | H153: 150 | I153: 00:00:00 | J153: =+IFERROR(IF(VLOOKUP(I153,'BD Dias No utiles'!$B$9:$H$4077,7,FALSE)="X",IF(VLOOKUP(I153+1,'BD Dias No utiles'!$B$9:$H$4077,7,FALSE)="X",IF(VLOOKUP(I153+2,'BD Dias No utiles'!$B$9:$H$4077,7,FALSE)="X",I153+3,I153+2),I153+1),I153),0) -> 00:00:00 | K153: 0
B154: 151 | C154: =+IF(Simulador!$G$26>='Cronograma Referencial'!B154,EDATE(C153,(B154-B153)*VLOOKUP(Simulador!$G$27,Simulador!$V$18:$W$29,2,FALSE)/30),0) -> 00:00:00 | D154: 0 | E154: =+IF(Simulador!$G$26>='Cronograma Referencial'!B154,'Cronograma Referencial'!E153+VLOOKUP(Simulador!$G$27,Simulador!$V$18:$W$29,2,FALSE),0) -> 00:00:00 | F154: 0 | H154: 151 | I154: 00:00:00 | J154: =+IFERROR(IF(VLOOKUP(I154,'BD Dias No utiles'!$B$9:$H$4077,7,FALSE)="X",IF(VLOOKUP(I154+1,'BD Dias No utiles'!$B$9:$H$4077,7,FALSE)="X",IF(VLOOKUP(I154+2,'BD Dias No utiles'!$B$9:$H$4077,7,FALSE)="X",I154+3,I154+2),I154+1),I154),0) -> 00:00:00 | K154: 0
B155: 152 | C155: =+IF(Simulador!$G$26>='Cronograma Referencial'!B155,EDATE(C154,(B155-B154)*VLOOKUP(Simulador!$G$27,Simulador!$V$18:$W$29,2,FALSE)/30),0) -> 00:00:00 | D155: 0 | E155: =+IF(Simulador!$G$26>='Cronograma Referencial'!B155,'Cronograma Referencial'!E154+VLOOKUP(Simulador!$G$27,Simulador!$V$18:$W$29,2,FALSE),0) -> 00:00:00 | F155: 0 | H155: 152 | I155: 00:00:00 | J155: =+IFERROR(IF(VLOOKUP(I155,'BD Dias No utiles'!$B$9:$H$4077,7,FALSE)="X",IF(VLOOKUP(I155+1,'BD Dias No utiles'!$B$9:$H$4077,7,FALSE)="X",IF(VLOOKUP(I155+2,'BD Dias No utiles'!$B$9:$H$4077,7,FALSE)="X",I155+3,I155+2),I155+1),I155),0) -> 00:00:00 | K155: 0
B156: 153 | C156: =+IF(Simulador!$G$26>='Cronograma Referencial'!B156,EDATE(C155,(B156-B155)*VLOOKUP(Simulador!$G$27,Simulador!$V$18:$W$29,2,FALSE)/30),0) -> 00:00:00 | D156: 0 | E156: =+IF(Simulador!$G$26>='Cronograma Referencial'!B156,'Cronograma Referencial'!E155+VLOOKUP(Simulador!$G$27,Simulador!$V$18:$W$29,2,FALSE),0) -> 00:00:00 | F156: 0 | H156: 153 | I156: 00:00:00 | J156: =+IFERROR(IF(VLOOKUP(I156,'BD Dias No utiles'!$B$9:$H$4077,7,FALSE)="X",IF(VLOOKUP(I156+1,'BD Dias No utiles'!$B$9:$H$4077,7,FALSE)="X",IF(VLOOKUP(I156+2,'BD Dias No utiles'!$B$9:$H$4077,7,FALSE)="X",I156+3,I156+2),I156+1),I156),0) -> 00:00:00 | K156: 0
B157: 154 | C157: =+IF(Simulador!$G$26>='Cronograma Referencial'!B157,EDATE(C156,(B157-B156)*VLOOKUP(Simulador!$G$27,Simulador!$V$18:$W$29,2,FALSE)/30),0) -> 00:00:00 | D157: 0 | E157: =+IF(Simulador!$G$26>='Cronograma Referencial'!B157,'Cronograma Referencial'!E156+VLOOKUP(Simulador!$G$27,Simulador!$V$18:$W$29,2,FALSE),0) -> 00:00:00 | F157: 0 | H157: 154 | I157: 00:00:00 | J157: =+IFERROR(IF(VLOOKUP(I157,'BD Dias No utiles'!$B$9:$H$4077,7,FALSE)="X",IF(VLOOKUP(I157+1,'BD Dias No utiles'!$B$9:$H$4077,7,FALSE)="X",IF(VLOOKUP(I157+2,'BD Dias No utiles'!$B$9:$H$4077,7,FALSE)="X",I157+3,I157+2),I157+1),I157),0) -> 00:00:00 | K157: 0
B158: 155 | C158: =+IF(Simulador!$G$26>='Cronograma Referencial'!B158,EDATE(C157,(B158-B157)*VLOOKUP(Simulador!$G$27,Simulador!$V$18:$W$29,2,FALSE)/30),0) -> 00:00:00 | D158: 0 | E158: =+IF(Simulador!$G$26>='Cronograma Referencial'!B158,'Cronograma Referencial'!E157+VLOOKUP(Simulador!$G$27,Simulador!$V$18:$W$29,2,FALSE),0) -> 00:00:00 | F158: 0 | H158: 155 | I158: 00:00:00 | J158: =+IFERROR(IF(VLOOKUP(I158,'BD Dias No utiles'!$B$9:$H$4077,7,FALSE)="X",IF(VLOOKUP(I158+1,'BD Dias No utiles'!$B$9:$H$4077,7,FALSE)="X",IF(VLOOKUP(I158+2,'BD Dias No utiles'!$B$9:$H$4077,7,FALSE)="X",I158+3,I158+2),I158+1),I158),0) -> 00:00:00 | K158: 0
B159: 156 | C159: =+IF(Simulador!$G$26>='Cronograma Referencial'!B159,EDATE(C158,(B159-B158)*VLOOKUP(Simulador!$G$27,Simulador!$V$18:$W$29,2,FALSE)/30),0) -> 00:00:00 | D159: 0 | E159: =+IF(Simulador!$G$26>='Cronograma Referencial'!B159,'Cronograma Referencial'!E158+VLOOKUP(Simulador!$G$27,Simulador!$V$18:$W$29,2,FALSE),0) -> 00:00:00 | F159: 0 | H159: 156 | I159: 00:00:00 | J159: =+IFERROR(IF(VLOOKUP(I159,'BD Dias No utiles'!$B$9:$H$4077,7,FALSE)="X",IF(VLOOKUP(I159+1,'BD Dias No utiles'!$B$9:$H$4077,7,FALSE)="X",IF(VLOOKUP(I159+2,'BD Dias No utiles'!$B$9:$H$4077,7,FALSE)="X",I159+3,I159+2),I159+1),I159),0) -> 00:00:00 | K159: 0
B160: 157 | C160: =+IF(Simulador!$G$26>='Cronograma Referencial'!B160,EDATE(C159,(B160-B159)*VLOOKUP(Simulador!$G$27,Simulador!$V$18:$W$29,2,FALSE)/30),0) -> 00:00:00 | D160: 0 | E160: =+IF(Simulador!$G$26>='Cronograma Referencial'!B160,'Cronograma Referencial'!E159+VLOOKUP(Simulador!$G$27,Simulador!$V$18:$W$29,2,FALSE),0) -> 00:00:00 | F160: 0 | H160: 157 | I160: 00:00:00 | J160: =+IFERROR(IF(VLOOKUP(I160,'BD Dias No utiles'!$B$9:$H$4077,7,FALSE)="X",IF(VLOOKUP(I160+1,'BD Dias No utiles'!$B$9:$H$4077,7,FALSE)="X",IF(VLOOKUP(I160+2,'BD Dias No utiles'!$B$9:$H$4077,7,FALSE)="X",I160+3,I160+2),I160+1),I160),0) -> 00:00:00 | K160: 0
B161: 158 | C161: =+IF(Simulador!$G$26>='Cronograma Referencial'!B161,EDATE(C160,(B161-B160)*VLOOKUP(Simulador!$G$27,Simulador!$V$18:$W$29,2,FALSE)/30),0) -> 00:00:00 | D161: 0 | E161: =+IF(Simulador!$G$26>='Cronograma Referencial'!B161,'Cronograma Referencial'!E160+VLOOKUP(Simulador!$G$27,Simulador!$V$18:$W$29,2,FALSE),0) -> 00:00:00 | F161: 0 | H161: 158 | I161: 00:00:00 | J161: =+IFERROR(IF(VLOOKUP(I161,'BD Dias No utiles'!$B$9:$H$4077,7,FALSE)="X",IF(VLOOKUP(I161+1,'BD Dias No utiles'!$B$9:$H$4077,7,FALSE)="X",IF(VLOOKUP(I161+2,'BD Dias No utiles'!$B$9:$H$4077,7,FALSE)="X",I161+3,I161+2),I161+1),I161),0) -> 00:00:00 | K161: 0
B162: 159 | C162: =+IF(Simulador!$G$26>='Cronograma Referencial'!B162,EDATE(C161,(B162-B161)*VLOOKUP(Simulador!$G$27,Simulador!$V$18:$W$29,2,FALSE)/30),0) -> 00:00:00 | D162: 0 | E162: =+IF(Simulador!$G$26>='Cronograma Referencial'!B162,'Cronograma Referencial'!E161+VLOOKUP(Simulador!$G$27,Simulador!$V$18:$W$29,2,FALSE),0) -> 00:00:00 | F162: 0 | H162: 159 | I162: 00:00:00 | J162: =+IFERROR(IF(VLOOKUP(I162,'BD Dias No utiles'!$B$9:$H$4077,7,FALSE)="X",IF(VLOOKUP(I162+1,'BD Dias No utiles'!$B$9:$H$4077,7,FALSE)="X",IF(VLOOKUP(I162+2,'BD Dias No utiles'!$B$9:$H$4077,7,FALSE)="X",I162+3,I162+2),I162+1),I162),0) -> 00:00:00 | K162: 0
B163: 160 | C163: =+IF(Simulador!$G$26>='Cronograma Referencial'!B163,EDATE(C162,(B163-B162)*VLOOKUP(Simulador!$G$27,Simulador!$V$18:$W$29,2,FALSE)/30),0) -> 00:00:00 | D163: 0 | E163: =+IF(Simulador!$G$26>='Cronograma Referencial'!B163,'Cronograma Referencial'!E162+VLOOKUP(Simulador!$G$27,Simulador!$V$18:$W$29,2,FALSE),0) -> 00:00:00 | F163: 0 | H163: 160 | I163: 00:00:00 | J163: =+IFERROR(IF(VLOOKUP(I163,'BD Dias No utiles'!$B$9:$H$4077,7,FALSE)="X",IF(VLOOKUP(I163+1,'BD Dias No utiles'!$B$9:$H$4077,7,FALSE)="X",IF(VLOOKUP(I163+2,'BD Dias No utiles'!$B$9:$H$4077,7,FALSE)="X",I163+3,I163+2),I163+1),I163),0) -> 00:00:00 | K163: 0
B164: 161 | C164: =+IF(Simulador!$G$26>='Cronograma Referencial'!B164,EDATE(C163,(B164-B163)*VLOOKUP(Simulador!$G$27,Simulador!$V$18:$W$29,2,FALSE)/30),0) -> 00:00:00 | D164: 0 | E164: =+IF(Simulador!$G$26>='Cronograma Referencial'!B164,'Cronograma Referencial'!E163+VLOOKUP(Simulador!$G$27,Simulador!$V$18:$W$29,2,FALSE),0) -> 00:00:00 | F164: 0 | H164: 161 | I164: 00:00:00 | J164: =+IFERROR(IF(VLOOKUP(I164,'BD Dias No utiles'!$B$9:$H$4077,7,FALSE)="X",IF(VLOOKUP(I164+1,'BD Dias No utiles'!$B$9:$H$4077,7,FALSE)="X",IF(VLOOKUP(I164+2,'BD Dias No utiles'!$B$9:$H$4077,7,FALSE)="X",I164+3,I164+2),I164+1),I164),0) -> 00:00:00 | K164: 0
B165: 162 | C165: =+IF(Simulador!$G$26>='Cronograma Referencial'!B165,EDATE(C164,(B165-B164)*VLOOKUP(Simulador!$G$27,Simulador!$V$18:$W$29,2,FALSE)/30),0) -> 00:00:00 | D165: 0 | E165: =+IF(Simulador!$G$26>='Cronograma Referencial'!B165,'Cronograma Referencial'!E164+VLOOKUP(Simulador!$G$27,Simulador!$V$18:$W$29,2,FALSE),0) -> 00:00:00 | F165: 0 | H165: 162 | I165: 00:00:00 | J165: =+IFERROR(IF(VLOOKUP(I165,'BD Dias No utiles'!$B$9:$H$4077,7,FALSE)="X",IF(VLOOKUP(I165+1,'BD Dias No utiles'!$B$9:$H$4077,7,FALSE)="X",IF(VLOOKUP(I165+2,'BD Dias No utiles'!$B$9:$H$4077,7,FALSE)="X",I165+3,I165+2),I165+1),I165),0) -> 00:00:00 | K165: 0
B166: 163 | C166: =+IF(Simulador!$G$26>='Cronograma Referencial'!B166,EDATE(C165,(B166-B165)*VLOOKUP(Simulador!$G$27,Simulador!$V$18:$W$29,2,FALSE)/30),0) -> 00:00:00 | D166: 0 | E166: =+IF(Simulador!$G$26>='Cronograma Referencial'!B166,'Cronograma Referencial'!E165+VLOOKUP(Simulador!$G$27,Simulador!$V$18:$W$29,2,FALSE),0) -> 00:00:00 | F166: 0 | H166: 163 | I166: 00:00:00 | J166: =+IFERROR(IF(VLOOKUP(I166,'BD Dias No utiles'!$B$9:$H$4077,7,FALSE)="X",IF(VLOOKUP(I166+1,'BD Dias No utiles'!$B$9:$H$4077,7,FALSE)="X",IF(VLOOKUP(I166+2,'BD Dias No utiles'!$B$9:$H$4077,7,FALSE)="X",I166+3,I166+2),I166+1),I166),0) -> 00:00:00 | K166: 0
B167: 164 | C167: =+IF(Simulador!$G$26>='Cronograma Referencial'!B167,EDATE(C166,(B167-B166)*VLOOKUP(Simulador!$G$27,Simulador!$V$18:$W$29,2,FALSE)/30),0) -> 00:00:00 | D167: 0 | E167: =+IF(Simulador!$G$26>='Cronograma Referencial'!B167,'Cronograma Referencial'!E166+VLOOKUP(Simulador!$G$27,Simulador!$V$18:$W$29,2,FALSE),0) -> 00:00:00 | F167: 0 | H167: 164 | I167: 00:00:00 | J167: =+IFERROR(IF(VLOOKUP(I167,'BD Dias No utiles'!$B$9:$H$4077,7,FALSE)="X",IF(VLOOKUP(I167+1,'BD Dias No utiles'!$B$9:$H$4077,7,FALSE)="X",IF(VLOOKUP(I167+2,'BD Dias No utiles'!$B$9:$H$4077,7,FALSE)="X",I167+3,I167+2),I167+1),I167),0) -> 00:00:00 | K167: 0
B168: 165 | C168: =+IF(Simulador!$G$26>='Cronograma Referencial'!B168,EDATE(C167,(B168-B167)*VLOOKUP(Simulador!$G$27,Simulador!$V$18:$W$29,2,FALSE)/30),0) -> 00:00:00 | D168: 0 | E168: =+IF(Simulador!$G$26>='Cronograma Referencial'!B168,'Cronograma Referencial'!E167+VLOOKUP(Simulador!$G$27,Simulador!$V$18:$W$29,2,FALSE),0) -> 00:00:00 | F168: 0 | H168: 165 | I168: 00:00:00 | J168: =+IFERROR(IF(VLOOKUP(I168,'BD Dias No utiles'!$B$9:$H$4077,7,FALSE)="X",IF(VLOOKUP(I168+1,'BD Dias No utiles'!$B$9:$H$4077,7,FALSE)="X",IF(VLOOKUP(I168+2,'BD Dias No utiles'!$B$9:$H$4077,7,FALSE)="X",I168+3,I168+2),I168+1),I168),0) -> 00:00:00 | K168: 0
B169: 166 | C169: =+IF(Simulador!$G$26>='Cronograma Referencial'!B169,EDATE(C168,(B169-B168)*VLOOKUP(Simulador!$G$27,Simulador!$V$18:$W$29,2,FALSE)/30),0) -> 00:00:00 | D169: 0 | E169: =+IF(Simulador!$G$26>='Cronograma Referencial'!B169,'Cronograma Referencial'!E168+VLOOKUP(Simulador!$G$27,Simulador!$V$18:$W$29,2,FALSE),0) -> 00:00:00 | F169: 0 | H169: 166 | I169: 00:00:00 | J169: =+IFERROR(IF(VLOOKUP(I169,'BD Dias No utiles'!$B$9:$H$4077,7,FALSE)="X",IF(VLOOKUP(I169+1,'BD Dias No utiles'!$B$9:$H$4077,7,FALSE)="X",IF(VLOOKUP(I169+2,'BD Dias No utiles'!$B$9:$H$4077,7,FALSE)="X",I169+3,I169+2),I169+1),I169),0) -> 00:00:00 | K169: 0
B170: 167 | C170: =+IF(Simulador!$G$26>='Cronograma Referencial'!B170,EDATE(C169,(B170-B169)*VLOOKUP(Simulador!$G$27,Simulador!$V$18:$W$29,2,FALSE)/30),0) -> 00:00:00 | D170: 0 | E170: =+IF(Simulador!$G$26>='Cronograma Referencial'!B170,'Cronograma Referencial'!E169+VLOOKUP(Simulador!$G$27,Simulador!$V$18:$W$29,2,FALSE),0) -> 00:00:00 | F170: 0 | H170: 167 | I170: 00:00:00 | J170: =+IFERROR(IF(VLOOKUP(I170,'BD Dias No utiles'!$B$9:$H$4077,7,FALSE)="X",IF(VLOOKUP(I170+1,'BD Dias No utiles'!$B$9:$H$4077,7,FALSE)="X",IF(VLOOKUP(I170+2,'BD Dias No utiles'!$B$9:$H$4077,7,FALSE)="X",I170+3,I170+2),I170+1),I170),0) -> 00:00:00 | K170: 0
B171: 168 | C171: =+IF(Simulador!$G$26>='Cronograma Referencial'!B171,EDATE(C170,(B171-B170)*VLOOKUP(Simulador!$G$27,Simulador!$V$18:$W$29,2,FALSE)/30),0) -> 00:00:00 | D171: 0 | E171: =+IF(Simulador!$G$26>='Cronograma Referencial'!B171,'Cronograma Referencial'!E170+VLOOKUP(Simulador!$G$27,Simulador!$V$18:$W$29,2,FALSE),0) -> 00:00:00 | F171: 0 | H171: 168 | I171: 00:00:00 | J171: =+IFERROR(IF(VLOOKUP(I171,'BD Dias No utiles'!$B$9:$H$4077,7,FALSE)="X",IF(VLOOKUP(I171+1,'BD Dias No utiles'!$B$9:$H$4077,7,FALSE)="X",IF(VLOOKUP(I171+2,'BD Dias No utiles'!$B$9:$H$4077,7,FALSE)="X",I171+3,I171+2),I171+1),I171),0) -> 00:00:00 | K171: 0
B172: 169 | C172: =+IF(Simulador!$G$26>='Cronograma Referencial'!B172,EDATE(C171,(B172-B171)*VLOOKUP(Simulador!$G$27,Simulador!$V$18:$W$29,2,FALSE)/30),0) -> 00:00:00 | D172: 0 | E172: =+IF(Simulador!$G$26>='Cronograma Referencial'!B172,'Cronograma Referencial'!E171+VLOOKUP(Simulador!$G$27,Simulador!$V$18:$W$29,2,FALSE),0) -> 00:00:00 | F172: 0 | H172: 169 | I172: 00:00:00 | J172: =+IFERROR(IF(VLOOKUP(I172,'BD Dias No utiles'!$B$9:$H$4077,7,FALSE)="X",IF(VLOOKUP(I172+1,'BD Dias No utiles'!$B$9:$H$4077,7,FALSE)="X",IF(VLOOKUP(I172+2,'BD Dias No utiles'!$B$9:$H$4077,7,FALSE)="X",I172+3,I172+2),I172+1),I172),0) -> 00:00:00 | K172: 0
B173: 170 | C173: =+IF(Simulador!$G$26>='Cronograma Referencial'!B173,EDATE(C172,(B173-B172)*VLOOKUP(Simulador!$G$27,Simulador!$V$18:$W$29,2,FALSE)/30),0) -> 00:00:00 | D173: 0 | E173: =+IF(Simulador!$G$26>='Cronograma Referencial'!B173,'Cronograma Referencial'!E172+VLOOKUP(Simulador!$G$27,Simulador!$V$18:$W$29,2,FALSE),0) -> 00:00:00 | F173: 0 | H173: 170 | I173: 00:00:00 | J173: =+IFERROR(IF(VLOOKUP(I173,'BD Dias No utiles'!$B$9:$H$4077,7,FALSE)="X",IF(VLOOKUP(I173+1,'BD Dias No utiles'!$B$9:$H$4077,7,FALSE)="X",IF(VLOOKUP(I173+2,'BD Dias No utiles'!$B$9:$H$4077,7,FALSE)="X",I173+3,I173+2),I173+1),I173),0) -> 00:00:00 | K173: 0
B174: 171 | C174: =+IF(Simulador!$G$26>='Cronograma Referencial'!B174,EDATE(C173,(B174-B173)*VLOOKUP(Simulador!$G$27,Simulador!$V$18:$W$29,2,FALSE)/30),0) -> 00:00:00 | D174: 0 | E174: =+IF(Simulador!$G$26>='Cronograma Referencial'!B174,'Cronograma Referencial'!E173+VLOOKUP(Simulador!$G$27,Simulador!$V$18:$W$29,2,FALSE),0) -> 00:00:00 | F174: 0 | H174: 171 | I174: 00:00:00 | J174: =+IFERROR(IF(VLOOKUP(I174,'BD Dias No utiles'!$B$9:$H$4077,7,FALSE)="X",IF(VLOOKUP(I174+1,'BD Dias No utiles'!$B$9:$H$4077,7,FALSE)="X",IF(VLOOKUP(I174+2,'BD Dias No utiles'!$B$9:$H$4077,7,FALSE)="X",I174+3,I174+2),I174+1),I174),0) -> 00:00:00 | K174: 0
B175: 172 | C175: =+IF(Simulador!$G$26>='Cronograma Referencial'!B175,EDATE(C174,(B175-B174)*VLOOKUP(Simulador!$G$27,Simulador!$V$18:$W$29,2,FALSE)/30),0) -> 00:00:00 | D175: 0 | E175: =+IF(Simulador!$G$26>='Cronograma Referencial'!B175,'Cronograma Referencial'!E174+VLOOKUP(Simulador!$G$27,Simulador!$V$18:$W$29,2,FALSE),0) -> 00:00:00 | F175: 0 | H175: 172 | I175: 00:00:00 | J175: =+IFERROR(IF(VLOOKUP(I175,'BD Dias No utiles'!$B$9:$H$4077,7,FALSE)="X",IF(VLOOKUP(I175+1,'BD Dias No utiles'!$B$9:$H$4077,7,FALSE)="X",IF(VLOOKUP(I175+2,'BD Dias No utiles'!$B$9:$H$4077,7,FALSE)="X",I175+3,I175+2),I175+1),I175),0) -> 00:00:00 | K175: 0
B176: 173 | C176: =+IF(Simulador!$G$26>='Cronograma Referencial'!B176,EDATE(C175,(B176-B175)*VLOOKUP(Simulador!$G$27,Simulador!$V$18:$W$29,2,FALSE)/30),0) -> 00:00:00 | D176: 0 | E176: =+IF(Simulador!$G$26>='Cronograma Referencial'!B176,'Cronograma Referencial'!E175+VLOOKUP(Simulador!$G$27,Simulador!$V$18:$W$29,2,FALSE),0) -> 00:00:00 | F176: 0 | H176: 173 | I176: 00:00:00 | J176: =+IFERROR(IF(VLOOKUP(I176,'BD Dias No utiles'!$B$9:$H$4077,7,FALSE)="X",IF(VLOOKUP(I176+1,'BD Dias No utiles'!$B$9:$H$4077,7,FALSE)="X",IF(VLOOKUP(I176+2,'BD Dias No utiles'!$B$9:$H$4077,7,FALSE)="X",I176+3,I176+2),I176+1),I176),0) -> 00:00:00 | K176: 0
B177: 174 | C177: =+IF(Simulador!$G$26>='Cronograma Referencial'!B177,EDATE(C176,(B177-B176)*VLOOKUP(Simulador!$G$27,Simulador!$V$18:$W$29,2,FALSE)/30),0) -> 00:00:00 | D177: 0 | E177: =+IF(Simulador!$G$26>='Cronograma Referencial'!B177,'Cronograma Referencial'!E176+VLOOKUP(Simulador!$G$27,Simulador!$V$18:$W$29,2,FALSE),0) -> 00:00:00 | F177: 0 | H177: 174 | I177: 00:00:00 | J177: =+IFERROR(IF(VLOOKUP(I177,'BD Dias No utiles'!$B$9:$H$4077,7,FALSE)="X",IF(VLOOKUP(I177+1,'BD Dias No utiles'!$B$9:$H$4077,7,FALSE)="X",IF(VLOOKUP(I177+2,'BD Dias No utiles'!$B$9:$H$4077,7,FALSE)="X",I177+3,I177+2),I177+1),I177),0) -> 00:00:00 | K177: 0
B178: 175 | C178: =+IF(Simulador!$G$26>='Cronograma Referencial'!B178,EDATE(C177,(B178-B177)*VLOOKUP(Simulador!$G$27,Simulador!$V$18:$W$29,2,FALSE)/30),0) -> 00:00:00 | D178: 0 | E178: =+IF(Simulador!$G$26>='Cronograma Referencial'!B178,'Cronograma Referencial'!E177+VLOOKUP(Simulador!$G$27,Simulador!$V$18:$W$29,2,FALSE),0) -> 00:00:00 | F178: 0 | H178: 175 | I178: 00:00:00 | J178: =+IFERROR(IF(VLOOKUP(I178,'BD Dias No utiles'!$B$9:$H$4077,7,FALSE)="X",IF(VLOOKUP(I178+1,'BD Dias No utiles'!$B$9:$H$4077,7,FALSE)="X",IF(VLOOKUP(I178+2,'BD Dias No utiles'!$B$9:$H$4077,7,FALSE)="X",I178+3,I178+2),I178+1),I178),0) -> 00:00:00 | K178: 0
B179: 176 | C179: =+IF(Simulador!$G$26>='Cronograma Referencial'!B179,EDATE(C178,(B179-B178)*VLOOKUP(Simulador!$G$27,Simulador!$V$18:$W$29,2,FALSE)/30),0) -> 00:00:00 | D179: 0 | E179: =+IF(Simulador!$G$26>='Cronograma Referencial'!B179,'Cronograma Referencial'!E178+VLOOKUP(Simulador!$G$27,Simulador!$V$18:$W$29,2,FALSE),0) -> 00:00:00 | F179: 0 | H179: 176 | I179: 00:00:00 | J179: =+IFERROR(IF(VLOOKUP(I179,'BD Dias No utiles'!$B$9:$H$4077,7,FALSE)="X",IF(VLOOKUP(I179+1,'BD Dias No utiles'!$B$9:$H$4077,7,FALSE)="X",IF(VLOOKUP(I179+2,'BD Dias No utiles'!$B$9:$H$4077,7,FALSE)="X",I179+3,I179+2),I179+1),I179),0) -> 00:00:00 | K179: 0
B180: 177 | C180: =+IF(Simulador!$G$26>='Cronograma Referencial'!B180,EDATE(C179,(B180-B179)*VLOOKUP(Simulador!$G$27,Simulador!$V$18:$W$29,2,FALSE)/30),0) -> 00:00:00 | D180: 0 | E180: =+IF(Simulador!$G$26>='Cronograma Referencial'!B180,'Cronograma Referencial'!E179+VLOOKUP(Simulador!$G$27,Simulador!$V$18:$W$29,2,FALSE),0) -> 00:00:00 | F180: 0 | H180: 177 | I180: 00:00:00 | J180: =+IFERROR(IF(VLOOKUP(I180,'BD Dias No utiles'!$B$9:$H$4077,7,FALSE)="X",IF(VLOOKUP(I180+1,'BD Dias No utiles'!$B$9:$H$4077,7,FALSE)="X",IF(VLOOKUP(I180+2,'BD Dias No utiles'!$B$9:$H$4077,7,FALSE)="X",I180+3,I180+2),I180+1),I180),0) -> 00:00:00 | K180: 0
B181: 178 | C181: =+IF(Simulador!$G$26>='Cronograma Referencial'!B181,EDATE(C180,(B181-B180)*VLOOKUP(Simulador!$G$27,Simulador!$V$18:$W$29,2,FALSE)/30),0) -> 00:00:00 | D181: 0 | E181: =+IF(Simulador!$G$26>='Cronograma Referencial'!B181,'Cronograma Referencial'!E180+VLOOKUP(Simulador!$G$27,Simulador!$V$18:$W$29,2,FALSE),0) -> 00:00:00 | F181: 0 | H181: 178 | I181: 00:00:00 | J181: =+IFERROR(IF(VLOOKUP(I181,'BD Dias No utiles'!$B$9:$H$4077,7,FALSE)="X",IF(VLOOKUP(I181+1,'BD Dias No utiles'!$B$9:$H$4077,7,FALSE)="X",IF(VLOOKUP(I181+2,'BD Dias No utiles'!$B$9:$H$4077,7,FALSE)="X",I181+3,I181+2),I181+1),I181),0) -> 00:00:00 | K181: 0
B182: 179 | C182: =+IF(Simulador!$G$26>='Cronograma Referencial'!B182,EDATE(C181,(B182-B181)*VLOOKUP(Simulador!$G$27,Simulador!$V$18:$W$29,2,FALSE)/30),0) -> 00:00:00 | D182: 0 | E182: =+IF(Simulador!$G$26>='Cronograma Referencial'!B182,'Cronograma Referencial'!E181+VLOOKUP(Simulador!$G$27,Simulador!$V$18:$W$29,2,FALSE),0) -> 00:00:00 | F182: 0 | H182: 179 | I182: 00:00:00 | J182: =+IFERROR(IF(VLOOKUP(I182,'BD Dias No utiles'!$B$9:$H$4077,7,FALSE)="X",IF(VLOOKUP(I182+1,'BD Dias No utiles'!$B$9:$H$4077,7,FALSE)="X",IF(VLOOKUP(I182+2,'BD Dias No utiles'!$B$9:$H$4077,7,FALSE)="X",I182+3,I182+2),I182+1),I182),0) -> 00:00:00 | K182: 0
B183: 180 | C183: =+IF(Simulador!$G$26>='Cronograma Referencial'!B183,EDATE(C182,(B183-B182)*VLOOKUP(Simulador!$G$27,Simulador!$V$18:$W$29,2,FALSE)/30),0) -> 00:00:00 | D183: 0 | E183: =+IF(Simulador!$G$26>='Cronograma Referencial'!B183,'Cronograma Referencial'!E182+VLOOKUP(Simulador!$G$27,Simulador!$V$18:$W$29,2,FALSE),0) -> 00:00:00 | F183: 0 | H183: 180 | I183: 00:00:00 | J183: =+IFERROR(IF(VLOOKUP(I183,'BD Dias No utiles'!$B$9:$H$4077,7,FALSE)="X",IF(VLOOKUP(I183+1,'BD Dias No utiles'!$B$9:$H$4077,7,FALSE)="X",IF(VLOOKUP(I183+2,'BD Dias No utiles'!$B$9:$H$4077,7,FALSE)="X",I183+3,I183+2),I183+1),I183),0) -> 00:00:00 | K183: 0
B184: 181 | C184: =+IF(Simulador!$G$26>='Cronograma Referencial'!B184,EDATE(C183,(B184-B183)*VLOOKUP(Simulador!$G$27,Simulador!$V$18:$W$29,2,FALSE)/30),0) -> 00:00:00 | D184: 0 | E184: =+IF(Simulador!$G$26>='Cronograma Referencial'!B184,'Cronograma Referencial'!E183+VLOOKUP(Simulador!$G$27,Simulador!$V$18:$W$29,2,FALSE),0) -> 00:00:00 | F184: 0 | H184: 181 | I184: 00:00:00 | J184: =+IFERROR(IF(VLOOKUP(I184,'BD Dias No utiles'!$B$9:$H$4077,7,FALSE)="X",IF(VLOOKUP(I184+1,'BD Dias No utiles'!$B$9:$H$4077,7,FALSE)="X",IF(VLOOKUP(I184+2,'BD Dias No utiles'!$B$9:$H$4077,7,FALSE)="X",I184+3,I184+2),I184+1),I184),0) -> 00:00:00 | K184: 0
B185: 182 | C185: =+IF(Simulador!$G$26>='Cronograma Referencial'!B185,EDATE(C184,(B185-B184)*VLOOKUP(Simulador!$G$27,Simulador!$V$18:$W$29,2,FALSE)/30),0) -> 00:00:00 | D185: 0 | E185: =+IF(Simulador!$G$26>='Cronograma Referencial'!B185,'Cronograma Referencial'!E184+VLOOKUP(Simulador!$G$27,Simulador!$V$18:$W$29,2,FALSE),0) -> 00:00:00 | F185: 0 | H185: 182 | I185: 00:00:00 | J185: =+IFERROR(IF(VLOOKUP(I185,'BD Dias No utiles'!$B$9:$H$4077,7,FALSE)="X",IF(VLOOKUP(I185+1,'BD Dias No utiles'!$B$9:$H$4077,7,FALSE)="X",IF(VLOOKUP(I185+2,'BD Dias No utiles'!$B$9:$H$4077,7,FALSE)="X",I185+3,I185+2),I185+1),I185),0) -> 00:00:00 | K185: 0
B186: 183 | C186: =+IF(Simulador!$G$26>='Cronograma Referencial'!B186,EDATE(C185,(B186-B185)*VLOOKUP(Simulador!$G$27,Simulador!$V$18:$W$29,2,FALSE)/30),0) -> 00:00:00 | D186: 0 | E186: =+IF(Simulador!$G$26>='Cronograma Referencial'!B186,'Cronograma Referencial'!E185+VLOOKUP(Simulador!$G$27,Simulador!$V$18:$W$29,2,FALSE),0) -> 00:00:00 | F186: 0 | H186: 183 | I186: 00:00:00 | J186: =+IFERROR(IF(VLOOKUP(I186,'BD Dias No utiles'!$B$9:$H$4077,7,FALSE)="X",IF(VLOOKUP(I186+1,'BD Dias No utiles'!$B$9:$H$4077,7,FALSE)="X",IF(VLOOKUP(I186+2,'BD Dias No utiles'!$B$9:$H$4077,7,FALSE)="X",I186+3,I186+2),I186+1),I186),0) -> 00:00:00 | K186: 0
B187: 184 | C187: =+IF(Simulador!$G$26>='Cronograma Referencial'!B187,EDATE(C186,(B187-B186)*VLOOKUP(Simulador!$G$27,Simulador!$V$18:$W$29,2,FALSE)/30),0) -> 00:00:00 | D187: 0 | E187: =+IF(Simulador!$G$26>='Cronograma Referencial'!B187,'Cronograma Referencial'!E186+VLOOKUP(Simulador!$G$27,Simulador!$V$18:$W$29,2,FALSE),0) -> 00:00:00 | F187: 0 | H187: 184 | I187: 00:00:00 | J187: =+IFERROR(IF(VLOOKUP(I187,'BD Dias No utiles'!$B$9:$H$4077,7,FALSE)="X",IF(VLOOKUP(I187+1,'BD Dias No utiles'!$B$9:$H$4077,7,FALSE)="X",IF(VLOOKUP(I187+2,'BD Dias No utiles'!$B$9:$H$4077,7,FALSE)="X",I187+3,I187+2),I187+1),I187),0) -> 00:00:00 | K187: 0
B188: 185 | C188: =+IF(Simulador!$G$26>='Cronograma Referencial'!B188,EDATE(C187,(B188-B187)*VLOOKUP(Simulador!$G$27,Simulador!$V$18:$W$29,2,FALSE)/30),0) -> 00:00:00 | D188: 0 | E188: =+IF(Simulador!$G$26>='Cronograma Referencial'!B188,'Cronograma Referencial'!E187+VLOOKUP(Simulador!$G$27,Simulador!$V$18:$W$29,2,FALSE),0) -> 00:00:00 | F188: 0 | H188: 185 | I188: 00:00:00 | J188: =+IFERROR(IF(VLOOKUP(I188,'BD Dias No utiles'!$B$9:$H$4077,7,FALSE)="X",IF(VLOOKUP(I188+1,'BD Dias No utiles'!$B$9:$H$4077,7,FALSE)="X",IF(VLOOKUP(I188+2,'BD Dias No utiles'!$B$9:$H$4077,7,FALSE)="X",I188+3,I188+2),I188+1),I188),0) -> 00:00:00 | K188: 0
B189: 186 | C189: =+IF(Simulador!$G$26>='Cronograma Referencial'!B189,EDATE(C188,(B189-B188)*VLOOKUP(Simulador!$G$27,Simulador!$V$18:$W$29,2,FALSE)/30),0) -> 00:00:00 | D189: 0 | E189: =+IF(Simulador!$G$26>='Cronograma Referencial'!B189,'Cronograma Referencial'!E188+VLOOKUP(Simulador!$G$27,Simulador!$V$18:$W$29,2,FALSE),0) -> 00:00:00 | F189: 0 | H189: 186 | I189: 00:00:00 | J189: =+IFERROR(IF(VLOOKUP(I189,'BD Dias No utiles'!$B$9:$H$4077,7,FALSE)="X",IF(VLOOKUP(I189+1,'BD Dias No utiles'!$B$9:$H$4077,7,FALSE)="X",IF(VLOOKUP(I189+2,'BD Dias No utiles'!$B$9:$H$4077,7,FALSE)="X",I189+3,I189+2),I189+1),I189),0) -> 00:00:00 | K189: 0
B190: 187 | C190: =+IF(Simulador!$G$26>='Cronograma Referencial'!B190,EDATE(C189,(B190-B189)*VLOOKUP(Simulador!$G$27,Simulador!$V$18:$W$29,2,FALSE)/30),0) -> 00:00:00 | D190: 0 | E190: =+IF(Simulador!$G$26>='Cronograma Referencial'!B190,'Cronograma Referencial'!E189+VLOOKUP(Simulador!$G$27,Simulador!$V$18:$W$29,2,FALSE),0) -> 00:00:00 | F190: 0 | H190: 187 | I190: 00:00:00 | J190: =+IFERROR(IF(VLOOKUP(I190,'BD Dias No utiles'!$B$9:$H$4077,7,FALSE)="X",IF(VLOOKUP(I190+1,'BD Dias No utiles'!$B$9:$H$4077,7,FALSE)="X",IF(VLOOKUP(I190+2,'BD Dias No utiles'!$B$9:$H$4077,7,FALSE)="X",I190+3,I190+2),I190+1),I190),0) -> 00:00:00 | K190: 0
B191: 188 | C191: =+IF(Simulador!$G$26>='Cronograma Referencial'!B191,EDATE(C190,(B191-B190)*VLOOKUP(Simulador!$G$27,Simulador!$V$18:$W$29,2,FALSE)/30),0) -> 00:00:00 | D191: 0 | E191: =+IF(Simulador!$G$26>='Cronograma Referencial'!B191,'Cronograma Referencial'!E190+VLOOKUP(Simulador!$G$27,Simulador!$V$18:$W$29,2,FALSE),0) -> 00:00:00 | F191: 0 | H191: 188 | I191: 00:00:00 | J191: =+IFERROR(IF(VLOOKUP(I191,'BD Dias No utiles'!$B$9:$H$4077,7,FALSE)="X",IF(VLOOKUP(I191+1,'BD Dias No utiles'!$B$9:$H$4077,7,FALSE)="X",IF(VLOOKUP(I191+2,'BD Dias No utiles'!$B$9:$H$4077,7,FALSE)="X",I191+3,I191+2),I191+1),I191),0) -> 00:00:00 | K191: 0
B192: 189 | C192: =+IF(Simulador!$G$26>='Cronograma Referencial'!B192,EDATE(C191,(B192-B191)*VLOOKUP(Simulador!$G$27,Simulador!$V$18:$W$29,2,FALSE)/30),0) -> 00:00:00 | D192: 0 | E192: =+IF(Simulador!$G$26>='Cronograma Referencial'!B192,'Cronograma Referencial'!E191+VLOOKUP(Simulador!$G$27,Simulador!$V$18:$W$29,2,FALSE),0) -> 00:00:00 | F192: 0 | H192: 189 | I192: 00:00:00 | J192: =+IFERROR(IF(VLOOKUP(I192,'BD Dias No utiles'!$B$9:$H$4077,7,FALSE)="X",IF(VLOOKUP(I192+1,'BD Dias No utiles'!$B$9:$H$4077,7,FALSE)="X",IF(VLOOKUP(I192+2,'BD Dias No utiles'!$B$9:$H$4077,7,FALSE)="X",I192+3,I192+2),I192+1),I192),0) -> 00:00:00 | K192: 0
B193: 190 | C193: =+IF(Simulador!$G$26>='Cronograma Referencial'!B193,EDATE(C192,(B193-B192)*VLOOKUP(Simulador!$G$27,Simulador!$V$18:$W$29,2,FALSE)/30),0) -> 00:00:00 | D193: 0 | E193: =+IF(Simulador!$G$26>='Cronograma Referencial'!B193,'Cronograma Referencial'!E192+VLOOKUP(Simulador!$G$27,Simulador!$V$18:$W$29,2,FALSE),0) -> 00:00:00 | F193: 0 | H193: 190 | I193: 00:00:00 | J193: =+IFERROR(IF(VLOOKUP(I193,'BD Dias No utiles'!$B$9:$H$4077,7,FALSE)="X",IF(VLOOKUP(I193+1,'BD Dias No utiles'!$B$9:$H$4077,7,FALSE)="X",IF(VLOOKUP(I193+2,'BD Dias No utiles'!$B$9:$H$4077,7,FALSE)="X",I193+3,I193+2),I193+1),I193),0) -> 00:00:00 | K193: 0
B194: 191 | C194: =+IF(Simulador!$G$26>='Cronograma Referencial'!B194,EDATE(C193,(B194-B193)*VLOOKUP(Simulador!$G$27,Simulador!$V$18:$W$29,2,FALSE)/30),0) -> 00:00:00 | D194: 0 | E194: =+IF(Simulador!$G$26>='Cronograma Referencial'!B194,'Cronograma Referencial'!E193+VLOOKUP(Simulador!$G$27,Simulador!$V$18:$W$29,2,FALSE),0) -> 00:00:00 | F194: 0 | H194: 191 | I194: 00:00:00 | J194: =+IFERROR(IF(VLOOKUP(I194,'BD Dias No utiles'!$B$9:$H$4077,7,FALSE)="X",IF(VLOOKUP(I194+1,'BD Dias No utiles'!$B$9:$H$4077,7,FALSE)="X",IF(VLOOKUP(I194+2,'BD Dias No utiles'!$B$9:$H$4077,7,FALSE)="X",I194+3,I194+2),I194+1),I194),0) -> 00:00:00 | K194: 0
B195: 192 | C195: =+IF(Simulador!$G$26>='Cronograma Referencial'!B195,EDATE(C194,(B195-B194)*VLOOKUP(Simulador!$G$27,Simulador!$V$18:$W$29,2,FALSE)/30),0) -> 00:00:00 | D195: 0 | E195: =+IF(Simulador!$G$26>='Cronograma Referencial'!B195,'Cronograma Referencial'!E194+VLOOKUP(Simulador!$G$27,Simulador!$V$18:$W$29,2,FALSE),0) -> 00:00:00 | F195: 0 | H195: 192 | I195: 00:00:00 | J195: =+IFERROR(IF(VLOOKUP(I195,'BD Dias No utiles'!$B$9:$H$4077,7,FALSE)="X",IF(VLOOKUP(I195+1,'BD Dias No utiles'!$B$9:$H$4077,7,FALSE)="X",IF(VLOOKUP(I195+2,'BD Dias No utiles'!$B$9:$H$4077,7,FALSE)="X",I195+3,I195+2),I195+1),I195),0) -> 00:00:00 | K195: 0
B196: 193 | C196: =+IF(Simulador!$G$26>='Cronograma Referencial'!B196,EDATE(C195,(B196-B195)*VLOOKUP(Simulador!$G$27,Simulador!$V$18:$W$29,2,FALSE)/30),0) -> 00:00:00 | D196: 0 | E196: =+IF(Simulador!$G$26>='Cronograma Referencial'!B196,'Cronograma Referencial'!E195+VLOOKUP(Simulador!$G$27,Simulador!$V$18:$W$29,2,FALSE),0) -> 00:00:00 | F196: 0 | H196: =+B196 -> 193 | I196: 00:00:00 | J196: =+IFERROR(IF(VLOOKUP(I196,'BD Dias No utiles'!$B$9:$H$4077,7,FALSE)="X",IF(VLOOKUP(I196+1,'BD Dias No utiles'!$B$9:$H$4077,7,FALSE)="X",IF(VLOOKUP(I196+2,'BD Dias No utiles'!$B$9:$H$4077,7,FALSE)="X",I196+3,I196+2),I196+1),I196),0) -> 00:00:00 | K196: 0
B197: 194 | C197: =+IF(Simulador!$G$26>='Cronograma Referencial'!B197,EDATE(C196,(B197-B196)*VLOOKUP(Simulador!$G$27,Simulador!$V$18:$W$29,2,FALSE)/30),0) -> 00:00:00 | D197: =+C197-C196 -> 0 | E197: =+IF(Simulador!$G$26>='Cronograma Referencial'!B197,'Cronograma Referencial'!E196+VLOOKUP(Simulador!$G$27,Simulador!$V$18:$W$29,2,FALSE),0) -> 00:00:00 | F197: 0 | H197: 194 | I197: =+HLOOKUP($I$2,$C$2:$E$418,H197+2) -> 00:00:00 | J197: =+IFERROR(IF(VLOOKUP(I197,'BD Dias No utiles'!$B$9:$H$4077,7,FALSE)="X",IF(VLOOKUP(I197+1,'BD Dias No utiles'!$B$9:$H$4077,7,FALSE)="X",IF(VLOOKUP(I197+2,'BD Dias No utiles'!$B$9:$H$4077,7,FALSE)="X",I197+3,I197+2),I197+1),I197),0) -> 00:00:00 | K197: =+I197-I196 -> 0
B198: =+B197+1 -> 195 | C198: =+IF(Simulador!$G$26>='Cronograma Referencial'!B198,EDATE(C197,(B198-B197)*VLOOKUP(Simulador!$G$27,Simulador!$V$18:$W$29,2,FALSE)/30),0) -> 00:00:00 | D198: 0 | E198: =+IF(Simulador!$G$26>='Cronograma Referencial'!B198,'Cronograma Referencial'!E197+VLOOKUP(Simulador!$G$27,Simulador!$V$18:$W$29,2,FALSE),0) -> 00:00:00 | F198: =+E198-E197 -> 0 | H198: 195 | I198: 00:00:00 | J198: =+IFERROR(IF(VLOOKUP(I198,'BD Dias No utiles'!$B$9:$H$4077,7,FALSE)="X",IF(VLOOKUP(I198+1,'BD Dias No utiles'!$B$9:$H$4077,7,FALSE)="X",IF(VLOOKUP(I198+2,'BD Dias No utiles'!$B$9:$H$4077,7,FALSE)="X",I198+3,I198+2),I198+1),I198),0) -> 00:00:00 | K198: 0
B199: 196 | C199: =+IF(Simulador!$G$26>='Cronograma Referencial'!B199,EDATE(C198,(B199-B198)*VLOOKUP(Simulador!$G$27,Simulador!$V$18:$W$29,2,FALSE)/30),0) -> 00:00:00 | D199: 0 | E199: =+IF(Simulador!$G$26>='Cronograma Referencial'!B199,'Cronograma Referencial'!E198+VLOOKUP(Simulador!$G$27,Simulador!$V$18:$W$29,2,FALSE),0) -> 00:00:00 | F199: 0 | H199: 196 | I199: 00:00:00 | J199: =+IFERROR(IF(VLOOKUP(I199,'BD Dias No utiles'!$B$9:$H$4077,7,FALSE)="X",IF(VLOOKUP(I199+1,'BD Dias No utiles'!$B$9:$H$4077,7,FALSE)="X",IF(VLOOKUP(I199+2,'BD Dias No utiles'!$B$9:$H$4077,7,FALSE)="X",I199+3,I199+2),I199+1),I199),0) -> 00:00:00 | K199: 0
B200: 197 | C200: =+IF(Simulador!$G$26>='Cronograma Referencial'!B200,EDATE(C199,(B200-B199)*VLOOKUP(Simulador!$G$27,Simulador!$V$18:$W$29,2,FALSE)/30),0) -> 00:00:00 | D200: 0 | E200: =+IF(Simulador!$G$26>='Cronograma Referencial'!B200,'Cronograma Referencial'!E199+VLOOKUP(Simulador!$G$27,Simulador!$V$18:$W$29,2,FALSE),0) -> 00:00:00 | F200: 0 | H200: 197 | I200: 00:00:00 | J200: =+IFERROR(IF(VLOOKUP(I200,'BD Dias No utiles'!$B$9:$H$4077,7,FALSE)="X",IF(VLOOKUP(I200+1,'BD Dias No utiles'!$B$9:$H$4077,7,FALSE)="X",IF(VLOOKUP(I200+2,'BD Dias No utiles'!$B$9:$H$4077,7,FALSE)="X",I200+3,I200+2),I200+1),I200),0) -> 00:00:00 | K200: 0
... 218 more rows

Sheet BD Dias No utiles (hidden)
B1: Dias fines semana | K1: 11 | L1: =+K1-1 -> 10 | M1: =+L1-1 -> 9 | N1: 8 | O1: 7 | P1: 6 | Q1: 5 | R1: 4 | S1: 3 | T1: 2 | U1: 1
B2: Fecha | C2: Fecha completa | K2: 12 | L2: 12 | M2: 12 | N2: 12 | O2: 12 | P2: 12 | Q2: 12 | R2: 12 | S2: 12 | T2: 12
B3: FS | C3: Fin Semana | K3: 2012-12-08 | L3: 2012-12-25 | M3: 2013-01-01 | N3: 2013-05-01 | O3: 2013-06-29 | P3: 2013-07-28 | Q3: 2013-07-29 | R3: 2013-08-30 | S3: 2013-10-08 | T3: 2013-11-01 | U3: FE
B4: FE | C4: Festivo | K4: =+EDATE(K3,K$2) -> 2013-12-08 | L4: =+EDATE(L3,L$2) -> 2013-12-25 | M4: 2014-01-01 | N4: 2014-05-01 | O4: 2014-06-29 | P4: 2014-07-28 | Q4: 2014-07-29 | R4: 2014-08-30 | S4: 2014-10-08 | T4: 2014-11-01 | U4: FE
B5: SS | C5: Semana Santa | K5: =+EDATE(K4,K$2) -> 2014-12-08 | L5: 2014-12-25 | M5: 2015-01-01 | N5: 2015-05-01 | O5: 2015-06-29 | P5: 2015-07-28 | Q5: 2015-07-29 | R5: 2015-08-30 | S5: 2015-10-08 | T5: 2015-11-01 | U5: FE
B6: FM | C6: Fin Mes | K6: 2015-12-08 | L6: 2015-12-25 | M6: 2016-01-01 | N6: 2016-05-01 | O6: 2016-06-29 | P6: 2016-07-28 | Q6: 2016-07-29 | R6: 2016-08-30 | S6: 2016-10-08 | T6: 2016-11-01 | U6: FE
B8: Dia | C8: Fecha | D8: FS | E8: FE | F8: SS | G8: FM | H8: Dia No util | I8: X | K8: =+EDATE(K6,K$2) -> 2016-12-08 | L8: 2016-12-25 | M8: 2017-01-01 | N8: 2017-05-01 | O8: 2017-06-29 | P8: 2017-07-28 | Q8: 2017-07-29 | R8: 2017-08-30 | S8: 2017-10-08 | T8: 2017-11-01 | U8: FE
A9: 0 | B9: 2012-12-01 | C9: 2012-12-01 | D9: X | H9: X | I9: =+A9 -> 0 | K9: 2017-12-08 | L9: 2017-12-25 | M9: 2018-01-01 | N9: 2018-05-01 | O9: 2018-06-29 | P9: 2018-07-28 | Q9: 2018-07-29 | R9: 2018-08-30 | S9: 2018-10-08 | T9: 2018-11-01 | U9: FE
A10: =+A9+1 -> 1 | B10: =+B9+1 -> 2012-12-02 | C10: 2012-12-02 | D10: X | H10: X | I10: =+A10 -> 1 | K10: 2018-12-08 | L10: 2018-12-25 | M10: 2019-01-01 | N10: 2019-05-01 | O10: 2019-06-29 | P10: 2019-07-28 | Q10: 2019-07-29 | R10: 2019-08-30 | S10: 2019-10-08 | T10: 2019-11-01 | U10: FE | W10: =+I10-I9 -> 1
A11: =+A10+1 -> 2 | B11: 2012-12-03 | C11: 2012-12-03 | I11: =+IF(H11<>"X",A11,0) -> 2 | K11: 2019-12-08 | L11: 2019-12-25 | M11: 2020-01-01 | N11: 2020-05-01 | O11: 2020-06-29 | P11: 2020-07-28 | Q11: 2020-07-29 | R11: 2020-08-30 | S11: 2020-10-08 | T11: 2020-11-01 | U11: FE
A12: 3 | B12: 2012-12-04 | C12: 2012-12-04 | I12: 3 | K12: 2020-12-08 | L12: 2020-12-25 | M12: 2021-01-01 | N12: 2021-05-01 | O12: 2021-06-29 | P12: 2021-07-28 | Q12: 2021-07-29 | R12: 2021-08-30 | S12: 2021-10-08 | T12: 2021-11-01 | U12: FE
A13: 4 | B13: 2012-12-05 | C13: 2012-12-05 | I13: 4 | K13: 2021-12-08 | L13: 2021-12-25 | M13: 2022-01-01 | N13: 2022-05-01 | O13: 2022-06-29 | P13: 2022-07-28 | Q13: 2022-07-29 | R13: 2022-08-30 | S13: 2022-10-08 | T13: 2022-11-01 | U13: FE
A14: 5 | B14: 2012-12-06 | C14: 2012-12-06 | I14: 5 | K14: 2022-12-08 | L14: 2022-12-25 | M14: 2023-01-01 | N14: 2023-05-01 | O14: 2023-06-29 | P14: 2023-07-28 | Q14: 2023-07-29 | R14: 2023-08-30 | S14: 2023-10-08 | T14: 2023-11-01 | U14: FE
A15: 6 | B15: 2012-12-07 | C15: 2012-12-07 | I15: 6 | K15: 2023-12-08 | L15: 2023-12-25 | M15: 2024-01-01 | N15: 2024-05-01 | O15: 2024-06-29 | P15: 2024-07-28 | Q15: 2024-07-29 | R15: 2024-08-30 | S15: 2024-10-08 | T15: 2024-11-01 | U15: FE
A16: 7 | B16: 2012-12-08 | C16: 2012-12-08 | D16: X | E16: X | H16: X | I16: =+A16 -> 7
A17: 8 | B17: 2012-12-09 | C17: 2012-12-09 | D17: X | H17: X | I17: 8 | K17: Semana Santa
A18: 9 | B18: 2012-12-10 | C18: 2012-12-10 | I18: 9 | K18: 2013 | L18: =+K18+1 -> 2014 | M18: =+L18+1 -> 2015 | N18: 2016 | O18: 2017 | P18: 2018 | Q18: 2019 | R18: 2020 | S18: 2021 | T18: 2022 | U18: 2023 | V18: 2024
A19: 10 | B19: 2012-12-11 | C19: 2012-12-11 | I19: 10 | K19: 2013-03-28 | L19: 2014-04-17 | M19: 2015-04-02 | N19: 2016-03-24 | O19: 2017-04-13 | P19: 2018-03-29 | Q19: 2019-04-18 | R19: 2020-04-09 | S19: 2021-04-01 | T19: 2022-04-14 | U19: 2023-04-06 | V19: 2024-03-28
A20: 11 | B20: 2012-12-12 | C20: 2012-12-12 | I20: 11 | K20: =+K19+1 -> 2013-03-29 | L20: =+L19+1 -> 2014-04-18 | M20: 2015-04-03 | N20: 2016-03-25 | O20: 2017-04-14 | P20: 2018-03-30 | Q20: 2019-04-19 | R20: 2020-04-10 | S20: 2021-04-02 | T20: 2022-04-15 | U20: 2023-04-07 | V20: 2024-03-29
A21: 12 | B21: 2012-12-13 | C21: 2012-12-13 | I21: 12
A22: 13 | B22: 2012-12-14 | C22: 2012-12-14 | I22: 13 | K22: Fin mes
A23: 14 | B23: 2012-12-15 | C23: 2012-12-15 | D23: X | H23: X | I23: =+A23 -> 14 | K23: =+TODAY() -> 2017-12-19
A24: 15 | B24: 2012-12-16 | C24: 2012-12-16 | D24: X | H24: X | I24: 15 | J24: 1 | K24: =+EOMONTH(K23,J24) -> 2018-01-31
A25: 16 | B25: 2012-12-17 | C25: 2012-12-17 | I25: 16 | J25: 2 | K25: 2018-03-31
A26: 17 | B26: 2012-12-18 | C26: 2012-12-18 | I26: 17 | J26: 3 | K26: 2018-06-30
A27: =+A26+1 -> 18 | B27: 2012-12-19 | C27: 2012-12-19 | I27: 18 | J27: 4 | K27: 2018-10-31
A28: 19 | B28: 2012-12-20 | C28: 2012-12-20 | I28: 19 | J28: 5 | K28: 2019-03-31
A29: 20 | B29: 2012-12-21 | C29: 2012-12-21 | I29: 20 | J29: 6 | K29: 2019-09-30
A30: 21 | B30: 2012-12-22 | C30: 2012-12-22 | D30: X | H30: X | I30: =+A30 -> 21 | J30: 7 | K30: 2020-04-30
A31: 22 | B31: 2012-12-23 | C31: 2012-12-23 | D31: X | H31: X | I31: 22 | J31: 8 | K31: 2020-12-31
A32: 23 | B32: 2012-12-24 | C32: 2012-12-24 | I32: 23 | J32: 9 | K32: 2021-09-30
A33: 24 | B33: 2012-12-25 | C33: 2012-12-25 | E33: X | H33: X | I33: =+A33 -> 24 | J33: 10 | K33: 2022-07-31
A34: 25 | B34: 2012-12-26 | C34: 2012-12-26 | I34: 25 | J34: 11 | K34: 2023-06-30
A35: 26 | B35: 2012-12-27 | C35: 2012-12-27 | I35: 26 | J35: 12 | K35: 2024-06-30
A36: 27 | B36: 2012-12-28 | C36: 2012-12-28 | I36: 27 | J36: 13 | K36: 2025-07-31
A37: 28 | B37: 2012-12-29 | C37: 2012-12-29 | D37: X | H37: X | I37: =+A37 -> 28 | J37: 14 | K37: 2026-09-30
A38: 29 | B38: 2012-12-30 | C38: 2012-12-30 | D38: X | H38: X | I38: 29 | J38: 15 | K38: 2027-12-31
A39: 30 | B39: 2012-12-31 | C39: 2012-12-31 | H39: X | I39: 0 | J39: 16 | K39: 2029-04-30
A40: 31 | B40: 2013-01-01 | C40: 2013-01-01 | E40: X | H40: X | I40: =+A40 -> 31 | J40: 17 | K40: 2030-09-30
A41: 32 | B41: 2013-01-02 | C41: 2013-01-02 | I41: 32 | J41: 18 | K41: 2032-03-31
A42: 33 | B42: 2013-01-03 | C42: 2013-01-03 | I42: 33 | J42: 19 | K42: 2033-10-31
A43: =+A42+1 -> 34 | B43: 2013-01-04 | C43: 2013-01-04 | I43: 34 | J43: 20 | K43: 2035-06-30
A44: 35 | B44: 2013-01-05 | C44: 2013-01-05 | D44: X | H44: X | I44: =+A44 -> 35 | J44: 21 | K44: 2037-03-31
A45: 36 | B45: 2013-01-06 | C45: 2013-01-06 | D45: X | H45: X | I45: 36 | J45: 22 | K45: 2039-01-31
A46: 37 | B46: =+B45+1 -> 2013-01-07 | C46: 2013-01-07 | I46: 37 | J46: 23 | K46: 2040-12-31
A47: 38 | B47: 2013-01-08 | C47: 2013-01-08 | I47: 38 | J47: 24 | K47: 2042-12-31
A48: 39 | B48: 2013-01-09 | C48: 2013-01-09 | I48: 39 | J48: 25 | K48: 2045-01-31
A49: 40 | B49: 2013-01-10 | C49: 2013-01-10 | I49: 40 | J49: 26 | K49: 2047-03-31
A50: 41 | B50: 2013-01-11 | C50: 2013-01-11 | I50: 41 | J50: 27 | K50: 2049-06-30
A51: 42 | B51: 2013-01-12 | C51: 2013-01-12 | D51: X | H51: X | I51: =+A51 -> 42 | J51: 28 | K51: 2051-10-31
A52: 43 | B52: 2013-01-13 | C52: 2013-01-13 | D52: X | H52: X | I52: 43 | J52: 29 | K52: 2054-03-31
A53: 44 | B53: 2013-01-14 | C53: 2013-01-14 | I53: 44 | J53: 30 | K53: 2056-09-30
A54: 45 | B54: 2013-01-15 | C54: 2013-01-15 | I54: 45 | J54: 31 | K54: 2059-04-30
A55: 46 | B55: 2013-01-16 | C55: 2013-01-16 | I55: 46 | J55: 32 | K55: 2061-12-31
A56: 47 | B56: 2013-01-17 | C56: 2013-01-17 | I56: 47 | J56: 33 | K56: 2064-09-30
A57: 48 | B57: 2013-01-18 | C57: 2013-01-18 | I57: 48 | J57: 34 | K57: 2067-07-31
A58: 49 | B58: 2013-01-19 | C58: 2013-01-19 | D58: X | H58: X | I58: =+A58 -> 49 | J58: 35 | K58: 2070-06-30
A59: =+A58+1 -> 50 | B59: 2013-01-20 | C59: 2013-01-20 | D59: X | H59: X | I59: 50 | J59: 36 | K59: 2073-06-30
A60: 51 | B60: 2013-01-21 | C60: 2013-01-21 | I60: 51 | J60: 37 | K60: 2076-07-31
A61: 52 | B61: 2013-01-22 | C61: 2013-01-22 | I61: 52 | J61: 38 | K61: 2079-09-30
A62: 53 | B62: 2013-01-23 | C62: 2013-01-23 | I62: 53 | J62: 39 | K62: 2082-12-31
A63: 54 | B63: 2013-01-24 | C63: 2013-01-24 | I63: 54 | J63: 40 | K63: 2086-04-30
A64: 55 | B64: 2013-01-25 | C64: 2013-01-25 | I64: 55 | J64: 41 | K64: 2089-09-30
A65: 56 | B65: 2013-01-26 | C65: 2013-01-26 | D65: X | H65: X | I65: =+A65 -> 56 | J65: 42 | K65: 2093-03-31
A66: 57 | B66: 2013-01-27 | C66: 2013-01-27 | D66: X | H66: X | I66: 57 | J66: 43 | K66: 2096-10-31
A67: 58 | B67: 2013-01-28 | C67: 2013-01-28 | I67: 58 | J67: 44 | K67: 2100-06-30
A68: 59 | B68: 2013-01-29 | C68: 2013-01-29 | I68: 59 | J68: 45 | K68: 2104-03-31
A69: 60 | B69: 2013-01-30 | C69: 2013-01-30 | I69: 60 | J69: 46 | K69: 2108-01-31
A70: 61 | B70: 2013-01-31 | C70: 2013-01-31 | I70: 61 | J70: 47 | K70: 2111-12-31
A71: 62 | B71: 2013-02-01 | C71: 2013-02-01 | I71: 62 | J71: 48 | K71: 2115-12-31
A72: 63 | B72: 2013-02-02 | C72: 2013-02-02 | D72: X | H72: X | I72: =+A72 -> 63 | J72: 49 | K72: 2120-01-31
A73: 64 | B73: 2013-02-03 | C73: 2013-02-03 | D73: X | H73: X | I73: 64 | J73: 50 | K73: 2124-03-31
A74: 65 | B74: 2013-02-04 | C74: 2013-02-04 | I74: =+IF(H74<>"X",A74,0) -> 65 | J74: 51 | K74: 2128-06-30
A75: =+A74+1 -> 66 | B75: 2013-02-05 | C75: 2013-02-05 | I75: 66 | J75: 52 | K75: 2132-10-31
A76: 67 | B76: 2013-02-06 | C76: 2013-02-06 | I76: 67 | J76: 53 | K76: 2137-03-31
A77: 68 | B77: 2013-02-07 | C77: 2013-02-07 | I77: 68 | J77: 54 | K77: 2141-09-30
A78: 69 | B78: 2013-02-08 | C78: 2013-02-08 | I78: 69 | J78: 55 | K78: 2146-04-30
A79: 70 | B79: 2013-02-09 | C79: 2013-02-09 | D79: X | H79: X | I79: =+A79 -> 70 | J79: 56 | K79: 2150-12-31
A80: 71 | B80: 2013-02-10 | C80: 2013-02-10 | D80: X | H80: X | I80: 71 | J80: 57 | K80: 2155-09-30
A81: 72 | B81: 2013-02-11 | C81: 2013-02-11 | I81: 72 | J81: 58 | K81: 2160-07-31
A82: 73 | B82: 2013-02-12 | C82: 2013-02-12 | I82: 73 | J82: 59 | K82: 2165-06-30
A83: 74 | B83: 2013-02-13 | C83: 2013-02-13 | I83: 74 | J83: 60 | K83: 2170-06-30
A84: 75 | B84: 2013-02-14 | C84: 2013-02-14 | I84: 75 | J84: 61 | K84: 2175-07-31
A85: 76 | B85: 2013-02-15 | C85: 2013-02-15 | I85: 76 | J85: 62 | K85: 2180-09-30
A86: 77 | B86: 2013-02-16 | C86: 2013-02-16 | D86: X | H86: X | I86: =+A86 -> 77 | J86: 63 | K86: 2185-12-31
A87: 78 | B87: 2013-02-17 | C87: 2013-02-17 | D87: X | H87: X | I87: 78 | J87: 64 | K87: 2191-04-30
A88: 79 | B88: 2013-02-18 | C88: 2013-02-18 | I88: 79 | J88: 65 | K88: =+EOMONTH(K87,J88) -> 2196-09-30
A89: 80 | B89: 2013-02-19 | C89: 2013-02-19 | I89: 80 | J89: 66 | K89: 2202-03-31
A90: 81 | B90: 2013-02-20 | C90: 2013-02-20 | I90: 81 | J90: 67 | K90: 2207-10-31
A91: =+A90+1 -> 82 | B91: 2013-02-21 | C91: 2013-02-21 | I91: 82 | J91: 68 | K91: 2213-06-30
A92: 83 | B92: 2013-02-22 | C92: 2013-02-22 | I92: 83 | J92: 69 | K92: 2219-03-31
A93: 84 | B93: 2013-02-23 | C93: 2013-02-23 | D93: X | H93: X | I93: =+A93 -> 84 | J93: 70 | K93: 2225-01-31
A94: 85 | B94: 2013-02-24 | C94: 2013-02-24 | D94: X | H94: X | I94: 85 | J94: 71 | K94: 2230-12-31
A95: 86 | B95: 2013-02-25 | C95: 2013-02-25 | I95: 86 | J95: 72 | K95: 2236-12-31
A96: 87 | B96: 2013-02-26 | C96: 2013-02-26 | I96: 87 | J96: 73 | K96: 2243-01-31
A97: 88 | B97: 2013-02-27 | C97: 2013-02-27 | I97: 88 | J97: 74 | K97: 2249-03-31
A98: 89 | B98: 2013-02-28 | C98: 2013-02-28 | I98: 89 | J98: 75 | K98: 2255-06-30
A99: 90 | B99: 2013-03-01 | C99: 2013-03-01 | I99: 90 | J99: 76 | K99: 2261-10-31
A100: 91 | B100: 2013-03-02 | C100: 2013-03-02 | D100: X | H100: X | I100: =+A100 -> 91 | J100: 77 | K100: 2268-03-31
A101: 92 | B101: 2013-03-03 | C101: 2013-03-03 | D101: X | H101: X | I101: 92 | J101: 78 | K101: 2274-09-30
A102: 93 | B102: 2013-03-04 | C102: 2013-03-04 | I102: 93 | J102: 79 | K102: 2281-04-30
A103: 94 | B103: 2013-03-05 | C103: 2013-03-05 | I103: 94 | J103: 80 | K103: 2287-12-31
A104: 95 | B104: 2013-03-06 | C104: 2013-03-06 | I104: 95 | J104: 81 | K104: 2294-09-30
A105: 96 | B105: 2013-03-07 | C105: 2013-03-07 | I105: 96 | J105: 82 | K105: 2301-07-31
A106: 97 | B106: 2013-03-08 | C106: 2013-03-08 | I106: 97 | J106: 83 | K106: 2308-06-30
A107: =+A106+1 -> 98 | B107: 2013-03-09 | C107: 2013-03-09 | D107: X | H107: X | I107: =+A107 -> 98 | J107: 84 | K107: 2315-06-30
A108: 99 | B108: 2013-03-10 | C108: 2013-03-10 | D108: X | H108: X | I108: 99 | J108: 85 | K108: 2322-07-31
A109: 100 | B109: 2013-03-11 | C109: 2013-03-11 | I109: 100 | J109: 86 | K109: 2329-09-30
A110: 101 | B110: 2013-03-12 | C110: 2013-03-12 | I110: 101 | J110: 87 | K110: 2336-12-31
A111: 102 | B111: 2013-03-13 | C111: 2013-03-13 | I111: 102 | J111: 88 | K111: 2344-04-30
A112: 103 | B112: 2013-03-14 | C112: 2013-03-14 | I112: 103 | J112: 89 | K112: 2351-09-30
A113: 104 | B113: 2013-03-15 | C113: 2013-03-15 | I113: 104 | J113: 90 | K113: 2359-03-31
A114: 105 | B114: 2013-03-16 | C114: 2013-03-16 | D114: X | H114: X | I114: =+A114 -> 105 | J114: 91 | K114: 2366-10-31
A115: 106 | B115: 2013-03-17 | C115: 2013-03-17 | D115: X | H115: X | I115: 106 | J115: 92 | K115: 2374-06-30
A116: 107 | B116: 2013-03-18 | C116: 2013-03-18 | I116: 107 | J116: 93 | K116: 2382-03-31
A117: 108 | B117: 2013-03-19 | C117: 2013-03-19 | I117: 108 | J117: 94 | K117: 2390-01-31
A118: 109 | B118: 2013-03-20 | C118: 2013-03-20 | I118: 109 | J118: 95 | K118: 2397-12-31
A119: 110 | B119: 2013-03-21 | C119: 2013-03-21 | I119: 110 | J119: 96 | K119: 2405-12-31
A120: 111 | B120: 2013-03-22 | C120: 2013-03-22 | I120: 111 | J120: 97 | K120: 2414-01-31
A121: 112 | B121: 2013-03-23 | C121: 2013-03-23 | D121: X | H121: X | I121: =+A121 -> 112 | J121: 98 | K121: 2422-03-31
A122: 113 | B122: 2013-03-24 | C122: 2013-03-24 | D122: X | H122: X | I122: 113 | J122: 99 | K122: 2430-06-30
A123: =+A122+1 -> 114 | B123: 2013-03-25 | C123: 2013-03-25 | I123: 114 | J123: 100 | K123: 2438-10-31
A124: 115 | B124: 2013-03-26 | C124: 2013-03-26 | I124: 115 | J124: 101 | K124: 2447-03-31
A125: 116 | B125: 2013-03-27 | C125: 2013-03-27 | I125: 116 | J125: 102 | K125: 2455-09-30
A126: 117 | B126: 2013-03-28 | C126: 2013-03-28 | F126: X | H126: X | I126: =+A126 -> 117 | J126: 103 | K126: 2464-04-30
A127: 118 | B127: 2013-03-29 | C127: 2013-03-29 | F127: X | H127: X | I127: 118 | J127: 104 | K127: 2472-12-31
A128: 119 | B128: 2013-03-30 | C128: 2013-03-30 | D128: X | H128: X | I128: 119 | J128: 105 | K128: 2481-09-30
A129: 120 | B129: 2013-03-31 | C129: 2013-03-31 | D129: X | H129: X | I129: 120 | J129: 106 | K129: 2490-07-31
A130: 121 | B130: 2013-04-01 | C130: 2013-04-01 | I130: 121 | J130: 107 | K130: 2499-06-30
A131: 122 | B131: 2013-04-02 | C131: 2013-04-02 | I131: 122 | J131: 108 | K131: 2508-06-30
A132: 123 | B132: 2013-04-03 | C132: 2013-04-03 | I132: 123 | J132: 109 | K132: 2517-07-31
A133: 124 | B133: 2013-04-04 | C133: 2013-04-04 | I133: 124 | J133: 110 | K133: 2526-09-30
A134: 125 | B134: 2013-04-05 | C134: 2013-04-05 | I134: 125 | J134: 111 | K134: 2535-12-31
A135: 126 | B135: 2013-04-06 | C135: 2013-04-06 | D135: X | H135: X | I135: =+A135 -> 126 | J135: 112 | K135: 2545-04-30
A136: 127 | B136: 2013-04-07 | C136: 2013-04-07 | D136: X | H136: X | I136: 127 | J136: 113 | K136: 2554-09-30
A137: 128 | B137: 2013-04-08 | C137: 2013-04-08 | I137: 128 | J137: 114 | K137: 2564-03-31
A138: 129 | B138: 2013-04-09 | C138: 2013-04-09 | I138: =+IF(H138<>"X",A138,0) -> 129 | J138: 115 | K138: 2573-10-31
A139: =+A138+1 -> 130 | B139: 2013-04-10 | C139: 2013-04-10 | I139: 130 | J139: 116 | K139: 2583-06-30
A140: 131 | B140: 2013-04-11 | C140: 2013-04-11 | I140: 131 | J140: 117 | K140: 2593-03-31
A141: 132 | B141: 2013-04-12 | C141: 2013-04-12 | I141: 132 | J141: 118 | K141: 2603-01-31
A142: 133 | B142: 2013-04-13 | C142: 2013-04-13 | D142: X | H142: X | I142: =+A142 -> 133 | J142: 119 | K142: 2612-12-31
A143: 134 | B143: 2013-04-14 | C143: 2013-04-14 | D143: X | H143: X | I143: 134 | J143: 120 | K143: 2622-12-31
A144: 135 | B144: 2013-04-15 | C144: 2013-04-15 | I144: 135 | J144: 121 | K144: 2633-01-31
A145: 136 | B145: 2013-04-16 | C145: 2013-04-16 | I145: 136 | J145: 122 | K145: 2643-03-31
A146: 137 | B146: 2013-04-17 | C146: 2013-04-17 | I146: 137 | J146: 123 | K146: 2653-06-30
A147: 138 | B147: 2013-04-18 | C147: 2013-04-18 | I147: 138 | J147: 124 | K147: 2663-10-31
A148: 139 | B148: 2013-04-19 | C148: 2013-04-19 | I148: 139 | J148: 125 | K148: 2674-03-31
A149: 140 | B149: 2013-04-20 | C149: 2013-04-20 | D149: X | H149: X | I149: =+A149 -> 140 | J149: 126 | K149: 2684-09-30
A150: 141 | B150: 2013-04-21 | C150: 2013-04-21 | D150: X | H150: X | I150: 141 | J150: 127 | K150: 2695-04-30
A151: 142 | B151: 2013-04-22 | C151: 2013-04-22 | I151: 142 | J151: 128 | K151: 2705-12-31
A152: 143 | B152: 2013-04-23 | C152: 2013-04-23 | I152: 143 | J152: 129 | K152: =+EOMONTH(K151,J152) -> 2716-09-30
A153: 144 | B153: 2013-04-24 | C153: 2013-04-24 | I153: 144 | J153: 130 | K153: 2727-07-31
A154: 145 | B154: 2013-04-25 | C154: 2013-04-25 | I154: 145 | J154: 131 | K154: 2738-06-30
A155: =+A154+1 -> 146 | B155: 2013-04-26 | C155: 2013-04-26 | I155: 146 | J155: 132 | K155: 2749-06-30
A156: 147 | B156: 2013-04-27 | C156: 2013-04-27 | D156: X | H156: X | I156: =+A156 -> 147 | J156: 133 | K156: 2760-07-31
A157: 148 | B157: 2013-04-28 | C157: 2013-04-28 | D157: X | H157: X | I157: 148 | J157: 134 | K157: 2771-09-30
A158: 149 | B158: 2013-04-29 | C158: 2013-04-29 | I158: 149 | J158: 135 | K158: 2782-12-31
A159: 150 | B159: 2013-04-30 | C159: 2013-04-30 | I159: 150 | J159: 136 | K159: 2794-04-30
A160: 151 | B160: 2013-05-01 | C160: 2013-05-01 | E160: X | H160: X | I160: =+A160 -> 151 | J160: 137 | K160: 2805-09-30
A161: 152 | B161: 2013-05-02 | C161: 2013-05-02 | I161: 152 | J161: 138 | K161: 2817-03-31
A162: 153 | B162: 2013-05-03 | C162: 2013-05-03 | I162: 153 | J162: 139 | K162: 2828-10-31
A163: 154 | B163: 2013-05-04 | C163: 2013-05-04 | D163: X | H163: X | I163: =+A163 -> 154 | J163: 140 | K163: 2840-06-30
A164: 155 | B164: 2013-05-05 | C164: 2013-05-05 | D164: X | H164: X | I164: 155 | J164: 141 | K164: 2852-03-31
A165: 156 | B165: 2013-05-06 | C165: 2013-05-06 | I165: 156 | J165: 142 | K165: 2864-01-31
A166: 157 | B166: 2013-05-07 | C166: 2013-05-07 | I166: 157 | J166: 143 | K166: 2875-12-31
A167: 158 | B167: 2013-05-08 | C167: 2013-05-08 | I167: 158 | J167: 144 | K167: 2887-12-31
A168: 159 | B168: 2013-05-09 | C168: 2013-05-09 | I168: 159 | J168: 145 | K168: 2900-01-31
A169: 160 | B169: 2013-05-10 | C169: 2013-05-10 | I169: 160 | J169: 146 | K169: 2912-03-31
A170: 161 | B170: 2013-05-11 | C170: 2013-05-11 | D170: X | H170: X | I170: =+A170 -> 161 | J170: 147 | K170: 2924-06-30
A171: =+A170+1 -> 162 | B171: 2013-05-12 | C171: 2013-05-12 | D171: X | H171: X | I171: 162 | J171: 148 | K171: 2936-10-31
A172: 163 | B172: 2013-05-13 | C172: 2013-05-13 | I172: 163 | J172: 149 | K172: 2949-03-31
A173: 164 | B173: 2013-05-14 | C173: 2013-05-14 | I173: 164 | J173: 150 | K173: 2961-09-30
A174: 165 | B174: 2013-05-15 | C174: 2013-05-15 | I174: 165 | J174: 151 | K174: 2974-04-30
A175: 166 | B175: 2013-05-16 | C175: 2013-05-16 | I175: 166 | J175: 152 | K175: 2986-12-31
A176: 167 | B176: 2013-05-17 | C176: 2013-05-17 | I176: 167 | J176: 153 | K176: 2999-09-30
A177: 168 | B177: 2013-05-18 | C177: 2013-05-18 | D177: X | H177: X | I177: =+A177 -> 168 | J177: 154 | K177: 3012-07-31
A178: 169 | B178: 2013-05-19 | C178: 2013-05-19 | D178: X | H178: X | I178: 169
A179: 170 | B179: 2013-05-20 | C179: 2013-05-20 | I179: 170
A180: 171 | B180: 2013-05-21 | C180: 2013-05-21 | I180: 171
A181: 172 | B181: 2013-05-22 | C181: 2013-05-22 | I181: 172
A182: 173 | B182: 2013-05-23 | C182: 2013-05-23 | I182: 173
A183: 174 | B183: 2013-05-24 | C183: 2013-05-24 | I183: 174
A184: 175 | B184: 2013-05-25 | C184: 2013-05-25 | D184: X | H184: X | I184: =+A184 -> 175
A185: 176 | B185: 2013-05-26 | C185: 2013-05-26 | D185: X | H185: X | I185: 176
A186: 177 | B186: 2013-05-27 | C186: 2013-05-27 | I186: 177
A187: =+A186+1 -> 178 | B187: 2013-05-28 | C187: 2013-05-28 | I187: 178
A188: 179 | B188: 2013-05-29 | C188: 2013-05-29 | I188: 179
A189: 180 | B189: 2013-05-30 | C189: 2013-05-30 | I189: 180
A190: 181 | B190: 2013-05-31 | C190: 2013-05-31 | G190: X | H190: X | I190: =+A190 -> 181
A191: 182 | B191: 2013-06-01 | C191: 2013-06-01 | D191: X | H191: X | I191: 182
A192: 183 | B192: 2013-06-02 | C192: 2013-06-02 | D192: X | H192: X | I192: 183
A193: 184 | B193: 2013-06-03 | C193: 2013-06-03 | I193: 184
A194: 185 | B194: 2013-06-04 | C194: 2013-06-04 | I194: 185
A195: 186 | B195: 2013-06-05 | C195: 2013-06-05 | I195: 186
A196: 187 | B196: 2013-06-06 | C196: 2013-06-06 | I196: 187
A197: 188 | B197: 2013-06-07 | C197: 2013-06-07 | I197: 188
A198: 189 | B198: 2013-06-08 | C198: 2013-06-08 | D198: X | H198: X | I198: =+A198 -> 189
A199: 190 | B199: 2013-06-09 | C199: 2013-06-09 | D199: X | H199: X | I199: 190
A200: 191 | B200: 2013-06-10 | C200: 2013-06-10 | I200: 191
A201: 192 | B201: 2013-06-11 | C201: 2013-06-11 | I201: 192
... 3876 more rows

Sheet CronogramaValoresNvo
B2: =CronogramaValores!$B$2 -> CRONOGRAMA DE CUOTAS - CREDITO CADENAS PRODUCTIVAS
B5: =CronogramaValores!B5 -> Moneda | C5: =CronogramaValores!D5 -> Soles | D5: =CronogramaValores!E6 -> Cuota a pagar | E5: =CronogramaValores!G6 -> 338.0239544 | F5: =CronogramaValores!$L$5 -> Tasa Efectiva Anual (T.E.A) compensatoria | I5: =CronogramaValores!$P$5 -> 0.155 | K5: =CronogramaValores!$L$7 -> Fecha de desembolso | M5: =CronogramaValores!$P$7 -> 2017-12-17
B6: =CronogramaValores!B6 -> Monto solicitado | C6: =CronogramaValores!D6 -> 3500 | D6: =MID(Simulador!C27,1,12) -> Periodicidad | E6: =Simulador!G27 -> 1 mes | F6: =CronogramaValores!$L$6 -> Tasa Costo Efectiva Anual (T.C.E.A) | I6: =CronogramaValores!$P$6 -> 0.3150195034
B7: =CronogramaValores!B7 -> Nº de cuotas | C7: =CronogramaValores!D7 -> 12 | D7: =CronogramaValores!$H$7 -> ITF | E7: =CronogramaValores!$K$7 -> 5e-05 | F7: Seguro de Desgravamen | I7: =Simulador!$G$40 -> 20.36238689
B9: Nro. | C9: Fecha | D9: Saldo del monto | E9: Principal | F9: Intereses | G9: Operador | H9: Seguro de | I9: Reportes | J9: Seguro | K9: Portes | L9: ITF | M9: Cuota
B10: de cuota | C10: de pago | D10: del crédito | G10: de Créditos | H10: desgravamen | I10: Legales | J10: Agrícola | M10: a pagar
D11: (a) | E11: (c) | F11: (d) | G11: (f) | H11: (g) | I11: (h) | J11: (i) | K11: (j) | L11: (k) | M11: (l) = (e)+(f)+(g)+(h)+(i)+(j)+(k)
B12: 1 | C12: 2018-01-17 | D12: 3500 | E12: 271.7554398 | F12: 43.70081569 | G12: 8.333333333 | H12: 1.696865574 | I12: 4.440892099e-16 | J12: 12.5375 | K12: 0 | L12: 0 | M12: 338.0239544
B13: 2 | C13: 2018-02-19 | D13: 3228.24456 | E13: 272.5308523 | F13: 42.92540316 | G13: 8.333333333 | H13: 1.696865574 | I13: 4.440892099e-16 | J13: 12.5375 | K13: 0 | L13: 0 | M13: 338.0239544
B14: 3 | C14: 2018-03-19 | D14: 2955.713708 | E14: 282.1428577 | F14: 33.31339779 | G14: 8.333333333 | H14: 1.696865574 | I14: 4.440892099e-16 | J14: 12.5375 | K14: 0 | L14: 0 | M14: 338.0239544
B15: 4 | C15: 2018-04-17 | D15: 2673.57085 | E15: 284.2403948 | F15: 31.21586068 | G15: 8.333333333 | H15: 1.696865574 | I15: 4.440892099e-16 | J15: 12.5375 | K15: 0 | L15: 0 | M15: 338.0239544
B16: 5 | C16: 2018-05-17 | D16: 2389.330455 | E16: 286.5913472 | F16: 28.86490831 | G16: 8.333333333 | H16: 1.696865574 | I16: 4.440892099e-16 | J16: 12.5375 | K16: 0 | L16: 0 | M16: 338.0239544
B17: 6 | C17: 2018-06-18 | D17: 2102.739108 | E17: 288.3492042 | F17: 27.10705129 | G17: 8.333333333 | H17: 1.696865574 | I17: 4.440892099e-16 | J17: 12.5375 | K17: 0 | L17: 0 | M17: 338.0239544
B18: 7 | C18: 2018-07-17 | D18: 1814.389904 | E18: 294.2719497 | F18: 21.1843058 | G18: 8.333333333 | H18: 1.696865574 | I18: 4.440892099e-16 | J18: 12.5375 | K18: 0 | L18: 0 | M18: 338.0239544
B19: 8 | C19: 2018-08-17 | D19: 1520.117954 | E19: 296.4761428 | F19: 18.98011273 | G19: 8.333333333 | H19: 1.696865574 | I19: 4.440892099e-16 | J19: 12.5375 | K19: 0 | L19: 0 | M19: 338.0239544
B20: 9 | C20: 2018-09-17 | D20: 1223.641812 | E20: 300.1779283 | F20: 15.27832722 | G20: 8.333333333 | H20: 1.696865574 | I20: 4.440892099e-16 | J20: 12.5375 | K20: 0 | L20: 0 | M20: 338.0239544
B21: 10 | C21: 2018-10-17 | D21: 923.4638833 | E21: 304.3001175 | F21: 11.15613801 | G21: 8.333333333 | H21: 1.696865574 | I21: 4.440892099e-16 | J21: 12.5375 | K21: 0 | L21: 0 | M21: 338.0239544
B22: 11 | C22: 2018-11-19 | D22: 619.1637658 | E22: 307.2233432 | F22: 8.232912276 | G22: 8.333333333 | H22: 1.696865574 | I22: 4.440892099e-16 | J22: 12.5375 | K22: 0 | L22: 0 | M22: 338.0239544
B23: 12 | C23: 2018-12-17 | D23: 311.9404226 | E23: 311.9404226 | F23: 3.515832863 | G23: 8.333333333 | H23: 1.696865574 | I23: 4.440892099e-16 | J23: 12.5375 | K23: 0 | L23: 0 | M23: 338.0239544
B24: 13 | D24: 0 | E24: 0 | F24: 0 | G24: 0 | H24: 0 | I24: 0 | J24: 0 | K24: 0 | L24: 0 | M24: 0
B25: 14 | D25: 0 | E25: 0 | F25: 0 | G25: 0 | H25: 0 | I25: 0 | J25: 0 | K25: 0 | L25: 0 | M25: 0
B26: 15 | D26: 0 | E26: 0 | F26: 0 | G26: 0 | H26: 0 | I26: 0 | J26: 0 | K26: 0 | L26: 0 | M26: 0
B27: 16 | D27: 0 | E27: 0 | F27: 0 | G27: 0 | H27: 0 | I27: 0 | J27: 0 | K27: 0 | L27: 0 | M27: 0
B28: 17 | D28: 0 | E28: 0 | F28: 0 | G28: 0 | H28: 0 | I28: 0 | J28: 0 | K28: 0 | L28: 0 | M28: 0
B29: 18 | D29: 0 | E29: 0 | F29: 0 | G29: 0 | H29: 0 | I29: 0 | J29: 0 | K29: 0 | L29: 0 | M29: 0
B30: 19 | D30: 0 | E30: 0 | F30: 0 | G30: 0 | H30: 0 | I30: 0 | J30: 0 | K30: 0 | L30: 0 | M30: 0
B31: 20 | D31: 0 | E31: 0 | F31: 0 | G31: 0 | H31: 0 | I31: 0 | J31: 0 | K31: 0 | L31: 0 | M31: 0
B32: 21 | D32: 0 | E32: 0 | F32: 0 | G32: 0 | H32: 0 | I32: 0 | J32: 0 | K32: 0 | L32: 0 | M32: 0
B33: 22 | D33: 0 | E33: 0 | F33: 0 | G33: 0 | H33: 0 | I33: 0 | J33: 0 | K33: 0 | L33: 0 | M33: 0
B34: 23 | D34: 0 | E34: 0 | F34: 0 | G34: 0 | H34: 0 | I34: 0 | J34: 0 | K34: 0 | L34: 0 | M34: 0
B35: 24 | D35: 0 | E35: 0 | F35: 0 | G35: 0 | H35: 0 | I35: 0 | J35: 0 | K35: 0 | L35: 0 | M35: 0
B36: 25 | D36: 0 | E36: 0 | F36: 0 | G36: 0 | H36: 0 | I36: 0 | J36: 0 | K36: 0 | L36: 0 | M36: 0
B37: 26 | D37: 0 | E37: 0 | F37: 0 | G37: 0 | H37: 0 | I37: 0 | J37: 0 | K37: 0 | L37: 0 | M37: 0
B38: 27 | D38: 0 | E38: 0 | F38: 0 | G38: 0 | H38: 0 | I38: 0 | J38: 0 | K38: 0 | L38: 0 | M38: 0
B39: 28 | D39: 0 | E39: 0 | F39: 0 | G39: 0 | H39: 0 | I39: 0 | J39: 0 | K39: 0 | L39: 0 | M39: 0
B40: 29 | D40: 0 | E40: 0 | F40: 0 | G40: 0 | H40: 0 | I40: 0 | J40: 0 | K40: 0 | L40: 0 | M40: 0
B41: 30 | D41: 0 | E41: 0 | F41: 0 | G41: 0 | H41: 0 | I41: 0 | J41: 0 | K41: 0 | L41: 0 | M41: 0
B42: 31 | D42: 0 | E42: 0 | F42: 0 | G42: 0 | H42: 0 | I42: 0 | J42: 0 | K42: 0 | L42: 0 | M42: 0
B43: 32 | D43: 0 | E43: 0 | F43: 0 | G43: 0 | H43: 0 | I43: 0 | J43: 0 | K43: 0 | L43: 0 | M43: 0
B44: 33 | D44: 0 | E44: 0 | F44: 0 | G44: 0 | H44: 0 | I44: 0 | J44: 0 | K44: 0 | L44: 0 | M44: 0
B45: 34 | D45: 0 | E45: 0 | F45: 0 | G45: 0 | H45: 0 | I45: 0 | J45: 0 | K45: 0 | L45: 0 | M45: 0
B46: 35 | D46: 0 | E46: 0 | F46: 0 | G46: 0 | H46: 0 | I46: 0 | J46: 0 | K46: 0 | L46: 0 | M46: 0
B47: 36 | D47: 0 | E47: 0 | F47: 0 | G47: 0 | H47: 0 | I47: 0 | J47: 0 | K47: 0 | L47: 0 | M47: 0
B48: 37 | D48: 0 | E48: 0 | F48: 0 | G48: 0 | H48: 0 | I48: 0 | J48: 0 | K48: 0 | L48: 0 | M48: 0
B49: 38 | D49: 0 | E49: 0 | F49: 0 | G49: 0 | H49: 0 | I49: 0 | J49: 0 | K49: 0 | L49: 0 | M49: 0
B50: 39 | D50: 0 | E50: 0 | F50: 0 | G50: 0 | H50: 0 | I50: 0 | J50: 0 | K50: 0 | L50: 0 | M50: 0
B51: 40 | D51: 0 | E51: 0 | F51: 0 | G51: 0 | H51: 0 | I51: 0 | J51: 0 | K51: 0 | L51: 0 | M51: 0
B52: 41 | D52: 0 | E52: 0 | F52: 0 | G52: 0 | H52: 0 | I52: 0 | J52: 0 | K52: 0 | L52: 0 | M52: 0
B53: 42 | D53: 0 | E53: 0 | F53: 0 | G53: 0 | H53: 0 | I53: 0 | J53: 0 | K53: 0 | L53: 0 | M53: 0
B54: 43 | D54: 0 | E54: 0 | F54: 0 | G54: 0 | H54: 0 | I54: 0 | J54: 0 | K54: 0 | L54: 0 | M54: 0
B55: 44 | D55: 0 | E55: 0 | F55: 0 | G55: 0 | H55: 0 | I55: 0 | J55: 0 | K55: 0 | L55: 0 | M55: 0
B56: 45 | D56: 0 | E56: 0 | F56: 0 | G56: 0 | H56: 0 | I56: 0 | J56: 0 | K56: 0 | L56: 0 | M56: 0
B57: 46 | D57: 0 | E57: 0 | F57: 0 | G57: 0 | H57: 0 | I57: 0 | J57: 0 | K57: 0 | L57: 0 | M57: 0
B58: 47 | D58: 0 | E58: 0 | F58: 0 | G58: 0 | H58: 0 | I58: 0 | J58: 0 | K58: 0 | L58: 0 | M58: 0
B59: 48 | D59: 0 | E59: 0 | F59: 0 | G59: 0 | H59: 0 | I59: 0 | J59: 0 | K59: 0 | L59: 0 | M59: 0
B60: Totales | E60: 3500 | F60: 285.4750658 | G60: 100 | H60: 20.36238689 | I60: 5.329070518e-15 | J60: 150.45 | K60: 0 | L60: 0 | M60: 4056.287453
B61: *Se ajusta por redondeo según criterio establecido en la Ley N°28194
